Workbook

Sheet CoverPage
A5: Homekey Round 2
A6: Notice of Funding Availability (NOFA) September 9, 2021
A7: (As Amended January 14, 2022)
A9: Application Workbook
A11: Rev. | B11: 2022-02-01
A29: State of California
A30: Governor Gavin Newsom
A32: Lourdes M. Castro Ramirez, Secretary
A33: Business, Consumer Services and Housing Agency
A35: Gustavo Velasquez, Director
A36: Department of Housing and Community Development
A39: 2020 West El Camino Avenue
A40: Sacramento, CA 95833
A41: Phone: (916) 263-2771
A42: Email: Homekey@hcd.ca.gov
A43: Website: https://homekey.hcd.ca.gov/

Sheet Overview
A1: Homekey Round 2 Project Overview | AJ1: =CoverPage!B11 -> 2022-02-01
A2: §401 Pre-Application Consultation Requirement
A3: Has the lead applicant (a public entity or tribal entity) undertaken a preapplication consultation with HCD regarding the proposed Homekey Project?
A4: Instructions
A5: "Yellow" shaded cells are for Applicant input. Failure to submit a complete application including the required documentation may result in the need for you to amend and resubmit your application resulting in your application's HCD review to be repositioned to the date of resubmittal.
A6: "Red" shaded cells indicate the Applicant has likely failed to meet a Homekey requirement. 'Applicant Scoring Criteria' worksheet cells shaded in "red" indicate that the Applicant has failed to meet the minimum points required.
A7: "Orange" shaded cells' indicated required attachments. Electronically attached files must use the naming convention in the Application. For Example: "Housing Site Map" for the map indicating the original target housing location and all proposed housing location(s).
A8: "Green" shaded cells indicate HCD Use Only.
A9: "Blue" shaded cells indicate Application scores.
A10: NOFA section references are made with "§" and the corresponding NOFA section number.
A11: Please don’t hesitate to contact us with any questions or if you need assistance in completing this application.
A12: For general Homekey NOFA and program questions email: homekey@hcd.ca.gov.
A13: For application specific assistance complete the 'App Support' worksheet & email your Excel application to: appsupport@hcd.ca.gov
A14: Homekey Summary (auto populated from Award, Match and Revenue worksheet)
A15: Maximum Homekey Award | N15: Applicant Requested Homekey Award | AA15: Lesser of Maximum and Requested Award
A16: Capital Baseline Award | J16: ='Award, Match, and Revenue'!N32 -> 0 | N16: Capital Baseline Award | W16: ='Award, Match, and Revenue'!O32 -> 0 | AA16: Capital Baseline Award | AI16: ='Award, Match, and Revenue'!P32 -> 0
A17: Additional Contribution | J17: ='Award, Match, and Revenue'!N33 -> 0 | N17: Additional Contribution | W17: ='Award, Match, and Revenue'!O33 -> 0 | AA17: Additional Contribution | AI17: ='Award, Match, and Revenue'!P33 -> 0
A18: Total Maximum Capital Award | J18: =SUM(J16:M17) -> 0 | N18: Total Requested Capital Award | W18: =SUM(W16:Z17) -> 0 | AA18: Total Capital Award | AI18: =SUM(AI16:AL17) -> 0
A19: Operating Subsidy | J19: ='Award, Match, and Revenue'!N48 -> 0 | N19: Operating Subsidy | W19: ='Award, Match, and Revenue'!O48 -> 0 | AA19: Operating Subsidy | AI19: ='Award, Match, and Revenue'!P48 -> 0
A20: 50% of Relocation Costs | J20: ='Award, Match, and Revenue'!N49 -> 0 | N20: 50% of Relocation Costs | W20: ='Award, Match, and Revenue'!O49 -> 0 | AA20: 50% of Relocation Costs | AI20: ='Award, Match, and Revenue'!P49 -> 0
A21: §207 Bonus Award - app submittal | J21: ='Award, Match, and Revenue'!N50 -> 0 | N21: §207 Bonus Award - app submittal | W21: ='Award, Match, and Revenue'!O50 -> 0 | AA21: §207 Bonus Award - app submittal | AI21: ='Award, Match, and Revenue'!P50 -> 0
A22: §207 Bonus Award - full occupancy | J22: ='Award, Match, and Revenue'!N51 -> 0 | N22: §207 Bonus Award - full occupancy | W22: ='Award, Match, and Revenue'!O51 -> 0 | AA22: §207 Bonus Award-full occupancy | AI22: ='Award, Match, and Revenue'!P51 -> 0
A23: Total Maximum Homekey Award | J23: =SUM(J18:M22) -> 0 | N23: Total Requested Homekey Award | W23: =SUM(W18:Z22) -> 0 | AA23: Total Homekey Award | AI23: =SUM(AI18:AL22) -> 0
A24: Number of Doors at Acquisition | I24: ='Award, Match, and Revenue'!B25 -> 0 | L24: Number of Units Proposed in the Project | V24: ='Award, Match, and Revenue'!E25 -> 0
A25: Number of At-Risk of Homelessness Units | K25: ='Award, Match, and Revenue'!Q25 -> 0 | M25: Number of Chronically Homeless Units | W25: ='Award, Match, and Revenue'!R25 -> 0 | Y25: Number of Homeless Units | AF25: ='Award, Match, and Revenue'!S25 -> 0
A26: Number of Homeless Youth or Youth at Risk of Homelessness Units | Q26: ='Award, Match, and Revenue'!T25 -> 0 | S26: Number of Assisted Units | Z26: ='Award, Match, and Revenue'!U25 -> 0
A27: Number of Units accessible to persons with mobility disabilities | P27: ='Application Scoring Criteria'!U77 -> 0 | R27: Number of Units accessible to persons with hearing or vision disabilities | AK27: ='Application Scoring Criteria'!U78 -> 0
A28: Project Overview
A29: Project Name
A30: Project Address | S30: Project City | AC30: State | AH30: Zip
A31: Project County | L31: Is the Project in a Rural Area per H&S Code §50199.21? (use the TCAC Method for determining rural status)
A32: Assessor Parcel Number (APN) | F32: Enter parcel # 1 APN here | I32: Enter parcel # 2 APN here | L32: Enter parcel # 3 APN here | O32: Enter parcel # 4 APN here | R32: Enter parcel # 5 APN here | U32: Enter parcel # 6 APN here | X32: Enter parcel # 7 APN here | AA32: Enter parcel # 8 APN here | AD32: Enter parcel # 9 APN here | AG32: Enter parcel # 10 APN here | AJ32: Enter parcel # 11 APN here
A33: Assessor Parcel Number (APN) | F33: Enter parcel # 12 APN here | I33: Enter parcel # 13 APN here | L33: Enter parcel # 14 APN here | O33: Enter parcel # 15 APN here | R33: Enter parcel # 16 APN here | U33: Enter parcel # 17 APN here | X33: Enter parcel # 18 APN here | AA33: Enter parcel # 19 APN here | AD33: Enter parcel # 20 APN here | AG33: Enter parcel # 21 APN here | AJ33: Enter parcel # 22 APN here
A34: Geographic Set Aside | H34: =IFERROR(VLOOKUP(E31,'Drop Down'!D1:E58,2,FALSE),"") ->  | S34: Data Universal Numbering System (DUNS):
A35: Project Type (Transitional Housing is Interim Housing)
A36: Building Type
A37: Other building type not listed above (describe below)
A39: Project Narrative
A41: If Project is also known under another name(s) or was formerly known under another name(s), provide the name(s).
A42: Have you applied, do you plan to apply, or has the Project been awarded other HCD program funds?
A43: Other HCD Program(s) Name(s): | O43: Funding Amount | T43: Funding Status | AB43: NOFA Date | AE43: Award Date/Expected Award Date
A46: §200 Eligible Applicants
A47: Applicant #1
A48: Entity name | AA48: Organization type
A49: Address | V49: City | AC49: State | AE49: CA | AH49: Zip
A50: Auth Rep | M50: Title | V50: Email | AG50: Phone
A51: Contact | M51: Title | V51: Email | AG51: Phone
A52: Address | V52: City | AC52: State | AH52: Zip
A53: File Name | D53: App1 Cert & Legal | L53: See Certifications & Legal worksheet. | AF53: Uploaded to HCD?
A54: File Name | D54: App1 Resolution | L54: Signature required; see Applicant Documents worksheet. | AF54: Uploaded to HCD?
A55: File Name | D55: App1 TIN Form | L55: See Applicant Documents worksheet. | AF55: Uploaded to HCD?
A56: Co-Applicant #1 (if applicable)
A57: Entity name | AA57: Organization type
A58: Address | V58: City | AC58: State | AH58: Zip
A59: Auth Rep | M59: Title | V59: Email | AG59: Phone
A60: Contact | M60: Title | V60: Email | AG60: Phone
A61: Address | V61: City | AC61: State | AH61: Zip
A62: File Name | D62: Co-App1 Cert & Legal | L62: See Certifications & Legal worksheet. | AF62: Uploaded to HCD?
A63: File Name | D63: Co-App1 Resolution | L63: Signature required; see Applicant Documents worksheet. | AF63: Uploaded to HCD?
A64: File Name | D64: Co-App1 OrgDoc1, OrgDoc2, etc | L64: See Applicant Documents worksheet. | AF64: Uploaded to HCD?
A65: File Name | D65: Co-App1 OrgChart | L65: See Applicant Documents worksheet. | AF65: Uploaded to HCD?
A66: File Name | D66: Co-App1 Signature Block | L66: See Applicant Documents worksheet. | AF66: Uploaded to HCD?
A67: File Name | D67: Co-App1 Payee Data Record | L67: See Applicant Documents worksheet. | AF67: Uploaded to HCD?
A68: File Name | D68: Co-App1 TIN Form | L68: See Applicant Documents worksheet. | AF68: Uploaded to HCD?
A69: File Name | D69: Co-App1 Cert of Good Standing | L69: Dated 30 days or less from the Application due date. | AF69: Uploaded to HCD?
A70: File Name | D70: Co-App1 Tax-Exempt Status | L70: Evidence of tax-exempt status from IRS and Franchise Tax Board, if applicable | AF70: Uploaded to HCD?
A71: Co-Applicant #2 (if applicable)
A72: Entity name | AA72: Organization type
A73: Address | V73: City | AC73: State | AH73: Zip
A74: Auth Rep | M74: Title | V74: Email | AG74: Phone
A75: Contact | M75: Title | V75: Email | AG75: Phone
A76: Address | V76: City | AC76: State | AH76: Zip
A77: File Name | D77: Co-App2 Cert & Legal | L77: See Certifications & Legal worksheet. | AF77: Uploaded to HCD?
A78: File Name | D78: Co-App2 Resolution | L78: Signature required; see Applicant Documents worksheet. | AF78: Uploaded to HCD?
A79: File Name | D79: Co-App2 OrgDoc1, OrgDoc2, etc | L79: See Applicant Documents worksheet. | AF79: Uploaded to HCD?
A80: File Name | D80: Co-App2 OrgChart | L80: See Applicant Documents worksheet. | AF80: Uploaded to HCD?
A81: File Name | D81: Co-App2 Signature Block | L81: See Applicant Documents worksheet. | AF81: Uploaded to HCD?
A82: File Name | D82: Co-App2 Payee Data Record | L82: See Applicant Documents worksheet. | AF82: Uploaded to HCD?
A83: File Name | D83: Co-App2 TIN Form | L83: See Applicant Documents worksheet. | AF83: Uploaded to HCD?
A84: File Name | D84: Co-App2 Cert of Good Standing | L84: Dated 30 days or less from the Application due date. | AF84: Uploaded to HCD?
A85: File Name | D85: Co-App2 Tax-Exempt Status | L85: Evidence of tax-exempt status from IRS and Franchise Tax Board for Non-profit Corp. | AF85: Uploaded to HCD?
A86: Development Team Contacts (provide information that is currently available)
A87: Property Management Company
A88: Legal Name | P88: Contact Name | AB88: Email
A89: Phone | H89: Address | V89: City | AD89: State | AH89: Zip
A90: Financial Consultant
A91: Legal Name | P91: Contact Name | AB91: Email
A92: Phone | H92: Address | V92: City | AD92: State | AH92: Zip
A93: Legal Counsel
A94: Legal Name | P94: Contact Name | AB94: Email
A95: Phone | H95: Address | V95: City | AD95: State | AH95: Zip
A96: General Contractor
A97: Legal Name | P97: Contact Name | AB97: Email
A98: Phone | H98: Address | V98: City | AD98: State | AH98: Zip
A99: Architect
A100: Legal Name | P100: Contact Name | AB100: Email
A101: Phone | H101: Address | V101: City | AD101: State | AH101: Zip
A102: Development/Operating Funding Source
A103: Legal Name | P103: Contact Name | AB103: Email
A104: Phone | H104: Address | V104: City | AD104: State | AH104: Zip
A105: Development/Operating Funding Source
A106: Legal Name | P106: Contact Name | AB106: Email
A107: Phone | H107: Address | V107: City | AD107: State | AH107: Zip
A108: Development/Operating Funding Source
A109: Legal Name | P109: Contact Name | AB109: Email
A110: Phone | H110: Address | V110: City | AD110: State | AH110: Zip
A111: Development/Operating Funding Source
A112: Legal Name | P112: Contact Name | AB112: Email
A113: Phone | H113: Address | V113: City | AD113: State | AH113: Zip
A114: Development/Operating Funding Source
A115: Legal Name | P115: Contact Name | AB115: Email
A116: Phone | H116: Address | V116: City | AD116: State | AH116: Zip
A117: §201 Eligible Uses
A118: Select below the eligible uses you are applying for:
A119: i. Acquisition or rehabilitation, or acquisition and rehabilitation, of motels, hotels, hostels, or other sites and assets, including apartments or homes, adult residential facilities, residential care facilities for the elderly, manufactured housing, commercial properties, and other buildings with existing uses that could be converted to permanent or interim housing.
A120: File Name: | D120: Rehab Description | L120: Narrative description of current condition of structure(s) and overall scope of work. | AF120: Uploaded to HCD?
A121: File Name: | D121: PNA | L121: Physical Needs Assessment prepared by a qualified independent third party contractor. | AF121: Uploaded to HCD?
A122: ii. Master leasing of properties for non-congregant housing. If Yes, provide a recent market study and/or rent roll, and/or other supporting documentation.
A123: File Name: | D123: Market Study | L123: Provide a recent market study within the past year which conforms to Tax Credit Allocation Committee (TCAC) guidelines, and/or a rent roll, and/or other supporting documentation per §205 of the NOFA. | AF123: Uploaded to HCD?
A124: iii. Conversion of units from nonresidential to residential.
A125: iv. New construction of dwelling units.
A126: v. The purchase of affordability covenants and restrictions for units. If Yes, provide a recent market study and/or rent roll, and/or other supporting documentation.
A127: File Name: | D127: Market Study | L127: Provide a recent market study within the past year which conforms to TCAC guidelines, and/or a rent roll, and/or other supporting documentation per §205 of the NOFA. | AF127: Uploaded to HCD?
A128: vi. Relocation costs for individuals who are being displaced as a result of your Homekey Project.
A129: vii. Capitalized operating subsidies for units purchased, converted, constructed, or altered with funds provided pursuant to HSC §50675.1.3.
A130: §202 Eligible Projects
A131: Select below the eligible project types you are applying for:
A132: i. Conversion of nonresidential structures to residential dwelling units.
A133: ii. Conversion of commercially zoned structures, such as office or retail spaces, to residential dwelling units.
A134: iii. Adult residential facilities, residential care facilities for the elderly, manufactured housing, and other buildings with existing residential uses.
A135: iv. Multifamily rental housing projects.
A136: v. Excess state-owned properties.
A137: vi. Shared housing or scattered site housing is permitted as long as the resulting housing has common ownership, financing, and property management, and each household signs a lease.
A138: vii. Structure(s) lacking a permanent foundation such as manufactured home, recreational vehicle, and floating home, for temporary use only. HCD encourages Applicants to explore financing alternatives to Homekey for such structures. Must submit with application a detailed explanation of how the use will meet all Homekey requirements, including the requirements for use and affordability restrictions set forth at §208 of the NOFA. Applicants seeking HCD’s approval of structures lacking a permanent foundation are encouraged to discuss their options at the required pre-application consultation.
A139: File Name: | D139: Non-Perm Structure | L139: Detailed narrative of how the use will meet all Homekey Program requirements, including the requirements for use and affordability restrictions set forth at §208 of the NOFA | AF139: Uploaded to HCD?
A140: Other eligible project not listed above (describe below)
A142: viii. Applicant acknowledges Homekey Assisted Units previously awarded under the first round of Homekey funding are ineligible for Homekey Round 2 funding.

Sheet Threshold
A1: Threshold | AJ1: =CoverPage!B11 -> 2022-02-01
A2: §300 Threshold Requirements
A3: To be eligible to receive funding, all projects must meet the following requirements as they relate to the Eligible Applicant and the project types.
A4: i. Applicant acknowledges that applications may be submitted independently by an Eligible Applicant, as defined in §200 and Article VII. Alternatively, each of the foregoing Eligible Applicants may apply jointly with a nonprofit or for-profit corporation as Co-Applicant, as specified?
A5: ii. Applicant agrees Project(s) must serve persons qualifying as members of the Target Population per Article VII(xxxi)?
A6: iii. Applicant has completed the 'Supportive Services Plan' worksheet based on the anticipated needs of the Target Population and any proposed sub-populations to be served by the Project?
A7: iv. Applicant acknowledges the requirement to submit an overview below of the plan and timeline for any required entitlements, permits, and environmental clearances? Applicants must also complete the 'Local & Env Verification' worksheet. Applicants are encouraged to discuss their land use and environmental clearance plans, and related statutory authorities at the required pre-application consultation.
A9: File Name | D9: Env. Report 1 | L9: Phase I (prepared or updated no earlier than 12 months prior to the application due date). | AF9: Uploaded to HCD?
A10: File Name | D10: Env. Report 2 | L10: If Phase I requires a Phase II study, submit a Phase II (prepared or updated no earlier than 12 months prior to the application due date). | AF10: Uploaded to HCD?
A11: File Name | D11: CEQA | L11: Copy of CEQA Determination Documents | AF11: Uploaded to HCD?
A12: File Name | D12: NEPA | L12: Copy of Authority of Use Grant Funds (NHTF Verification from Responsible Entity) | AF12: Uploaded to HCD?
A13: File Name | D13: Local Approvals | L13: 'Local & Env Verification' worksheet(s) completed and signed by local authority or Responsible Entity, if different from jurisdiction. | AF13: Uploaded to HCD?
A14: Construction start date | N14: Construction completion date | AA14: Estimated occupancy date
A15: v. Applicant acknowledges the requirement to submit a Racial Demographic Data Worksheet (reports Continuum of Care (CoC) outcomes by race/ethnicity)?
A16: File Name | D16: Racial Demographics | L16: Racial Demographic Data Worksheet, which reports CoC outcomes by race and ethnicity. The worksheet on the Homekey webpage | AF16: Uploaded to HCD?
A17: vi. Applicant must have site control of all properties at the time of application, and control must not be contingent on the approval of any other party. Does Applicant have site control? If Yes, enter site control information for each APN and most recent execution date. Describe site control special circumstances below.
A18: APN | H18: Address | Q18: Type of Site Control | AA18: Current owner | AG18: Execution date | AJ18: Expiration date
A19: =IF(Overview!F32="Enter parcel # 1 APN here","Do not complete this row",Overview!F32) -> Do not complete this row
A20: =IF(Overview!I32="Enter parcel # 2 APN here","Do not complete this row",Overview!I32) -> Do not complete this row
A21: =IF(Overview!L32="Enter parcel # 3 APN here","Do not complete this row",Overview!L32) -> Do not complete this row
A22: =IF(Overview!O32="Enter parcel # 4 APN here","Do not complete this row",Overview!O32) -> Do not complete this row
A23: =IF(Overview!R32="Enter parcel # 5 APN here","Do not complete this row",Overview!R32) -> Do not complete this row
A24: =IF(Overview!U32="Enter parcel # 6 APN here","Do not complete this row",Overview!U32) -> Do not complete this row
A25: =IF(Overview!X32="Enter parcel # 7 APN here","Do not complete this row",Overview!X32) -> Do not complete this row
A26: =IF(Overview!AA32="Enter parcel # 8 APN here","Do not complete this row",Overview!AA32) -> Do not complete this row
A27: =IF(Overview!AD32="Enter parcel # 9 APN here","Do not complete this row",Overview!AD32) -> Do not complete this row
A28: =IF(Overview!AG32="Enter parcel # 10 APN here","Do not complete this row",Overview!AG32) -> Do not complete this row
A29: =IF(Overview!AJ32="Enter parcel # 11 APN here","Do not complete this row",Overview!AJ32) -> Do not complete this row
A30: =IF(Overview!F33="Enter parcel # 12 APN here","Do not complete this row",Overview!F33) -> Do not complete this row
A31: =IF(Overview!I33="Enter parcel # 13 APN here","Do not complete this row",Overview!I33) -> Do not complete this row
A32: =IF(Overview!L33="Enter parcel # 14 APN here","Do not complete this row",Overview!L33) -> Do not complete this row
A33: =IF(Overview!O33="Enter parcel # 15 APN here","Do not complete this row",Overview!O33) -> Do not complete this row
A34: =IF(Overview!R33="Enter parcel # 16 APN here","Do not complete this row",Overview!R33) -> Do not complete this row
A35: =IF(Overview!U33="Enter parcel # 17 APN here","Do not complete this row",Overview!U33) -> Do not complete this row
A36: =IF(Overview!X33="Enter parcel # 18 APN here","Do not complete this row",Overview!X33) -> Do not complete this row
A37: =IF(Overview!AA33="Enter parcel # 19 APN here","Do not complete this row",Overview!AA33) -> Do not complete this row
A38: =IF(Overview!AD33="Enter parcel # 20 APN here","Do not complete this row",Overview!AD33) -> Do not complete this row
A39: =IF(Overview!AG33="Enter parcel # 21 APN here","Do not complete this row",Overview!AG33) -> Do not complete this row
A40: =IF(Overview!AJ33="Enter parcel # 22 APN here","Do not complete this row",Overview!AJ33) -> Do not complete this row
A41: h. Applicant acknowledges that if one or more sites will require a use change for permanent housing, Applicant must submit a commitment and plan to facilitate or expedite those processes, so as to not delay expenditure and occupancy requirements?
A42: File Name: | D42: Use Change | L42: Provide a commitment and plan to facilitate or expedite the use change processes | AF42: Uploaded to HCD?
A43: Provide details below for unusual site control special circumstances or "Other" types of site control:
A45: File Name: | D45: Site Control1, Site Control2, etc | L45: Provide documentation of the type of site control for each site above | AF45: Uploaded to HCD?
A46: File Name: | D46: Prelim1, Prelim2, etc | K46: Provide a current preliminary report | L46: Provide current preliminary title report for each site above | AE46: On USB? | AF46: Uploaded to HCD?
A47: File Name: | D47: Liability Insurance | K47: Provide a current preliminary report | L47: Proof of General Liability Insurance that meets the requirements in §800(i) | AE47: On USB? | AF47: Uploaded to HCD?
A48: File Name: | D48: Automobile Insurance | K48: Provide a current preliminary report | L48: Proof of Automobile Liability Insurance that meets the requirements in §800(ii) | AE48: On USB? | AF48: Uploaded to HCD?
A49: File Name: | D49: Property-Hazard Insurance | K49: Provide a current preliminary report | L49: Proof of Property Insurance that meets the requirements in §800(v) | AE49: On USB? | AF49: Uploaded to HCD?
A50: vii. Applicant acknowledges that the Eligible Applicant applying for the Homekey funding is the entity that HCD relies upon for experience and capacity, and will control the project during acquisition, development, and occupancy? | AN50: =IF(Overview!D48="","Applicant #1",Overview!D48) -> Applicant #1
A51: Indicate which Eligible Applicant HCD can rely on for experience and capacity: | AN51: =IF(Overview!D57="","",Overview!D57) -> 
A52: viii. Applicant agrees to provide a development plan that supports acquisition of a site and fund expenditure before all program deadlines and demonstrates evidence of strong organizational and financial capacity to develop the project? | AN52: =IF(Overview!D72="","",Overview!D72) -> 
A53: File Name: | D53: Development Plan | L53: Provide a development plan | AF53: Uploaded to HCD?
A54: ix. Applicant agrees that Assisted Units and other units of the Project must meet all applicable state and local requirements pertaining to rental housing, manufactured housing, including but not limited to requirements for minimum square footage, and requirements related to maintaining the Project in a safe and sanitary condition?
A55: x. Applicant acknowledges all Applicants must be in good standing with the State of California and all agencies and departments thereof? By way of example and not limitation, all Applicants must be qualified to do business in the State of California and must be in good standing with the California Secretary of State and the California Franchise Tax Board. Applicants that are delinquent in meeting material requirements of previous HCD awards may fail threshold review.
A56: xi. Applicant acknowledges that HCD will require Eligible Applicants to submit a complete application with all required documents? HCD reserves the right to request clarification of unclear or ambiguous statements made in an application and other supporting documents.
A57: xii. Applicant acknowledges the requirement to submit a concise, sufficiently detailed Relocation Assistance Narrative? The Narrative must show the Applicant’s consideration of (I) applicable relocation assistance laws and requirements; and (II) all persons, businesses, or farm operations that may or will be displaced as a result of the Applicant’s Homekey-funded activities. This Relocation Assistance Narrative does not take the place of the relocation plan, or the Certification Regarding Non-Application of Relocation Benefits and Indemnification Agreement, that the Grantee shall submit as a condition of funding.
A58: File Name: | D58: Relocation Narrative | L58: Relocation Assistance Narrative for relocation or no relocation | AF58: Uploaded to HCD?
A59: =IF(OR(Overview!S35="",Overview!S35="Permanent Housing"),"§301 Permanent Housing Requirements","§301 Permanent Housing Requirements (skip this application section as your Project Type is Interim Housing; please complete §302)") -> §301 Permanent Housing Requirements
A60: i. Applicant has funding commitments or other reasonable assurance to cover operations and service costs with specific funding sources (government/philanthropic/private) for the proposed Project for 5 years and a budget which covers operations and services costs through year 15 from the recordation of the use restriction?
A61: ii. Is the Applicant acquiring, rehabilitating, and operating a Permanent Housing project? If Yes, the Applicant or Co-Applicant must demonstrate the following minimum experience and capacity requirements below:
A62: a. Development, ownership, or operation experience (a1. or a2. must be Yes to pass Threshold) | Z62: Passes threshold? | AK62: =IF(AND(AK63="Yes",A65<>"",Q65<>"",V65<>"",AC65<>"",AJ65<>""),"Yes",IF(AK66="Yes","Yes","No")) -> No
A63: a1. Has Applicant developed, owned, or operated a project similar in scope and size to the Project? If Yes, provide details below:
A64: Project name and address | Q64: Who provides the experience | V64: Experience type | Z64: Housing type | AC64: Population served | AJ64: Latest date developed, owned, or operated
Z65: Affordable Rental
A66: a2. If a1 above is Yes, skip. Applicant has operated at least two affordable rental housing projects in the last ten years, with at least one of those projects containing at least one unit housing a tenant who qualifies as a member of the Target Population (enter Project information below)? | AK66: =IF(AND(SUM(AM68:AM69)>0,SUM(AN68:AN69)>1),"Yes","No") -> No
A67: Project name and address | Q67: Who provides the experience | V67: Experience type | Z67: Housing type | AC67: Qualifying unit population served | AJ67: Latest date developed, owned, or operated | AM67: 2021-09-09 | AN67: =AM67-(365*10) -> 2011-09-12
Z68: Affordable Rental | AM68: =IF(AND(A68<>"",AC68<>""),1,0) -> 0 | AN68: =IF(AND(A68<>"",AJ68>AN67),1,0) -> 0
Z69: Affordable Rental | AM69: =IF(AND(A69<>"",AC69<>""),1,0) -> 0 | AN69: =IF(AND(A69<>"",AJ69>AN67),1,0) -> 0
A70: b. Experience helping persons address barriers to housing stability & providing support services | N70: Property manager service years | S70: =SUM(AN74:AN78)/12 -> 0 | U70: Supportive Service Provider service years | AA70: =SUM(AN80:AN84)/12 -> 0 | AC70: Pass threshold (three or more years of experience)? | AK70: =IF(AND(OR(G71:G72=0,AND(G71:G72="No",AA70=0)),AK71:AK72="Yes"),"Yes",IF(AND(OR(S70>=3,AND(G71:G72="No",AK71:AK72="Yes")),AA70>=3),"Yes","No")) -> No
A71: Has a property manager been selected? | I71: If Yes, enter property manager name and complete experience chart below: | Z71: If No, Applicant certifies that this requirement will be reflected in future solicitation or memorandum of understanding?
A72: Has a supportive service provider been selected? | I72: If Yes, enter supportive service provider name and complete experience chart below: | Z72: If No, Applicant certifies that this requirement will be reflected in future solicitation or memorandum of understanding?
A73: Project name and address | U73: Experience provider | AA73: Housing type | AD73: Population Served | AK73: # of months serving
U74: Property Manager | AA74: Affordable Rental | AM74: =IF(AND(A74<>"",AD74<>""),1,0) -> 0 | AN74: =IF(AM74=1,AK74,0) -> 0
U75: Property Manager | AA75: Affordable Rental | AM75: =IF(AND(A75<>"",AD75<>""),1,0) -> 0 | AN75: =IF(AM75=1,AK75,0) -> 0
U76: Property Manager | AA76: Affordable Rental | AM76: 0 | AN76: 0
U77: Property Manager | AA77: Affordable Rental | AM77: 0 | AN77: =IF(AM77=1,AK77,0) -> 0
U78: Property Manager | AA78: Affordable Rental | AM78: 0 | AN78: =IF(AM78=1,AK78,0) -> 0
A79: Enter Supportive Service Provider name and complete experience chart below:
U80: Supportive Service Provider | AA80: Affordable Rental | AM80: =IF(AND(A80<>"",AD80<>""),1,0) -> 0 | AN80: 0
U81: Supportive Service Provider | AA81: Affordable Rental | AM81: 0 | AN81: 0
U82: Supportive Service Provider | AA82: Affordable Rental | AM82: 0 | AN82: 0
U83: Supportive Service Provider | AA83: Affordable Rental | AM83: 0 | AN83: 0
U84: Supportive Service Provider | AA84: Affordable Rental | AM84: 0 | AN84: 0
A85: c. Experience administering a Housing First program that includes principles of harm reduction and low barriers to entry.
A86: File Name: | D86: Housing First Perm | L86: Provide experience administering a Housing First program of harm reduction and low barriers to entry | AF86: Uploaded to HCD?
A87: d. Development, ownership, or operation capacity.
A88: d1. Does Applicant have the capacity to develop, own, and operate a Permanent Housing Project? If Yes, provide details in the Project Staffing Chart below:
A89: d2. Applicant certifies that it will employ experienced staff without reliance upon another entity or parent company?
A90: d3. Applicant certifies that it has sufficient financial capacity to provide payroll and employment benefits to staff without reliance upon another entity or parent company?
A91: d4. Applicant certifies that it has sufficient financial capacity to carry out its obligations pursuant to Program requirements including, but not limited to providing financial guarantees without reliance upon another entity or parent company?
A92: Project Staffing Chart
A93: Staff type | D93: Employee / Consultant full name | R93: Position title | Z93: Full time / Part time | AE93: % of time dedicated to this project
A101: iii. One-for-one replacement of assisted housing
A102: a. Will the acquired housing or site be redeveloped/repositioned as part of the locality's overall goal to address the needs of Target Population and community?
A103: b. If Yes to iii a. above, will the target site be demolished before any occupancy by the Target Population?
A104: File Name: | D104: One-for-one Replacement | L104: iii(a) and (b): If the acquired housing or site will be redeveloped/repositioned per the locality's overall goal to address the needs of the Target Population and the community (unless the target site is going to be demolished before any occupancy by the Target Population), provide a letter of commitment to ensure one-for-one replacement of units. | AF104: Uploaded to HCD?
A105: c. Will all of the proposed housing be located within the original target housing location neighborhood?
A106: File Name: | D106: Housing Site Map | L106: Map indicating the original target housing location and all proposed housing location(s). | AF106: Uploaded to HCD?
A107: File Name: | D107: Outside Neighborhood | L107: If replacement housing is proposed outside the target neighborhood, include a justification explaining why it is necessary to locate this replacement housing outside the target neighborhood (i.e., offsite) and how doing so supports and enables the Target Population to maintain housing. | AF107: Uploaded to HCD?
A108: =IF(Overview!S35<>"Permanent Housing","§302 Interim Housing Requirements","§302 Interim Housing Requirements (skip this application section as your Project Type is Perament Housing; please complete §301)") -> §302 Interim Housing Requirements
A109: i. Applicant acknowledges the Interim Housing Project will be evaluated on Funding commitments or other reasonable assurance to cover operations and service costs with specific funding sources (government/philanthropic/private) for the Project for five years and submit a budget to cover operations and services costs through year 15 from the recordation of the use restriction.
A110: ii. Is the Applicant acquiring, rehabilitating, and/or operating an Interim Housing project? If Yes, the Applicant must meet the following experience and capacity below:
A111: a. Successful development, ownership, or operation of an Interim Housing project, such as an emergency shelter or Transitional Housing for at least three of the last ten years for individuals who qualify as members of the Target Population. | AC111: Years | AE111: =SUM(AN113:AN119)/12 -> 0 | AH111: Pass Threshold | AK111: =IF(AE111>=3,"Yes","No") -> No
A112: Project Name and Address | P112: Who provided experience | U112: Experience type | Y112: Interim Housing project type | AD112: Population Served | AJ112: # of months serving in the last ten years
AM113: =IF(AND(A113<>"",P113<>"",U113<>"",Y113<>"",AD113<>""),1,0) -> 0 | AN113: =IF(AM113=1,AJ113,0) -> 0
AM114: =IF(AND(A114<>"",P114<>"",U114<>"",Y114<>"",AD114<>""),1,0) -> 0 | AN114: =IF(AM114=1,AJ114,0) -> 0
AM115: 0 | AN115: 0
AM116: 0 | AN116: 0
AM117: 0 | AN117: 0
AM118: 0 | AN118: 0
AM119: 0 | AN119: 0
A120: Explanations:
A121: b. Does Applicant have experience linking Interim Housing program participants to Permanent Housing to ensure long-term housing stability?
A122: File Name: | D122: Interim Hsg Exp | L122: Provide experience in linking Interim Housing program participants to Permanent Housing to ensure long-term housing stability | AF122: Uploaded to HCD?
A123: c. Does Applicant have experience administering a Housing First program that includes principles of harm reduction and low barriers to entry?
A124: File Name: | D124: Housing First Interim | L124: Provide experience administering a Housing First program that includes principles of harm reduction and low barriers to entry | AF124: Uploaded to HCD?
A125: d. Development, ownership, or operation capacity. | Z125: Passes threshold?
A126: d1. Does Applicant have the capacity to develop, own, and operate a Permanent Housing Project? If Yes, provide details in the Project Staffing Chart below:
A127: d2. Applicant certifies that it will employ experienced staff without reliance upon another entity or parent company?
A128: d3. Applicant certifies that it has sufficient financial capacity to provide payroll and employment benefits to staff without reliance upon another entity or parent company?
A129: d4. Applicant certifies that it has sufficient financial capacity to carry out its obligations pursuant to Program requirements including, but not limited to providing financial guarantees without reliance upon another entity or parent company?
A130: Project Staffing Chart
A131: Staff type | D131: Employee / Consultant full name | R131: Position title | Z131: Full time / Part time | AE131: % of time dedicated to this project
A139: §500 Article XXXIV
A140: Applicant acknowledges per HSC §37001, subdivision (h)(2), article XXXIV, §1 of the California Constitution is not applicable to a development that consists of the acquisition, rehabilitation, reconstruction, alterations work, new construction, or any combination thereof, of lodging facilities or dwelling units using moneys received from the CSFRF established by the federal American Rescue Plan Act of 2021 (ARPA) (Public Law 117-2)? As such, Article XXXIV is not applicable to Homekey funded development.
A141: §501 Housing First
A142: Applicant acknowledges that the Eligible Applicant shall certify to employ the core components of Housing First, as set forth at Welfare and Institutions Code §8255, in its property management and tenant selection practices? Projects shall accept tenants regardless of sobriety, participation in services or treatment, history of incarceration, credit history, or history of eviction in accordance with practices permitted pursuant to Housing First practices, including local Coordinated Entry System prioritization protocols, or other federal or state Project funding sources..
A143: §502 Tenant Selection
A144: Applicant acknowledges that referrals to Homekey Assisted Units shall be made through the local Coordinated Entry System (CES) for persons who are experiencing Homelessness? For persons At Risk of Homelessness, CES or another comparable prioritization system based on greatest need shall be used. All referral protocols for Homekey Assisted Units must be developed in collaboration with the local CoC and implemented consistent with the requirements set forth in the NOFA. CoC collaboration in Project and supportive service design is also strongly encouraged to help target and serve greatest need populations. If referrals will be made using a prioritization system other than CES, the Applicant must describe the plan for tenant selection, and it shall be reasonably detailed and comprehensive, as determined by the Department in its sole and absolute discretion.
A145: §503 Participation in Statewide HDIS/HMIS
A146: Applicant acknowledges Homekey Grantees must support CoC participation in the statewide Homeless Data Integration System (HDIS), and, in accordance with state and federal law (including all applicable privacy law), disclose relevant data to the local Homeless Management Information System (HMIS)? Note: Another comparable data collection system may be appropriate for specific projects or sub-populations including, but not limited to, domestic violence victims, veterans, and youth.
A147: §504 Relocation
A148: Applicant acknowledges Homekey Grantees must comply with all applicable federal, state, and local relocation law. Grantees must have a relocation plan prior to proceeding with any phase of a project or other activity that will result in the displacement of persons, businesses, or farm operations?
A149: File Name: | D149: Relocation Plan | L149: Relocation Assistance Narrative for relocation or no relocation | AE149: Uploaded to HCD?
A150: §505 Accessibility and Non-Discrimination
A151: Applicants acknowledges all developments shall adhere to the accessibility requirements set forth in California Building Code Chapter 11A and 11B and the Americans with Disabilities Act, Title II?
A152: File Name: | D152: Access & Non-Discrimination | L152: Provide a non-discrimination policy | AF152: Uploaded to HCD?
A153: §506 Prevailing Wage
A154: Applicant acknowledges use of Homekey funds is subject to California's prevailing wage law (Lab. Code, § 1720 et seq.). Applicant is urged to seek professional legal advice about the law's requirements. Prior to disbursing the Homekey funds, HCD will require a certification of compliance with California's prevailing wage law, as well as all applicable federal prevailing wage law. The certification must verify that prevailing wages have been or will be paid, and that labor records will be maintained and made available to any enforcement agency upon request. The certification must be signed by the general contractor(s) and the Grantee.
A155: File Name: | D155: Prevailing Wage | L155: Provide a prevailing wage certification | AF155: Uploaded to HCD?
A156: §507 Environmental Clearances
A157: Applicant acknowledges HCD encourages Eligible Applicants to fully engage with HCD’s technical assistance and to consider the CEQA exemption set forth at HSC §50675.1.4 and the provision for land use consistency and conformity set forth at HSC §50675.1.3, subdivision (i)? Applicants should consult with their counsel for legal advice in construing application of the foregoing exemptions to their Project. It is entirely within an Applicant’s discretion to determine whether to use the statutory CEQA exemption, whether the exemption applies to the Applicant’s proposed activity, or whether some other mechanism applies and could be used to satisfy obligations under CEQA.
A158: §508 Land Use
A159: Applicant acknowledges Pursuant to HSC section 50675.1.3, subdivision (i), Homekey Projects are deemed consistent and in conformity with any applicable local plan, standard, or requirement, and any applicable coastal plan (local or otherwise). Such Projects shall not be subject to any discretionary local permit review or approval process (e.g., a discretionary use permit process) before being able to proceed as a permitted use.

Sheet Certification & Legal
A1: Certification & Legal Disclosure | AK1: =CoverPage!B11 -> 2022-02-01
A2: On behalf of the entity identified in the signature block below, I certify that:
A3: 1. The information, statements and attachments included in this application are, to the best of my knowledge and belief, true and correct.
A4: 2. I possess the legal authority to submit this application on behalf of the entity identified in the signature block.
A5: 3. The following is a complete disclosure of all identities of interest - of all persons or entities, including affiliates, that will provide goods or services to the Project either (a) in one or more capacity or (b) that qualify as a "Related Party" to any person or entity that will provide goods or services to the Project. "Related Party" is defined in Section 10302 of the California Code of Regulations (CTCAC Regulations):
A7: 4. As of the date of application, the Project, or the real property on which the Project is proposed (Property) is not party to or the subject of any claim or action at the State or Federal appellate level.
A8: 5. I have disclosed and described below any claim or action undertaken which affects or potentially affects the feasibility of the Project.
A9: In addition, I acknowledge that all information in this application and attachments is public, and may be disclosed by the State.
A12: Printed Name | K12: Title of Signatory | U12: Signature | AJ12: Date
A13: Legal Disclosure
A14: For purposes of the following questions, and with the exceptions noted below, the term “applicant” shall include the applicant and joint applicant, and any subsidiary of the applicant or joint applicant if the subsidiary is involved in (for example, as a guarantor) or will be benefited by the application or the project.
A15: In addition to each of these entities themselves, the term “applicant” shall also include the direct and indirect holders of more than ten percent (10%) of the ownership interests in the entity, as well as the officers, directors, principals and senior executives of the entity if the entity is a corporation, the general and limited partners of the entity if the entity is a partnership, and the members or managers of the entity if the entity is a limited liability company. For projects using tax-exempt bonds, it shall also include the individual who will be executing the bond purchase agreement.
A16: The following questions must be responded to for each entity and person qualifying as an "applicant," or "joint applicant" as defined above.
A17: Explain all positive responses on a separate sheet and include with this questionnaire in the application.
A18: Exceptions:
A19: Public entity applicants without an ownership interest in the proposed project, including but not limited to cities, counties, and joint powers authorities with 100 or more members, are not required to respond to this questionnaire.
A20: Members of the boards of directors of non-profit corporations, including officers of the boards, are also not required to respond. However, chief executive officers (Executive Directors, Chief Executive Officers, Presidents or their equivalent) must respond, as must chief financial officers (Treasurers, Chief Financial Officers, or their equivalent).
A21: Civil Matters
A22: 1. Has the applicant filed a bankruptcy or receivership case or had a bankruptcy or receivership action commenced against it, defaulted on a loan or been foreclosed against in past ten years?
A23: 2. Is the applicant currently a party to, or been notified that it may become a party to, any civil litigation that may materially and adversely affect (a) the financial condition of the applicant’s business, or (b) the project that is the subject of the application?
A24: 3. Have there been any administrative or civil settlements, decisions, or judgments against the applicant within the past ten years that materially and adversely affected (a) the financial condition of the applicant’s business, or (b) the project that is the subject of the application?
A25: 4. Is the applicant currently subject to, or been notified that it may become subject to, any civil or administrative proceeding, examination, or investigation by a local, state or federal licensing or accreditation agency, a local, state or federal taxing authority, or a local, state or federal regulatory or enforcement agency?
A26: 5. In the past ten years, has the applicant been subject to any civil or administrative proceeding, examination, or investigation by a local, state or federal licensing or accreditation agency, a local, state or federal taxing authority, or a local, state or federal regulatory or enforcement agency that resulted in a settlement, decision, or judgment?
A27: Criminal Matters
A28: 6. Is the applicant currently a party to, or the subject of, or been notified that it may become a party to or the subject of, any criminal litigation, proceeding, charge, complaint, examination or investigation, of any kind, involving, or that could result in, felony charges against the applicant?
A29: 7. Is the applicant currently a party to, or the subject of, or been notified that it may become a party to or the subject of, any criminal litigation, proceeding, charge, complaint, examination or investigation, of any kind, involving, or that could result in, misdemeanor charges against the applicant for matters relating to the conduct of the applicant’s business?
A30: 8. Is the applicant currently a party to, or the subject of, or been notified that it may become a party to or the subject of, any criminal litigation, proceeding, charge, complaint, examination or investigation, of any kind, involving, or that could result in, criminal charges (whether felony or misdemeanor) against the applicant for any financial or fraud related crime?
A31: 9. Is the applicant currently a party to, or the subject of, or been notified that it may become a party to or the subject of, any criminal litigation, proceeding, charge, complaint, examination or investigation, of any kind, that could materially affect the financial condition of the applicant’s business?
A32: 10. Within the past ten years, has the applicant been convicted of any felony?
A33: 11. Within the past ten years, has the applicant been convicted of any misdemeanor related to the conduct of the applicant’s business?
A34: 12. Within the past ten years, has the applicant been convicted of any misdemeanor for any financial or fraud related crime?
A35: Provide a letter of explanation if you responded "Yes" to any of the questions above.
A36: File Name: | D36: Cert & Legal Explanation | L36: Letter of explanation for any "Yes" answers or red shaded items above. | AF36: Uploaded to HCD?
A39: Printed Name | K39: Title of Signatory | U39: Signature | AJ39: Date

Sheet Applicant Documents
A1: Applicant Documents | AK1: =CoverPage!B11 -> 2022-02-01
A2: Certifications & Legal Disclosure
A3: A completed and signed Certification is required for each Joint Applicant. Each Joint Applicant must sign an individual Certification form. A completed and signed Legal Disclosure is also required for each Joint Applicant. The hard copy Certifications & Legal Disclosure should be submitted with the application as detailed in the NOFA.
A4: Resolutions
A5: Applicant may use their own Resolution format as long as it contains ALL of the authorizations as in the sample. The person attesting to the resolution signing cannot be the same person authorized to execute the documents in the name of the applicant. If more than one authorized signatory is identified, state whether both signatories are required or only one signatory is required to submit and execute Program docs. If the application is being signed by a designee of the authorized signatory, the applicant must also submit a designee letter or other proof of signing authority.
A6: A resolution is required of each Joint Applicant - both private and public entities. A sample resolution template is available on the Homekey website.
A7: Organizational Documents
A8: Organizational documents are required for all Applicants except Governmental entities are not required.
A9: Submit organizational documents supporting the Resolution submitted with the application.
A10: Corporation organizational documents
A11: Articles of Incorporation (Corp. Code §154, 200 and 202) as certified by the CA Secretary of State. Bylaws and any amendments thereto (Corp. Code §207(b), 211 and 212) Certificate of Amendment of Articles of Incorporation (Corp. Code §900-910 (general stock), §5810-5820 (public benefit and religious corporations), §7810-7820 (mutual benefit corporations), or §12500-12510 (general cooperative corporations)) as applicable. Restated Articles of Incorporation (Corp. Code §901, 906, 910 (general stock), §5811, 5815, 5819 (public benefit and religious corporations), §7811, 7815 and 7819 (mutual benefit corporations) and §12501, 12506 and 12510 (general cooperative corporations)) as applicable. Statement of Information (CA Secretary of State form SI-100 or SI-200) Shareholder Agreements (Corp. Code §186) if applicable. Certificate of Good Standing certified by Secretary of State.
A12: Limited Liability Company
A13: Articles of Organization (CA Secretary of State form LLC-1) Certificate of Amendment (CA Secretary of State form LLC-2) if applicable Restated Articles of Organization (CA Secretary of State form LLC-10) if applicable Certificate of Correction (CA Secretary of State form LLC-11) if applicable Statement of Information (CA Secretary of State form LLC-12 or LLC-12NC) Operating Agreement (Corp. Code §17707.02(s) and 17701.10) Certificate of Good Standing certified by Secretary of State
A14: Limited Partnership
A15: Certificate of Limited Partnership (CA Secretary of State form LP-1) Amendment to Certificate of Limited Partnership (CA Secretary of State form LP-2) if applicable. Certificate of Correction (CA Secretary of State form LP-2) if applicable. Limited Partnership Agreement (CA Corp. Code §15901.02(x) and 15901.10) Certificate of Good Standing certified by Secretary of State.
A16: Any other CA Secretary of State filings applicable to revivals, conversions or mergers.
A17: Organizational Chart
A18: The Organizational chart must depict the organizational structure of the entities in relation to the applicant.
A19: Signature Block
A20: All Applicants must submit a Signature Block in a Microsoft Word Document that will be used in the HCD legal documents such as the Standard Agreement.
A21: Payee Data Record STD-204 or Taxpayer Identification Number (TIN)
A22: The TIN must be submitted by all governmental entity Applicants. All other Applicants must submit the STD-204 Payee Data Record. Available on the Homekey website.

Sheet Supportive Services Plan
A1: §300(iii) Supportive Services Plan (SSP) | AJ1: =CoverPage!B11 -> 2022-02-01
A2: Homekey applications must include an initial plan for providing supportive services based on the anticipated needs of the Target Population and any proposed sub-populations to be served by the Project. The checklist below shall serve as a guide to ensure your SSP is complete. | AM2: Attendant care
A3: Part I. | E3: Tenant Selection | AM3: Educational services
E4: Section 1: Tenant Selection Criteria | AM4: Legal assistance
E5: Section 2: Referrals
E6: Section 3: Housing First Certification §501
A7: Part II. | E7: Supportive Services Detail | AM7: Life skills training
E8: Section 1: Supportive Services Provider Information | AM8: Linkage to out-placements
E9: Section 2: Supportive Services Chart | AM9: Medication management
E10: Section 3: Supportive Services Coordination
A11: Part III. | E11: Staffing | AM11: Peer support & advocacy
E12: Section 1a: Staffing Description | AM12: Representative payee
E13: Section 1b: Staffing Chart | AM13: Social & rec activities
E14: Section 2: Staffing Ratios
A15: Part IV. | E15: Supportive Services Budget
A16: Part V. | E16: Property Management Plans and Tenant Selection
E17: Section 1: Property Management Plans and Tenant Selection
A18: Part VI. | E18: Measurable Outcomes and Plan for Evaluation
E19: Section 1: Measurable Outcomes
E20: Section 2: Plan for Evaluation
A21: Part I. Tenant Selection
A22: §502 asks for a detailed description of the Tenant Selection process. Using the titled sections below, the narrative should be as specific as possible, delineating the roles of property management and the support service provider and how these functions will be coordinated. Your description should clearly and conclusively document processes to ensure compliance with the Homekey Round 2 NOFA for Tenant Selection and Housing First Practices.
A23: Section 1: Tenant Selection Criteria
A24: Target Population and Eligibility Criteria
A25: a. Do you use Housing First Practices?
A26: b. Describe the criteria that will be used to ensure that tenants are eligible to occupy the Homekey Assisted Units.
A28: c. Description of the Target Population to be served, and identification of any additional subpopulation target or occupancy preference for the Project. (all sub-population targeting must be approved by HCD prior to standard agreement issuance and must be consistent with federal and state fair housing requirements).
A30: d. Describe any additional eligibility criteria other than those indicated above, i.e., information needed to determine if the tenant can comply with lease terms. NOTE: Selection criteria designed to assess anything other than the ability to comply with lease terms generally run afoul of fair housing laws designed to protect equal access to housing for people with disabilities. See Between the Lines, A Question and Answer Guide on Legal Issues in Supportive Housing Chapter 4.
A32: e. Identify all disclosures that will be provided to applicants/tenants. Example: Megan's Law disclosures.
A34: Section 2: Referrals
A35: The following addresses the required use of the Coordinated Entry System (CES) for all referrals into Homekey Assisted Units or an alternate comparable prioritization system for those At Risk of Homelessness based on greatest need. Note that use of standard waiting lists is prohibited, in that both of these systems must prioritize referrals based on highest acuity needs, rather than first-come first served.
A36: a. Describe how the local CES will be used to fill Homekey Assisted Units based on the use of a standardized assessment tool which prioritizes those with the highest need and the most barriers to housing retention. Include the CES agency’s name, primary staff person’s name, and contact information. If the local CES is not yet operational, describe when it'll be established and the plan to use it.
A38: b. If using a separate comparable prioritization system than CES to refer persons At Risk of Homelessness describe that system. All referral protocols for Homekey Assisted Units must be developed in collaboration with the local CoC and implemented consistent with the requirements set forth in the Homekey NOFA.
A40: Section 3: Housing First Certification §501
A41: The Eligible Applicant shall certify to employ the core components of Housing First, as set forth at Welfare and Institutions Code §8255, in its property management and tenant selection practices. Complete the checklist below to certify compliance with Housing First.
A42: Tenant Screening
A43: 1. If the project cannot serve someone, it works through the coordinated entry process to ensure that those individuals or families have access to housing and services elsewhere.
A44: 2. The project does everything possible not to reject an individual or family based on poor credit or financial history, poor or lack of rental history, minor criminal convictions, or behaviors that are interpreted as indicating a lack of “housing readiness.”
A45: 3. Access to the project is not contingent on sobriety, minimum income requirements, lack of a criminal record, completion of treatment, participation in services, or any other unnecessary condition not imposed by the terms of the funding itself.
A46: 4. People with disabilities are offered clear opportunities to request reasonable accommodations within applications and screening processes and during tenancy. Building and units include physical features that accommodate disabilities.
A47: Housing-Based Voluntary Services
A48: 1. If serving youth experiencing homelessness, services use a positive youth development model and culturally competent services to engage with tenants.
A49: 2. Services are informed by a harm-reduction philosophy that recognizes that substance use/ addiction are a part of some tenants’ lives. Tenants are engaged in non-judgmental communication regarding substance use and are offered education regarding safer practices and how to avoid risky behaviors.
A50: 3. Case managers and service coordinators who are trained in and actively employ evidence-based practices for client engagement, including, but not limited to, motivational interviewing and client-centered counseling.
A51: 4. Participation in services or compliance with service plans are not conditions of tenancy but are reviewed with tenants and regularly offered as a resource to tenants. Housing and service goals and plans are highly tenant driven.
A52: 5. Supportive services emphasize engagement and problem-solving over therapeutic goals.
A53: Housing Permanency
A54: 1. Substance use in and of itself, without other lease violations, is not considered a reason for eviction.
A55: 2. Tenants in supportive housing are given reasonable flexibility in paying their share of rent on time and offered special payment arrangements for rent arrears and/or assistance with financial management, including representative payee arrangements.
A56: 3. Every effort is made to provide a tenant the opportunity to transfer from one housing situation, program, or project to another if tenancy is in jeopardy. Whenever possible, eviction back into homelessness is avoided.
A57: 4. Program Requires Housing Providers to Provide Tenants with Leases and Reflects Tenants’ Rights & Responsibilities Of Tenancy Under CA Law (including eviction protections).
A58: Part II. Supportive Services Detail
A59: Section 1: Supportive Services Provider Information
A60: If already identified, list the supportive service provider (s) for the Target Population and any proposed sub-populations to be served by the Project. If more than one Provider will be offering services, describe how services will be coordinated.
A61: Provider Name | K61: Populations the Provider will serve | Y61: Services Provider will offer
A69: Describe any known conflicts and/or the mitigation strategy for when Homekey funding or other program requirements conflict with Housing First practices, as applicable.
A71: If your tenants include minor children and/or adult dependents of Homekey Tenants, describe any additional criteria that will be used to ensure applicants are eligible to occupy the Homekey Assisted Units.
A73: Section 2: Supportive Services Chart
A74: Required Services: List and describe all services as required in §300 to be offered to tenants of the Homekey Assisted Units.
A75: Resident Service | F75: Service Description | Q75: Frequency | U75: Hours | X75: Service Provider | AC75: Off-site Service Location
A76: List each service separately | F76: Describe service, including the degree to which services are provided. | Q76: Frequency of services provided | U76: Provide the hours of availability | X76: Provider's Name | AC76: If service is on-site, leave blank. Enter distance, in miles, to off-site service and list resident commuting options. Reasonable access is access that does not require walking more that one-half mile.
A77: Case management
A78: Behavioral health services
A79: Physical health services
A80: Assistance obtaining benefits and essential documentation
A81: Education and employment services
A82: Other services, such as housing retention skills, legal assistance, family connection services, etc.
A83: Other Residential Services (specify)
A84: Other Residential Services (specify)
A85: Section 3: Supportive Services Coordination
A86: 1. Describe the accessibility of community services to which you propose linkages, whether they are on-site or in close proximity to the Project, and the frequency, travel time and cost to the tenant for transportation required to access the services to include both public transportation and private transportation services (e.g. van owned by the provider). If available, provide documentation, in the form of Memorandum of Understanding, Memorandum of Agreement, letters of support or contracts demonstrating who will be responsible for ensuring access to services and how accessibility will be accomplished.
A88: 2. Describe how the supportive services will be provided in a manner that is culturally and linguistically competent for persons of different races, ethnicities, sexual orientations, gender identities, and gender expressions. This includes explaining how services will be provided to Homekey tenants who do not speak English, or have other communication barriers, including sensory disabilities, and how communication among the services providers, the property manager and these tenants will be facilitated. Additionally, describe how services will accommodate trauma-based, barriers to services. If available, provide documentation, in the form of Memorandum of Understanding, Memorandum of Agreement, letters of support or contracts demonstrating who will be responsible for ensuring access to services and how accessibility will be accomplished.
A90: Part III. Staffing
A91: Section 1a: Staffing Description
A92: Describe the overall staffing pattern, including the roles and responsibilities for each position listed in the Staffing Chart below. List the target populations served through each position.
A94: Section 1b: Staffing Chart
A95: List all staff positions that will provide services to the tenants of the Homekey Assisted Units. Include any staff positions of partnering organizations who have committed time to the Project. Include the services coordination staff. For each position, list the position title, minimum requirements, the full-time equivalent (FTE), the organization under which the position resides, and the location of the position (on-site or off-site). Do not include staff which serve non-Homekey Units. If a staff position serves both tenants in Homekey and non-Homekey units, include only that portion (i.e., % FTE) of the staff position dedicated to Homekey Assisted Units. Attach a copy of each positions duty statement, if these documents are available.
A96: NOTE: Indicate which staff position will be responsible for Homeless Management Information System data entry and CoC coordination.
A97: Title | E97: Minimum requirements | Z97: Total FTE: | AB97: =SUM(Z99:AC110) -> 0 | AD97: Employing Organization | AJ97: Location
A98: List each staff position | E98: List min. required staff preparation include (education & experience). | Z98: Indicate FTE staff positions for Homekey units (half-time is 0.5) | AD98: List which organization will employ each staff position | AJ98: Select "On-Site" or "Off-Site"
A111: Section 2: Staffing Ratios
A112: 1. Indicate the overall services staffing level for the Project by completing the calculation below.
A113: a. | B113: Total Homekey Assisted Units | AJ113: ='Award, Match, and Revenue'!U25 -> 0
A114: b. | B114: Total FTE Service Staff from the Staffing Chart for the Homekey Assisted Units - Provide only the number of ongoing direct service staff positions that will provide services to the tenants of the Homekey Assisted Units, (for example, case manager, psychiatric nurse, services coordinator, etc). Do not include supervisors, peer support positions, or HMIS Administration positions.
A115: c. | B115: Number of Homekey units per FTE Staff Person (a÷b) | AJ115: =IF(AJ114=0,0,AJ113/AJ114) -> 0
A116: 2. Complete case manager staffing ratio chart to show how many staff are assigned per client (for example 2:1, 3:1, etc.). Include all case management.
A117: Population Type: | G117: Chronically Homeless | Q117: Homeless | AB117: At-Risk of Homelessness
A118: Case Manager Ratio
A119: Part IV. Supportive Services Budget
A120: Provide a line item supportive services budget for the Project using the format below. Complete both income and expense portions of the budget on a yearly basis. Include all costs associated with implementing your SSP, including any in-kind services. Include income and expenses for all staff positions and partnering organizations who have committed time to the Project. Total expenses should equal total income. Add expense item categories & lines as necessary. Don't include costs associated with providing services in non-Homekey Assisted Units. If costs are associated with both Homekey & non-Homekey Assisted Units, include only the Homekey Assisted Units portion.
A121: Income Source/Program Name | L121: Amount | P121: Type | Y121: Funding Status | AH121: % of Total Budget
AH122: =IF($L$126=0,0,L122/$L$126) -> 0
AH123: =IF($L$126=0,0,L123/$L$126) -> 0
AH124: 0
AH125: 0
A126: Total Revenue | L126: =SUM(L122:O125) -> 0 | AH126: =IF($L$126=0,0,L126/$L$126) -> 0
A127: Expense Item | L127: Amount | P127: Type | Y127: Funding Status | AH127: % of Total Budget
A128: Staff Salaries: List by title of position. (This list must match the Staffing Chart above.)
A129: =A99 -> 0 | I129: FTE: | AH129: =IF($L$158=0,0,L129/$L$158) -> 0
A130: =A100 -> 0 | I130: FTE: | AH130: 0
A131: 0 | I131: FTE: | AH131: 0
A132: =A102 -> 0 | I132: FTE: | AH132: 0
A133: 0 | I133: FTE: | AH133: 0
A134: 0 | I134: FTE: | AH134: 0
A135: 0 | I135: FTE: | AH135: 0
A136: 0 | I136: FTE: | AH136: 0
A137: 0 | I137: FTE: | AH137: 0
A138: 0 | I138: FTE: | AH138: 0
A139: 0 | I139: FTE: | AH139: 0
A140: 0 | I140: FTE: | AH140: 0
A141: Fringe Benefits | AH141: 0
A142: Total Staff Expenses | L142: =SUM(L129:O141) -> 0 | AH142: 0
A143: Tenant Transportation (per SSP) | AH143: 0
A144: Staff training (per SSP) | AH144: 0
A145: Equipment | AH145: 0
A146: Supplies | AH146: 0
A147: Travel | AH147: 0
A148: Office Rent/Occupancy Costs (don't include rent/leasing costs for SH units) | AH148: 0
A149: Training | AH149: 0
A150: Consultants: List by Function | AH150: 0
A151: Subcontractors/Partners-list by Entity/Service type | AH151: 0
A152: Other Expenses: (type in expense description) | AH152: =IF($L$158=0,0,L152/$L$158) -> 0
A153: Other Expenses: (type in expense description) | AH153: 0
A154: Other Expenses: (type in expense description) | AH154: 0
A155: Other Expenses: (type in expense description) | AH155: =IF($L$158=0,0,L155/$L$158) -> 0
A156: Other Expenses: (type in expense description) | AH156: =IF($L$158=0,0,L156/$L$158) -> 0
A157: Other Expenses: (type in expense description) | AH157: =IF($L$158=0,0,L157/$L$158) -> 0
A158: Total Expenses | L158: =SUM(L142:O157) -> 0 | AH158: =IF($L$158=0,0,L158/$L$158) -> 0
A159: Part V. Property Management Plans and Tenant Selection
A160: Section 1: Property Management Plans and Tenant Selection
A161: The Property Management Plan and tenant selection policies submitted with the Homekey application will be evaluated for the following consistent with state Housing First requirements. These documents must identify, describe, and utilize Housing First and low-barrier tenant selection processes that prioritize those with the highest needs for available housing. The descriptions of the use of Housing First and tenant selection in this SSP must be consistent with the Property Management Plan and the tenant selection policies. The Property Management Plan and tenant selection policies should address the following and be consistent with state Housing First requirements, as well as and other Homekey program requirements: 1. Applicant eligibility and screening standards 2. Confidentiality 3. Substance abuse policy 4. Communication between property manager and supportive services staff 5. Eviction policies and eviction prevention procedures 6. Process for assisting tenants to apply for different forms of cash and non-cash benefits to aid the household in retaining their housing, if needed 7. How applicants and residents will be assisted in making reasonable accommodation requests, in coordination with the services provider and persuasive to outside entities, such as Housing Authorities, to ensure that persons with disabilities have access to and can maintain housing 8. Policies and practices to facilitate Voluntary Moving On strategies 9. Appeal and Grievance Procedures
A162: File Name | D162: Property Management Plan | L162: Submit Property Management Plan and Tenant Selection Policies | AE162: Uploaded to HCD?
A163: Part VI. Measurable Outcomes and Plan for Evaluation
A164: Specific target populations will likely have varying outcomes and evaluation strategies. List outcomes and evaluations plans specific to each target population.
A165: Section 1: Measurable Outcomes
A166: Outcomes are what you expect to happen for the people served by your Project. Outcomes are sometimes called results. Outcome objectives are time-specific measurable goals that identify how you know if you are achieving your desired results. Outcome objectives are sometimes called outcome benchmarks or indicators. Categorize the outcomes for your Project into the following three categories:
A167: Category | M167: Outcomes | Z167: Outcome Objectives
A168: Residential Stability: Tenants maintain permanent housing (see examples in cell comments to the right)
A169: Increased Skills and/or Income: Tenants gain job-related skills, participate in job-related training and/or education, gain stipend part-time or full-time supported employment, gain access to mainstream service/income support Programs for which they are eligible (see examples in cell comments to the right)
A170: Greater Self- Determination: Tenants gain daily living skills and ability to plan and advocate for themselves to maximize independence and self-sufficiency (see examples in cell comments to the right)
A171: Other (specify)
A172: Section 2: Plan for Evaluation
A173: Describe your evaluation plan, including how you intend to collect, track and analyze data on the effectiveness of your Project, including the outcomes Projected above. Indicate who will analyze the data and perform your Program evaluation. (e.g., staff, consultant, etc.).

Sheet Local & Env Verification
A1: Local Jurisdiction and NEPA Responsible Entity Verification (if applicable) | AJ1: =CoverPage!B11 -> 2022-02-01
A2: Applicant: Submit this form to the agency or department of local government responsible for administration of the items listed. This form may be submitted to more than one agency or department if necessary. If the NEPA Responsible Entity is not a local government (e.g. State of Calif. HOME Program, USDA RD), also submit a copy of this form to the appropriate NEPA Responsible Entity. If an item is not required, indicate the reason in the box below. Complete both Sections 1 & 2.
A3: Project Applicant:
A4: Applicant Address:
A5: Applicant City:
A6: Project Name:
A7: Project Address/site:
A8: Project City:
A9: Project County:
A10: Assessor Parcel Numbers (APNs):
A11: Section 1
A12: Local jurisdiction or NEPA Responsible Entity: The Applicant named above has submitted an application to the State Dept. of Housing and Community Development (the Department) requesting funding for the project named above, under the Homekey program. Projects submitted for program funding are subject to a competitive rating process. Project readiness is a component of that process. Verification of items listed below will be used in evaluating Homekey applications.
X13: Not Required for this Project | AC13: Final date of Public Comment Period | AH13: Approved Date
A14: All Environmental Clearances (CEQA and NEPA) necessary to begin construction are either final approved or unnecessary: | U14: CEQA
U15: NEPA
A16: Specify in the box below, items not required and explain why (include documentation, if applicable):
A17: Section 2
A19: Note: Any project using Homekey funds for any of the purposes listed in the Homekey NOFA is deemed consistent with “local plan, standard, or requirement, and any applicable coastal plan, local or otherwise,” and “allowed as a permitted use, within the zone in which the structure is located, and shall not be subject to a conditional use permit, discretionary permit, or any other discretionary reviews or approvals.” (Health and Safety Code 50675.1.3 (i))
AC20: Not Required for this Project | AH20: Verified as Complete and date completed
A21: All necessary land use approvals or entitlements necessary prior to issuance of a building permit, including any required discretionary approvals, such as site plan or design review.
A22: Specify in the box below, items not required and explain why (include documentation, if applicable):
A24: Project Applicant has submitted a complete application to the relevant local authorities for land use approval under a nondiscretionary local approval process, where the application has been neither approved or disapproved. A nondiscretionary local approval process is one that includes little or no subjective judgement by the public official and is limited to ensuring that the proposed development meets a set of objective zoning, design review and/or subdivision standards in effect at the time the application is submitted to the local government. A “nondiscretionary local approval process” includes Streamlined Ministerial Approval Processing under to Chapter 366, Statutes of 2017 (SB 35), By-Right Processing for Permanent Supportive Housing under Chapter 753, Statutes of 2018 (AB 2162), housing element law (Government Code Section 65583.2(i)), or other local process that meets the definition of non-discretionary approval process.
A25: Projects located within the boundaries of an incorporated city, the city shall make the necessary determinations, and for Projects located in the unincorporated areas of a county, the county shall make the necessary determinations. The appropriate entity shall sign below.
A26: Dated:
A27: Statement completed by:
A28: Signature:
A29: Title:
A30: Agency or Department Name:
A31: Agency or Department Address:
A32: Agency or Department Phone:

Sheet Award, Match, and Revenue
A1: §205 Maximum Program Award, Capital Funding Match, and Rent/Subsidy Revenue
A2: Doors at Acquisition | D2: ="Proposed Units for "&Overview!S35& " Project" -> Proposed Units for Project | V2: =CoverPage!B11 -> 2022-02-01
D3: =IF(Overview!E31="","",Overview!E31) ->  | I3: Monthly Unit Rent | M3: Subsidy Program #1 Name | O3: Subsidy Program #2 Name | Q3: Target Population - Homekey Assisted Units (Article VII) | V3: =IF(C25>=X25,"Maximum Capital Award (Baseline and Additional Contribution) Based on "&A2,"Maximum Capital Award (Baseline and Additional Contribution) Based on "&D2) -> Maximum Capital Award (Baseline and Additional Contribution) Based on Doors at Acquisition
A4: Bdrm size | B4: Number of Doors at Acquisition | C4: Baseline Award based on Units and Bdrm Size at Acquisition | D4: Bdrm size | E4: Number of Units Proposed | F4: Unit Size (Square Feet) | G4: Income Limit AMI | H4: Mngr Units | I4: Restricted | J4: Proposed Rent for Restricted Units | K4: Unrestricted | L4: Monthly Utility Allowance1 | M4: Subsidy Units | N4: Monthly Rent Subsidy Amount | O4: Subsidy Units | P4: Monthly Rent Subsidy Amount | Q4: At-Risk of Homelessness Units | R4: Chronically Homeless Units | S4: Homeless Units | T4: Homeless Youth or Youth at Risk of Homelessness Units | U4: Total Assisted Units | V4: Baseline Award based on Units and Proposed Population Served | W4: Baseline Award based on Units and Proposed Bdrm Size | X4: Maximum Baseline Award based on Proposed Project | Y4: Total Unit Square Feet | Z4: % of Total Unit Square Feet | AA4: Unit's Pro-Rated Share of Project Cost Based on Square Feet | AB4: Non-Assisted Units Project Costs (Applicant must fund) | AC4: Project Cost Assisted Units + Manager Units | AD4: Adjusted Award lesser of Assisted Unit Project Cost and Baseline | AE4: Funding Gap on Assisted Units | AF4: Per Unit Funding Gap | AG4: Per Unit Local Match (Lesser of Per Unit Funding Gap and $100,000) | AH4: Additional Per Unit Award (Equal to Local Match) | AI4: =IF($C$25>$X$25,"Maximum Match (Doors at Acquisition x Per Unit Amount)","Maximum Match (Proposed Assisted Units x Per Unit Amount)") -> Maximum Match (Proposed Assisted Units x Per Unit Amount) | AJ4: Maximum Additional Award (Equal to Maximum Local Match) | AK4: Maximum Capital Award | AL4: Total Restricted Units | AM4: Total Unrestricted Units | AN4: Total Net Monthly Restricted Rent | AO4: Total Net Monthly Proposed Rent | AP4: Total Monthly Unrestricted Rent | AQ4: ="Mo. Subsidy Revenue "&M3 -> Mo. Subsidy Revenue Subsidy Program #1 Name | AR4: ="Mo. Subsidy Revenue "&O3 -> Mo. Subsidy Revenue Subsidy Program #2 Name | AS4: Look up field
C5: =B5*IF(A5="",0,IF(OR(A5=0,A5=1),150000,IF(A5=2,175000,IF(A5>=3,200000,0)))) -> 0 | I5: =IF(OR(Overview!$S$35="Interim Housing in Perpetuity",Overview!$S$35="Interim Housing with Plan to Convert to Permanent"),0,IFERROR(INDEX('Rent Limits'!$A$1:$O$1045,MATCH(AS5,'Rent Limits'!$A$1:$A$1045,0),MATCH(D5,'Rent Limits'!$A$1:$O$1,0)),0)) -> 0 | U5: =IF(AND(G5<=0.8,G5<>"None",G5<>""),SUM(Q5:T5),0) -> 0 | V5: =IF(OR(G5>0.8,G5="None",G5="",D5>=3),0,(R5*200000)+(T5*175000)) -> 0 | W5: =IF(OR(G5>0.8,G5="None",G5=""),0,IF(D5>=3,200000*U5,(U5-R5-T5)*IF(D5="",0,IF(OR(D5=0,D5=1),150000,IF(D5=2,175000)))))+IF(D5>=3,200000*H5,IF(D5="",0,IF(OR(D5=0,D5=1),150000*H5,IF(D5=2,175000*H5)))) -> 0 | X5: =V5+W5 -> 0 | Y5: =E5*F5 -> 0 | Z5: =IFERROR(Y5/$Y$25,0) -> 0 | AA5: =IFERROR($AA$26*Z5,0) -> 0 | AB5: =AA5-AC5 -> 0 | AC5: =IFERROR((U5+H5)/E5*AA5,0) -> 0 | AD5: =IF($C$25>$X$25,MIN(C5,AC5),MIN(X5,AC5)) -> 0 | AE5: =AC5-AD5 -> 0 | AF5: =IFERROR(IF($C$25>$X$25,AE5/B5,AE5/(H5+U5)),0) -> 0 | AG5: =MIN(AF5/2,100000) -> 0 | AH5: =AG5 -> 0 | AI5: =IF($C$25>$X$25,AG5*B5,AG5*(H5+U5)) -> 0 | AJ5: =AI5 -> 0 | AK5: =AD5+AJ5 -> 0 | AL5: =IF(OR(G5="",G5="none"),0,E5) -> 0 | AM5: =IF(OR(G5="",G5="none"),E5,0) -> 0 | AN5: =(I5-L5)*AL5 -> 0 | AO5: =(J5-L5)*AL5 -> 0 | AP5: =K5*AM5 -> 0 | AQ5: =N5*M5 -> 0 | AR5: =P5*O5 -> 0 | AS5: =CONCATENATE($D$3,G5) -> 
C6: =B6*IF(A6="",0,IF(OR(A6=0,A6=1),150000,IF(A6=2,175000,IF(A6>=3,200000,0)))) -> 0 | I6: =IF(OR(Overview!$S$35="Interim Housing in Perpetuity",Overview!$S$35="Interim Housing with Plan to Convert to Permanent"),0,IFERROR(INDEX('Rent Limits'!$A$1:$O$1045,MATCH(AS6,'Rent Limits'!$A$1:$A$1045,0),MATCH(D6,'Rent Limits'!$A$1:$O$1,0)),0)) -> 0 | U6: =IF(AND(G6<=0.8,G6<>"None",G6<>""),SUM(Q6:T6),0) -> 0 | V6: =IF(OR(G6>0.8,G6="None",G6="",D6>=3),0,(R6*200000)+(T6*175000)) -> 0 | W6: =IF(OR(G6>0.8,G6="None",G6=""),0,IF(D6>=3,200000*U6,(U6-R6-T6)*IF(D6="",0,IF(OR(D6=0,D6=1),150000,IF(D6=2,175000)))))+IF(D6>=3,200000*H6,IF(D6="",0,IF(OR(D6=0,D6=1),150000*H6,IF(D6=2,175000*H6)))) -> 0 | X6: =V6+W6 -> 0 | Y6: =E6*F6 -> 0 | Z6: =IFERROR(Y6/$Y$25,0) -> 0 | AA6: =IFERROR($AA$26*Z6,0) -> 0 | AB6: =AA6-AC6 -> 0 | AC6: =IFERROR((U6+H6)/E6*AA6,0) -> 0 | AD6: =IF($C$25>$X$25,MIN(C6,AC6),MIN(X6,AC6)) -> 0 | AE6: =AC6-AD6 -> 0 | AF6: =IFERROR(IF($C$25>$X$25,AE6/B6,AE6/(H6+U6)),0) -> 0 | AG6: =MIN(AF6/2,100000) -> 0 | AH6: =AG6 -> 0 | AI6: =IF($C$25>$X$25,AG6*B6,AG6*(H6+U6)) -> 0 | AJ6: =AI6 -> 0 | AK6: =AD6+AJ6 -> 0 | AL6: 0 | AM6: 0 | AN6: 0 | AO6: 0 | AP6: 0 | AQ6: 0 | AR6: 0
C7: 0 | I7: =IF(OR(Overview!$S$35="Interim Housing in Perpetuity",Overview!$S$35="Interim Housing with Plan to Convert to Permanent"),0,IFERROR(INDEX('Rent Limits'!$A$1:$O$1045,MATCH(AS7,'Rent Limits'!$A$1:$A$1045,0),MATCH(D7,'Rent Limits'!$A$1:$O$1,0)),0)) -> 0 | U7: 0 | V7: 0 | W7: 0 | X7: 0 | Y7: 0 | Z7: 0 | AA7: 0 | AB7: 0 | AC7: 0 | AD7: 0 | AE7: 0 | AF7: 0 | AG7: 0 | AH7: 0 | AI7: 0 | AJ7: 0 | AK7: 0 | AL7: 0 | AM7: 0 | AN7: 0 | AO7: 0 | AP7: 0 | AQ7: 0 | AR7: 0
C8: 0 | I8: =IF(OR(Overview!$S$35="Interim Housing in Perpetuity",Overview!$S$35="Interim Housing with Plan to Convert to Permanent"),0,IFERROR(INDEX('Rent Limits'!$A$1:$O$1045,MATCH(AS8,'Rent Limits'!$A$1:$A$1045,0),MATCH(D8,'Rent Limits'!$A$1:$O$1,0)),0)) -> 0 | U8: 0 | V8: 0 | W8: 0 | X8: 0 | Y8: 0 | Z8: 0 | AA8: 0 | AB8: 0 | AC8: 0 | AD8: 0 | AE8: 0 | AF8: 0 | AG8: 0 | AH8: 0 | AI8: 0 | AJ8: 0 | AK8: 0 | AL8: 0 | AM8: 0 | AN8: 0 | AO8: 0 | AP8: 0 | AQ8: 0 | AR8: 0
C9: 0 | I9: =IF(OR(Overview!$S$35="Interim Housing in Perpetuity",Overview!$S$35="Interim Housing with Plan to Convert to Permanent"),0,IFERROR(INDEX('Rent Limits'!$A$1:$O$1045,MATCH(AS9,'Rent Limits'!$A$1:$A$1045,0),MATCH(D9,'Rent Limits'!$A$1:$O$1,0)),0)) -> 0 | U9: 0 | V9: 0 | W9: 0 | X9: 0 | Y9: 0 | Z9: 0 | AA9: 0 | AB9: 0 | AC9: 0 | AD9: 0 | AE9: 0 | AF9: 0 | AG9: 0 | AH9: 0 | AI9: 0 | AJ9: 0 | AK9: 0 | AL9: 0 | AM9: 0 | AN9: 0 | AO9: 0 | AP9: 0 | AQ9: 0 | AR9: 0
C10: 0 | I10: =IF(OR(Overview!$S$35="Interim Housing in Perpetuity",Overview!$S$35="Interim Housing with Plan to Convert to Permanent"),0,IFERROR(INDEX('Rent Limits'!$A$1:$O$1045,MATCH(AS10,'Rent Limits'!$A$1:$A$1045,0),MATCH(D10,'Rent Limits'!$A$1:$O$1,0)),0)) -> 0 | U10: 0 | V10: 0 | W10: 0 | X10: 0 | Y10: 0 | Z10: 0 | AA10: 0 | AB10: 0 | AC10: 0 | AD10: 0 | AE10: 0 | AF10: 0 | AG10: 0 | AH10: 0 | AI10: 0 | AJ10: 0 | AK10: 0 | AL10: 0 | AM10: 0 | AN10: 0 | AO10: 0 | AP10: 0 | AQ10: 0 | AR10: 0
C11: 0 | I11: =IF(OR(Overview!$S$35="Interim Housing in Perpetuity",Overview!$S$35="Interim Housing with Plan to Convert to Permanent"),0,IFERROR(INDEX('Rent Limits'!$A$1:$O$1045,MATCH(AS11,'Rent Limits'!$A$1:$A$1045,0),MATCH(D11,'Rent Limits'!$A$1:$O$1,0)),0)) -> 0 | U11: 0 | V11: 0 | W11: 0 | X11: 0 | Y11: 0 | Z11: 0 | AA11: 0 | AB11: 0 | AC11: 0 | AD11: 0 | AE11: 0 | AF11: 0 | AG11: 0 | AH11: 0 | AI11: 0 | AJ11: 0 | AK11: 0 | AL11: 0 | AM11: 0 | AN11: 0 | AO11: 0 | AP11: 0 | AQ11: 0 | AR11: 0
C12: 0 | I12: =IF(OR(Overview!$S$35="Interim Housing in Perpetuity",Overview!$S$35="Interim Housing with Plan to Convert to Permanent"),0,IFERROR(INDEX('Rent Limits'!$A$1:$O$1045,MATCH(AS12,'Rent Limits'!$A$1:$A$1045,0),MATCH(D12,'Rent Limits'!$A$1:$O$1,0)),0)) -> 0 | U12: 0 | V12: 0 | W12: 0 | X12: 0 | Y12: 0 | Z12: 0 | AA12: 0 | AB12: 0 | AC12: 0 | AD12: 0 | AE12: 0 | AF12: 0 | AG12: 0 | AH12: 0 | AI12: 0 | AJ12: 0 | AK12: 0 | AL12: 0 | AM12: 0 | AN12: 0 | AO12: 0 | AP12: 0 | AQ12: 0 | AR12: 0
C13: 0 | I13: =IF(OR(Overview!$S$35="Interim Housing in Perpetuity",Overview!$S$35="Interim Housing with Plan to Convert to Permanent"),0,IFERROR(INDEX('Rent Limits'!$A$1:$O$1045,MATCH(AS13,'Rent Limits'!$A$1:$A$1045,0),MATCH(D13,'Rent Limits'!$A$1:$O$1,0)),0)) -> 0 | U13: 0 | V13: 0 | W13: 0 | X13: 0 | Y13: 0 | Z13: 0 | AA13: 0 | AB13: 0 | AC13: 0 | AD13: 0 | AE13: 0 | AF13: 0 | AG13: 0 | AH13: 0 | AI13: 0 | AJ13: 0 | AK13: 0 | AL13: 0 | AM13: 0 | AN13: 0 | AO13: 0 | AP13: 0 | AQ13: 0 | AR13: 0
C14: 0 | I14: =IF(OR(Overview!$S$35="Interim Housing in Perpetuity",Overview!$S$35="Interim Housing with Plan to Convert to Permanent"),0,IFERROR(INDEX('Rent Limits'!$A$1:$O$1045,MATCH(AS14,'Rent Limits'!$A$1:$A$1045,0),MATCH(D14,'Rent Limits'!$A$1:$O$1,0)),0)) -> 0 | U14: 0 | V14: 0 | W14: 0 | X14: 0 | Y14: 0 | Z14: 0 | AA14: 0 | AB14: 0 | AC14: 0 | AD14: 0 | AE14: 0 | AF14: 0 | AG14: 0 | AH14: 0 | AI14: 0 | AJ14: 0 | AK14: 0 | AL14: 0 | AM14: 0 | AN14: 0 | AO14: 0 | AP14: 0 | AQ14: 0 | AR14: 0
C15: 0 | I15: =IF(OR(Overview!$S$35="Interim Housing in Perpetuity",Overview!$S$35="Interim Housing with Plan to Convert to Permanent"),0,IFERROR(INDEX('Rent Limits'!$A$1:$O$1045,MATCH(AS15,'Rent Limits'!$A$1:$A$1045,0),MATCH(D15,'Rent Limits'!$A$1:$O$1,0)),0)) -> 0 | U15: 0 | V15: 0 | W15: 0 | X15: 0 | Y15: 0 | Z15: 0 | AA15: 0 | AB15: 0 | AC15: 0 | AD15: 0 | AE15: 0 | AF15: 0 | AG15: 0 | AH15: 0 | AI15: 0 | AJ15: 0 | AK15: 0 | AL15: 0 | AM15: 0 | AN15: 0 | AO15: 0 | AP15: 0 | AQ15: 0 | AR15: 0
C16: 0 | I16: =IF(OR(Overview!$S$35="Interim Housing in Perpetuity",Overview!$S$35="Interim Housing with Plan to Convert to Permanent"),0,IFERROR(INDEX('Rent Limits'!$A$1:$O$1045,MATCH(AS16,'Rent Limits'!$A$1:$A$1045,0),MATCH(D16,'Rent Limits'!$A$1:$O$1,0)),0)) -> 0 | U16: 0 | V16: 0 | W16: 0 | X16: 0 | Y16: 0 | Z16: 0 | AA16: 0 | AB16: 0 | AC16: 0 | AD16: 0 | AE16: 0 | AF16: 0 | AG16: 0 | AH16: 0 | AI16: 0 | AJ16: 0 | AK16: 0 | AL16: 0 | AM16: 0 | AN16: 0 | AO16: 0 | AP16: 0 | AQ16: 0 | AR16: 0
C17: 0 | I17: =IF(OR(Overview!$S$35="Interim Housing in Perpetuity",Overview!$S$35="Interim Housing with Plan to Convert to Permanent"),0,IFERROR(INDEX('Rent Limits'!$A$1:$O$1045,MATCH(AS17,'Rent Limits'!$A$1:$A$1045,0),MATCH(D17,'Rent Limits'!$A$1:$O$1,0)),0)) -> 0 | U17: 0 | V17: 0 | W17: 0 | X17: 0 | Y17: 0 | Z17: 0 | AA17: 0 | AB17: 0 | AC17: 0 | AD17: 0 | AE17: 0 | AF17: 0 | AG17: 0 | AH17: 0 | AI17: 0 | AJ17: 0 | AK17: 0 | AL17: 0 | AM17: 0 | AN17: 0 | AO17: 0 | AP17: 0 | AQ17: 0 | AR17: 0
C18: 0 | I18: =IF(OR(Overview!$S$35="Interim Housing in Perpetuity",Overview!$S$35="Interim Housing with Plan to Convert to Permanent"),0,IFERROR(INDEX('Rent Limits'!$A$1:$O$1045,MATCH(AS18,'Rent Limits'!$A$1:$A$1045,0),MATCH(D18,'Rent Limits'!$A$1:$O$1,0)),0)) -> 0 | U18: 0 | V18: 0 | W18: 0 | X18: 0 | Y18: 0 | Z18: 0 | AA18: 0 | AB18: 0 | AC18: 0 | AD18: 0 | AE18: 0 | AF18: 0 | AG18: 0 | AH18: 0 | AI18: 0 | AJ18: 0 | AK18: 0 | AL18: 0 | AM18: 0 | AN18: 0 | AO18: 0 | AP18: 0 | AQ18: 0 | AR18: 0
C19: 0 | I19: =IF(OR(Overview!$S$35="Interim Housing in Perpetuity",Overview!$S$35="Interim Housing with Plan to Convert to Permanent"),0,IFERROR(INDEX('Rent Limits'!$A$1:$O$1045,MATCH(AS19,'Rent Limits'!$A$1:$A$1045,0),MATCH(D19,'Rent Limits'!$A$1:$O$1,0)),0)) -> 0 | U19: 0 | V19: 0 | W19: 0 | X19: 0 | Y19: 0 | Z19: 0 | AA19: 0 | AB19: 0 | AC19: 0 | AD19: 0 | AE19: 0 | AF19: 0 | AG19: 0 | AH19: 0 | AI19: 0 | AJ19: 0 | AK19: 0 | AL19: 0 | AM19: 0 | AN19: 0 | AO19: 0 | AP19: 0 | AQ19: 0 | AR19: 0
C20: 0 | I20: =IF(OR(Overview!$S$35="Interim Housing in Perpetuity",Overview!$S$35="Interim Housing with Plan to Convert to Permanent"),0,IFERROR(INDEX('Rent Limits'!$A$1:$O$1045,MATCH(AS20,'Rent Limits'!$A$1:$A$1045,0),MATCH(D20,'Rent Limits'!$A$1:$O$1,0)),0)) -> 0 | U20: 0 | V20: 0 | W20: 0 | X20: 0 | Y20: 0 | Z20: 0 | AA20: 0 | AB20: 0 | AC20: 0 | AD20: 0 | AE20: 0 | AF20: 0 | AG20: 0 | AH20: 0 | AI20: 0 | AJ20: 0 | AK20: 0 | AL20: 0 | AM20: 0 | AN20: 0 | AO20: 0 | AP20: 0 | AQ20: 0 | AR20: 0
C21: 0 | I21: =IF(OR(Overview!$S$35="Interim Housing in Perpetuity",Overview!$S$35="Interim Housing with Plan to Convert to Permanent"),0,IFERROR(INDEX('Rent Limits'!$A$1:$O$1045,MATCH(AS21,'Rent Limits'!$A$1:$A$1045,0),MATCH(D21,'Rent Limits'!$A$1:$O$1,0)),0)) -> 0 | U21: 0 | V21: 0 | W21: 0 | X21: 0 | Y21: 0 | Z21: 0 | AA21: 0 | AB21: 0 | AC21: 0 | AD21: 0 | AE21: 0 | AF21: 0 | AG21: 0 | AH21: 0 | AI21: 0 | AJ21: 0 | AK21: 0 | AL21: 0 | AM21: 0 | AN21: 0 | AO21: 0 | AP21: 0 | AQ21: 0 | AR21: 0
C22: 0 | I22: =IF(OR(Overview!$S$35="Interim Housing in Perpetuity",Overview!$S$35="Interim Housing with Plan to Convert to Permanent"),0,IFERROR(INDEX('Rent Limits'!$A$1:$O$1045,MATCH(AS22,'Rent Limits'!$A$1:$A$1045,0),MATCH(D22,'Rent Limits'!$A$1:$O$1,0)),0)) -> 0 | U22: 0 | V22: 0 | W22: 0 | X22: 0 | Y22: 0 | Z22: 0 | AA22: 0 | AB22: 0 | AC22: 0 | AD22: 0 | AE22: 0 | AF22: 0 | AG22: 0 | AH22: 0 | AI22: 0 | AJ22: 0 | AK22: 0 | AL22: 0 | AM22: 0 | AN22: 0 | AO22: 0 | AP22: 0 | AQ22: 0 | AR22: 0
C23: 0 | I23: =IF(OR(Overview!$S$35="Interim Housing in Perpetuity",Overview!$S$35="Interim Housing with Plan to Convert to Permanent"),0,IFERROR(INDEX('Rent Limits'!$A$1:$O$1045,MATCH(AS23,'Rent Limits'!$A$1:$A$1045,0),MATCH(D23,'Rent Limits'!$A$1:$O$1,0)),0)) -> 0 | U23: 0 | V23: 0 | W23: 0 | X23: 0 | Y23: 0 | Z23: 0 | AA23: 0 | AB23: 0 | AC23: 0 | AD23: 0 | AE23: 0 | AF23: 0 | AG23: 0 | AH23: 0 | AI23: 0 | AJ23: 0 | AK23: 0 | AL23: 0 | AM23: 0 | AN23: 0 | AO23: 0 | AP23: 0 | AQ23: 0 | AR23: 0
C24: 0 | I24: =IF(OR(Overview!$S$35="Interim Housing in Perpetuity",Overview!$S$35="Interim Housing with Plan to Convert to Permanent"),0,IFERROR(INDEX('Rent Limits'!$A$1:$O$1045,MATCH(AS24,'Rent Limits'!$A$1:$A$1045,0),MATCH(D24,'Rent Limits'!$A$1:$O$1,0)),0)) -> 0 | U24: 0 | V24: 0 | W24: 0 | X24: 0 | Y24: 0 | Z24: 0 | AA24: 0 | AB24: 0 | AC24: 0 | AD24: 0 | AE24: 0 | AF24: 0 | AG24: 0 | AH24: 0 | AI24: 0 | AJ24: 0 | AK24: 0 | AL24: 0 | AM24: 0 | AN24: 0 | AO24: 0 | AP24: 0 | AQ24: 0 | AR24: 0
A25: Total | B25: =SUM(B5:B24) -> 0 | C25: =SUM(C5:C24) -> 0 | E25: =SUM(E5:E24) -> 0 | H25: =SUM(H5:H24) -> 0 | M25: =SUM(M5:M24) -> 0 | O25: =SUM(O5:O24) -> 0 | Q25: =SUM(Q5:Q24) -> 0 | R25: 0 | S25: 0 | T25: 0 | U25: 0 | V25: 0 | W25: 0 | X25: 0 | Y25: 0 | Z25: 0 | AA25: 0 | AB25: 0 | AC25: 0 | AD25: 0 | AE25: 0 | AI25: =SUM(AI5:AI24) -> 0 | AJ25: 0 | AK25: 0 | AL25: 0 | AM25: 0 | AN25: 0 | AO25: 0 | AP25: 0 | AQ25: 0 | AR25: 0
E26: Annual Net Rents | I26: =12*AN25 -> 0 | J26: =12*AO25 -> 0 | K26: =12*AP25 -> 0 | L26: Annual Subsidy Revenue | N26: =AQ25*12 -> 0 | P26: ='Award, Match, and Revenue'!AR25*12 -> 0 | Q26: =IFERROR(Q25/$U$25,0) -> 0 | R26: =IFERROR(R25/$U$25,0) -> 0 | S26: 0 | T26: 0 | U26: 0 | V26: Total Budgeted Development costs from 'Dev Budget' worksheet cell L126 | AA26: ='Dev Budget'!L126 -> 0
A27: File Name: | C27: Utility Allowance | F27: 1Local housing authority document showing current utility allowance chart, with relevant components circled. | L27: Uploaded to HCD?
A29: Homekey Award including Capital (Baseline and Match), Operating Subsidy, Relocation, and Bonuses
A30: File Name: | C30: Appraisal | F30: If land costs will be included in the Development Budget, attach an appraisal dated within 60 days of the application submittal date. | L30: Uploaded to HCD? | R30: Proposed Project Units by Bedroom Size
A31: §205 Capital Award Calculation | N31: HCD Amount | O31: Requested Amount | P31: Actual Amount | R31: Total 0 bedroom units | T31: =SUMIF($D$5:$D$24,0,$E$5:$E$24) -> 0 | U31: =IFERROR(T31/$T$37,0) -> 0
A32: 1. Maximum Homekey Capital Award based on: | F32: =IF(AND(C25>X25,C25>AC25),"Bdrm size of doors at Acquisition",IF(AND(X25>C25,X25>AC25),"Proposed population and proposed bdrm size",IF(AND(AC25>C25,AC25>X25),"Assisted units share of Project Costs",""))) ->  | N32: =AD25 -> 0 | P32: =MIN(N32,O32) -> 0 | R32: Total 1 bedroom units | T32: =SUMIF($D$5:$D$24,1,$E$5:$E$24) -> 0 | U32: =IFERROR(T32/$T$37,0) -> 0
A33: 2. Maximum Homekey Contribution (1:1 match) Award from above cell AJ25 | N33: =AJ25 -> 0 | P33: =MIN(N33,O33) -> 0 | R33: Total 2 bedroom units | T33: =SUMIF($D$5:$D$24,2,$E$5:$E$24) -> 0 | U33: 0
A34: A. Total Maximum Homekey Capital Award (1 + 2) | N34: =SUM(N32:N33) -> 0 | O34: =SUM(O32:O33) -> 0 | P34: =SUM(P32:P33) -> 0 | R34: Total 3 bedroom units | T34: =SUMIF($D$5:$D$24,3,$E$5:$E$24) -> 0 | U34: 0
A35: Capital Award based on how many Assisted Units from above cell U25 | H35: =U25 -> 0 | J35: Total proposed Project units from above cell E25 | N35: =E25 -> 0 | R35: Total 4 bedroom units | T35: =SUMIF($D$5:$D$24,4,$E$5:$E$24) -> 0 | U35: 0
A36: §206 Homekey Operating Subsidy Calculation | N36: Monthly Amount | R36: Total 5 Bedroom units | T36: =SUMIF($D$5:$D$24,5,$E$5:$E$24) -> 0 | U36: 0
A37: i.a. Assisted Units reserved for those experiencing Chronic Homelessness, for Homeless Youth, or for Youth at Risk of Homelessness from above cells R25 + T25 | J37: =R25+T25 -> 0 | K37: Monthly amount per unit | M37: 1400 | N37: =J37*M37 -> 0 | R37: Total proposed units | T37: =SUM(T31:T36) -> 0 | U37: 0
A38: i.b. All other Assisted Units from above cells Q25 + S25 | J38: =Q25+S25 -> 0 | K38: Monthly amount per unit | M38: 1000 | N38: =J38*M38 -> 0
A39: Total qualifying monthly amount per unit | N39: =N37+N38 -> 0 | R39: Assisted Units by Bedroom Size
A40: Operating Subsidy: Maximum Homekey Amount | N40: Annual Amount | R40: Total 0 bedroom units | T40: =SUMIF($D$5:$D$24,0,$U$5:$U$24) -> 0 | U40: =IFERROR(T40/$T$46,0) -> 0
A41: ii. Operating Subsidy Source: 'Operating' worksheet cell C38 | E41: =Operating!C38 -> Operating Subsidy: (specify) | H41: Subsidy term (in years) | K41: Qualifying Homekey subsidy years | M41: =IF(AND(J41>=3,'Application Scoring Criteria'!AK2>=120),3,IF(J41>=4,3,IF(J41>=3,2,0))) -> 0 | N41: =M41*12*N39 -> 0 | R41: Total 1 bedroom units | T41: =SUMIF($D$5:$D$24,1,$U$5:$U$24) -> 0 | U41: =IFERROR(T41/$T$46,0) -> 0
A42: ii. Operating Subsidy Source: 'Operating' worksheet cell C39 | E42: =Operating!C39 -> Operating Subsidy: (specify) | H42: Subsidy term (in years) | K42: Qualifying Homekey subsidy years | M42: =IF(AND(J42>=3,'Application Scoring Criteria'!AK3>=120),3,IF(J42>=4,3,IF(J42>=3,2,0))) -> 0 | N42: =M42*12*N39 -> 0 | R42: Total 2 bedroom units | T42: =SUMIF($D$5:$D$24,2,$U$5:$U$24) -> 0 | U42: 0
A43: iii. Operating Subsidy Need Analysis - sum of negative Net Operating Income from 'Cash Flow' worksheet row 43 and Reserve Deposits from 'Cash Flow' worksheet rows 37 and 38 for the first five years | R43: Total 3 bedroom units | T43: =SUMIF($D$5:$D$24,3,$U$5:$U$24) -> 0 | U43: 0
A44: Operating Subsidy: Need Analysis | D44: Year 1 | F44: Year 2 | H44: Year 3 | J44: Year 4 | L44: Year 5 | N44: Five Year Total | R44: Total 4 bedroom units | T44: =SUMIF($D$5:$D$24,4,$U$5:$U$24) -> 0 | U44: 0
A45: 'Cash Flow' worksheet | D45: =IF('Cash Flow'!D43+'Cash Flow'!D37+'Cash Flow'!D38<0,-('Cash Flow'!D43+'Cash Flow'!D37+'Cash Flow'!D38),0) -> 0 | F45: =IF('Cash Flow'!E43+'Cash Flow'!E37+'Cash Flow'!E38<0,-('Cash Flow'!E43+'Cash Flow'!E37+'Cash Flow'!E38),0) -> 0 | H45: =IF('Cash Flow'!F43+'Cash Flow'!F37+'Cash Flow'!F38<0,-('Cash Flow'!F43+'Cash Flow'!F37+'Cash Flow'!F38),0) -> 0 | J45: =IF('Cash Flow'!G43+'Cash Flow'!G37+'Cash Flow'!G38<0,-('Cash Flow'!G43+'Cash Flow'!G37+'Cash Flow'!G38),0) -> 0 | L45: =IF('Cash Flow'!H43+'Cash Flow'!H37+'Cash Flow'!H38<0,-('Cash Flow'!H43+'Cash Flow'!H37+'Cash Flow'!H38),0) -> 0 | N45: =SUM(D45:M45) -> 0 | R45: Total 5 Bedroom units | T45: =SUMIF($D$5:$D$24,5,$U$5:$U$24) -> 0 | U45: 0
A46: iv. If requesting an operating subsidy, upload a letter of support from the local Continuum of Care (CoC) or Housing Authority confirming the need for an operating subsidy and evidencing other operating funding, such as rental subsidies, were sought for the Project, but the funding isn’t available for this use. | R46: Total Assisted units | T46: =SUM(T40:T45) -> 0 | U46: =IFERROR(T46/$T$37,0) -> 0
A47: File Name: | C47: Op Subsidy Confirmation | F47: A letter template and a list of potential Homekey complementary funding can be found on the Homekey webpage. | L47: Uploaded to HCD?
A48: B. Homekey Operating Subsidy if requested in 'Overview' worksheet cell AK129 (lesser of Need Analysis and Max Homekey Amount) | N48: =IF(Overview!AK129="No",0,MIN(MAX(N41,N42),N45)) -> 0 | P48: =MIN(N48,O48) -> 0
A49: 50% of Relocation Costs if requested on 'Overview' worksheet cell AK128 ('Dev Budget' worksheet cell L31 x .5) | N49: =IF(Overview!AK128="No",0,'Dev Budget'!L31*0.5) -> 0 | P49: =MIN(N49,O49) -> 0
A50: §207 Bonus Award: will Tribal Entity be submitted before May 02, 2022? If Yes, $10,000 bonus award per Assisted unit. | M50: =IF(Overview!AE48="Tribal Entity","Yes","No") -> No | N50: =IF(M50="Yes",(U25+H25)*10000,0) -> 0 | P50: =MIN(N50,O50) -> 0
A51: §207 Bonus Award: will Project’s Assisted units achieve full occupancy within eight months of award date? If Yes, $10,000 bonus award per Assisted unit | N51: =IF(M51="Yes",U25*10000,0) -> 0 | P51: 0
A52: C. Total Other Homekey Award | N52: =SUM(N49:N51) -> 0 | O52: =SUM(O49:O51) -> 0 | P52: =SUM(P49:P51) -> 0
A53: Maximum Homekey Program Award (Capital plus Operating Subsidy plus Other) (A + B + C) | N53: =N34+N52+N48 -> 0 | O53: =O34+O52+O48 -> 0 | P53: =P34+P52+P48 -> 0

Sheet MTSP 50% Income Limits (hidden)
A1: 2021 HOME & NHTF | B1: lim50_21p1 | C1: lim50_21p2 | D1: lim50_21p3 | E1: lim50_21p4 | F1: lim50_21p5 | G1: lim50_21p6 | H1: lim50_21p7 | I1: lim50_21p8
A2: Alameda | B2: 47950 | C2: 54800 | D2: 61650 | E2: 68500 | F2: 74000 | G2: 79500 | H2: 84950 | I2: 90450
A3: Alpine | B3: 28450 | C3: 32500 | D3: 36550 | E3: 40600 | F3: 43850 | G3: 47100 | H3: 50350 | I3: 53600
A4: Amador | B4: 27300 | C4: 31200 | D4: 35100 | E4: 38950 | F4: 42100 | G4: 45200 | H4: 48300 | I4: 51450
A5: Butte | B5: 24400 | C5: 27900 | D5: 31400 | E5: 34850 | F5: 37650 | G5: 40450 | H5: 43250 | I5: 46050
A6: Calaveras | B6: 28600 | C6: 32700 | D6: 36800 | E6: 40850 | F6: 44150 | G6: 47400 | H6: 50700 | I6: 53950
A7: Colusa | B7: 24400 | C7: 27900 | D7: 31400 | E7: 34850 | F7: 37650 | G7: 40450 | H7: 43250 | I7: 46050
A8: Contra Costa | B8: 47950 | C8: 54800 | D8: 61650 | E8: 68500 | F8: 74000 | G8: 79500 | H8: 84950 | I8: 90450
A9: Del Norte | B9: 24400 | C9: 27900 | D9: 31400 | E9: 34850 | F9: 37650 | G9: 40450 | H9: 43250 | I9: 46050
A10: El Dorado | B10: 31750 | C10: 36250 | D10: 40800 | E10: 45300 | F10: 48950 | G10: 52550 | H10: 56200 | I10: 59800
A11: Fresno | B11: 24400 | C11: 27900 | D11: 31400 | E11: 34850 | F11: 37650 | G11: 40450 | H11: 43250 | I11: 46050
A12: Glenn | B12: 24400 | C12: 27900 | D12: 31400 | E12: 34850 | F12: 37650 | G12: 40450 | H12: 43250 | I12: 46050
A13: Humboldt | B13: 24400 | C13: 27900 | D13: 31400 | E13: 34850 | F13: 37650 | G13: 40450 | H13: 43250 | I13: 46050
A14: Imperial | B14: 24400 | C14: 27900 | D14: 31400 | E14: 34850 | F14: 37650 | G14: 40450 | H14: 43250 | I14: 46050
A15: Inyo | B15: 25950 | C15: 29650 | D15: 33350 | E15: 37050 | F15: 40050 | G15: 43000 | H15: 45950 | I15: 48950
A16: Kern | B16: 24400 | C16: 27900 | D16: 31400 | E16: 34850 | F16: 37650 | G16: 40450 | H16: 43250 | I16: 46050
A17: Kings | B17: 24400 | C17: 27900 | D17: 31400 | E17: 34850 | F17: 37650 | G17: 40450 | H17: 43250 | I17: 46050
A18: Lake | B18: 24400 | C18: 27900 | D18: 31400 | E18: 34850 | F18: 37650 | G18: 40450 | H18: 43250 | I18: 46050
A19: Lassen | B19: 25300 | C19: 28900 | D19: 32500 | E19: 36100 | F19: 39000 | G19: 41900 | H19: 44800 | I19: 47700
A20: Los Angeles | B20: 41400 | C20: 47300 | D20: 53200 | E20: 59100 | F20: 63850 | G20: 68600 | H20: 73300 | I20: 78050
A21: Madera | B21: 24400 | C21: 27900 | D21: 31400 | E21: 34850 | F21: 37650 | G21: 40450 | H21: 43250 | I21: 46050
A22: Marin | B22: 63950 | C22: 73100 | D22: 82250 | E22: 91350 | F22: 98700 | G22: 106000 | H22: 113300 | I22: 120600
A23: Mariposa | B23: 24400 | C23: 27900 | D23: 31400 | E23: 34850 | F23: 37650 | G23: 40450 | H23: 43250 | I23: 46050
A24: Mendocino | B24: 25350 | C24: 28950 | D24: 32550 | E24: 36150 | F24: 39050 | G24: 41950 | H24: 44850 | I24: 47750
A25: Merced | B25: 24400 | C25: 27900 | D25: 31400 | E25: 34850 | F25: 37650 | G25: 40450 | H25: 43250 | I25: 46050
A26: Modoc | B26: 24400 | C26: 27900 | D26: 31400 | E26: 34850 | F26: 37650 | G26: 40450 | H26: 43250 | I26: 46050
A27: Mono | B27: 27650 | C27: 31600 | D27: 35550 | E27: 39450 | F27: 42650 | G27: 45800 | H27: 48950 | I27: 52100
A28: Monterey | B28: 35600 | C28: 40700 | D28: 45800 | E28: 50850 | F28: 54950 | G28: 59000 | H28: 63100 | I28: 67150
A29: Napa | B29: 39800 | C29: 45500 | D29: 51200 | E29: 56850 | F29: 61400 | G29: 65950 | H29: 70500 | I29: 75050
A30: Nevada | B30: 31450 | C30: 35950 | D30: 40450 | E30: 44900 | F30: 48500 | G30: 52100 | H30: 55700 | I30: 59300
A31: Orange | B31: 47100 | C31: 53800 | D31: 60550 | E31: 67250 | F31: 72650 | G31: 78050 | H31: 83400 | I31: 88800
A32: Placer | B32: 31750 | C32: 36250 | D32: 40800 | E32: 45300 | F32: 48950 | G32: 52550 | H32: 56200 | I32: 59800
A33: Plumas | B33: 25600 | C33: 29250 | D33: 32900 | E33: 36550 | F33: 39500 | G33: 42400 | H33: 45350 | I33: 48250
A34: Riverside | B34: 27650 | C34: 31600 | D34: 35550 | E34: 39500 | F34: 42700 | G34: 45850 | H34: 49000 | I34: 52150
A35: Sacramento | B35: 31750 | C35: 36250 | D35: 40800 | E35: 45300 | F35: 48950 | G35: 52550 | H35: 56200 | I35: 59800
A36: San Benito | B36: 34200 | C36: 39050 | D36: 43950 | E36: 48800 | F36: 52750 | G36: 56650 | H36: 60550 | I36: 64450
A37: San Bernardino | B37: 27650 | C37: 31600 | D37: 35550 | E37: 39500 | F37: 42700 | G37: 45850 | H37: 49000 | I37: 52150
A38: San Diego | B38: 42450 | C38: 48500 | D38: 54550 | E38: 60600 | F38: 65450 | G38: 70300 | H38: 75150 | I38: 80000
A39: San Francisco | B39: 63950 | C39: 73100 | D39: 82250 | E39: 91350 | F39: 98700 | G39: 106000 | H39: 113300 | I39: 120600
A40: San Joaquin | B40: 25900 | C40: 29600 | D40: 33300 | E40: 37000 | F40: 40000 | G40: 42950 | H40: 45900 | I40: 48850
A41: San Luis Obispo | B41: 34250 | C41: 39150 | D41: 44050 | E41: 48900 | F41: 52850 | G41: 56750 | H41: 60650 | I41: 64550
A42: San Mateo | B42: 63950 | C42: 73100 | D42: 82250 | E42: 91350 | F42: 98700 | G42: 106000 | H42: 113300 | I42: 120600
A43: Santa Barbara | B43: 43750 | C43: 50000 | D43: 56250 | E43: 62450 | F43: 67450 | G43: 72450 | H43: 77450 | I43: 82450
A44: Santa Clara | B44: 58000 | C44: 66300 | D44: 74600 | E44: 82850 | F44: 89500 | G44: 96150 | H44: 102750 | I44: 109400
A45: Santa Cruz | B45: 48650 | C45: 55600 | D45: 62550 | E45: 69500 | F45: 75100 | G45: 80650 | H45: 86200 | I45: 91750
A46: Shasta | B46: 24850 | C46: 28400 | D46: 31950 | E46: 35500 | F46: 38350 | G46: 41200 | H46: 44050 | I46: 46900
A47: Sierra | B47: 29600 | C47: 33800 | D47: 38050 | E47: 42250 | F47: 45650 | G47: 49050 | H47: 52400 | I47: 55800
A48: Siskiyou | B48: 24400 | C48: 27900 | D48: 31400 | E48: 34850 | F48: 37650 | G48: 40450 | H48: 43250 | I48: 46050
A49: Solano | B49: 34000 | C49: 38850 | D49: 43700 | E49: 48550 | F49: 52450 | G49: 56350 | H49: 60250 | I49: 64100
A50: Sonoma | B50: 40750 | C50: 46550 | D50: 52350 | E50: 58150 | F50: 62850 | G50: 67500 | H50: 72150 | I50: 76800
A51: Stanislaus | B51: 25000 | C51: 28550 | D51: 32100 | E51: 35650 | F51: 38550 | G51: 41400 | H51: 44250 | I51: 47100
A52: Sutter | B52: 24400 | C52: 27900 | D52: 31400 | E52: 34850 | F52: 37650 | G52: 40450 | H52: 43250 | I52: 46050
A53: Tehama | B53: 24400 | C53: 27900 | D53: 31400 | E53: 34850 | F53: 37650 | G53: 40450 | H53: 43250 | I53: 46050
A54: Trinity | B54: 24400 | C54: 27900 | D54: 31400 | E54: 34850 | F54: 37650 | G54: 40450 | H54: 43250 | I54: 46050
A55: Tulare | B55: 24400 | C55: 27900 | D55: 31400 | E55: 34850 | F55: 37650 | G55: 40450 | H55: 43250 | I55: 46050
A56: Tuolumne | B56: 26050 | C56: 29800 | D56: 33500 | E56: 37200 | F56: 40200 | G56: 43200 | H56: 46150 | I56: 49150
A57: Ventura | B57: 39250 | C57: 44850 | D57: 50450 | E57: 56050 | F57: 60550 | G57: 65050 | H57: 69550 | I57: 74000
A58: Yolo | B58: 31050 | C58: 35450 | D58: 39900 | E58: 44300 | F58: 47850 | G58: 51400 | H58: 54950 | I58: 58500
A59: Yuba | B59: 24400 | C59: 27900 | D59: 31400 | E59: 34850 | F59: 37650 | G59: 40450 | H59: 43250 | I59: 46050

Sheet Rent Limits (hidden)
A1: County | B1: 1 Person | C1: 2 Person | D1: 3 Person | E1: 4 Person | F1: 5 Person | G1: 6 Person | H1: 7 Person | I1: 8 Person | J1: 0 | K1: 1 | L1: 2 | M1: 3 | N1: 4 | O1: 5
A2: Alameda0.15 | B2: =B9*2*0.15 -> 14385 | C2: =C9*2*0.15 -> 16440 | D2: =D9*2*0.15 -> 18495 | E2: =E9*2*0.15 -> 20550 | F2: =F9*2*0.15 -> 22200 | G2: =G9*2*0.15 -> 23850 | H2: 25485 | I2: 27135 | J2: =TRUNC(B2/12*0.3) -> 359 | K2: =TRUNC((B2+C2)/2/12*0.3) -> 385 | L2: =TRUNC((D2)/12*0.3) -> 462 | M2: =TRUNC(((E2+F2)/2)/12*0.3) -> 534 | N2: =TRUNC(G2/12*0.3) -> 596 | O2: =TRUNC(((H2+I2)/2)/12*0.3) -> 657
A3: Alameda0.2 | B3: =B9*2*0.2 -> 19180 | C3: =C9*2*0.2 -> 21920 | D3: 24660 | E3: 27400 | F3: 29600 | G3: 31800 | H3: 33980 | I3: 36180 | J3: 479 | K3: 513 | L3: 616 | M3: 712 | N3: 795 | O3: 877
A4: Alameda0.25 | B4: =B9*2*0.25 -> 23975 | C4: =C9*2*0.25 -> 27400 | D4: 30825 | E4: 34250 | F4: 37000 | G4: 39750 | H4: 42475 | I4: 45225 | J4: 599 | K4: 642 | L4: 770 | M4: 890 | N4: 993 | O4: 1096
A5: Alameda0.3 | B5: =B9*2*0.3 -> 28770 | C5: =C9*2*0.3 -> 32880 | D5: 36990 | E5: 41100 | F5: 44400 | G5: 47700 | H5: 50970 | I5: 54270 | J5: 719 | K5: 770 | L5: 924 | M5: 1068 | N5: 1192 | O5: 1315
A6: Alameda0.35 | B6: =B9*2*0.35 -> 33565 | C6: =C9*2*0.35 -> 38360 | D6: 43155 | E6: 47950 | F6: 51800 | G6: 55650 | H6: 59465 | I6: 63315 | J6: 839 | K6: 899 | L6: 1078 | M6: 1246 | N6: 1391 | O6: 1534
A7: Alameda0.4 | B7: =B9*2*0.4 -> 38360 | C7: =C9*2*0.4 -> 43840 | D7: 49320 | E7: 54800 | F7: 59200 | G7: 63600 | H7: 67960 | I7: 72360 | J7: 959 | K7: 1027 | L7: 1233 | M7: 1425 | N7: 1590 | O7: 1754
A8: Alameda0.45 | B8: =B9*2*0.45 -> 43155 | C8: =C9*2*0.45 -> 49320 | D8: 55485 | E8: 61650 | F8: 66600 | G8: 71550 | H8: 76455 | I8: 81405 | J8: 1078 | K8: 1155 | L8: 1387 | M8: 1603 | N8: 1788 | O8: 1973
A9: Alameda0.5 | B9: ='MTSP 50% Income Limits '!B2 -> 47950 | C9: ='MTSP 50% Income Limits '!C2 -> 54800 | D9: ='MTSP 50% Income Limits '!D2 -> 61650 | E9: ='MTSP 50% Income Limits '!E2 -> 68500 | F9: ='MTSP 50% Income Limits '!F2 -> 74000 | G9: ='MTSP 50% Income Limits '!G2 -> 79500 | H9: ='MTSP 50% Income Limits '!H2 -> 84950 | I9: ='MTSP 50% Income Limits '!I2 -> 90450 | J9: =TRUNC(B9/12*0.3) -> 1198 | K9: =TRUNC((B9+C9)/2/12*0.3) -> 1284 | L9: =TRUNC((D9)/12*0.3) -> 1541 | M9: =TRUNC(((E9+F9)/2)/12*0.3) -> 1781 | N9: =TRUNC(G9/12*0.3) -> 1987 | O9: =TRUNC(((H9+I9)/2)/12*0.3) -> 2192
A10: Alameda0.55 | B10: =B9*2*0.55 -> 52745 | C10: =C9*2*0.55 -> 60280 | D10: 67815 | E10: 75350 | F10: 81400 | G10: 87450 | H10: 93445 | I10: 99495 | J10: =TRUNC(B10/12*0.3) -> 1318 | K10: =TRUNC((B10+C10)/2/12*0.3) -> 1412 | L10: =TRUNC((D10)/12*0.3) -> 1695 | M10: =TRUNC(((E10+F10)/2)/12*0.3) -> 1959 | N10: =TRUNC(G10/12*0.3) -> 2186 | O10: =TRUNC(((H10+I10)/2)/12*0.3) -> 2411
A11: Alameda0.6 | B11: =B9*2*0.6 -> 57540 | C11: =C9*2*0.6 -> 65760 | D11: 73980 | E11: 82200 | F11: 88800 | G11: 95400 | H11: 101940 | I11: 108540 | J11: 1438 | K11: 1541 | L11: 1849 | M11: 2137 | N11: 2385 | O11: 2631
A12: Alameda0.65 | B12: =B9*2*0.65 -> 62335 | C12: =C9*2*0.65 -> 71240 | D12: 80145 | E12: 89050 | F12: 96200 | G12: 103350 | H12: 110435 | I12: 117585 | J12: 1558 | K12: 1669 | L12: 2003 | M12: 2315 | N12: 2583 | O12: 2850
A13: Alameda0.7 | B13: =B9*2*0.7 -> 67130 | C13: =C9*2*0.7 -> 76720 | D13: 86310 | E13: 95900 | F13: 103600 | G13: 111300 | H13: 118930 | I13: 126630 | J13: 1678 | K13: 1798 | L13: 2157 | M13: 2493 | N13: 2782 | O13: 3069
A14: Alameda0.75 | B14: =B9*2*0.75 -> 71925 | C14: =C9*2*0.75 -> 82200 | D14: 92475 | E14: 102750 | F14: 111000 | G14: 119250 | H14: 127425 | I14: 135675 | J14: 1798 | K14: 1926 | L14: 2311 | M14: 2671 | N14: 2981 | O14: 3288
A15: Alameda0.8 | B15: =B9*2*0.8 -> 76720 | C15: =C9*2*0.8 -> 87680 | D15: 98640 | E15: 109600 | F15: 118400 | G15: 127200 | H15: 135920 | I15: 144720 | J15: 1918 | K15: 2055 | L15: 2466 | M15: 2850 | N15: 3180 | O15: 3508
A16: Alameda0.9 | B16: =B9*2*0.9 -> 86310 | C16: =C9*2*0.9 -> 98640 | D16: 110970 | E16: 123300 | F16: 133200 | G16: 143100 | H16: 152910 | I16: 162810 | J16: 2157 | K16: 2311 | L16: 2774 | M16: 3206 | N16: 3577 | O16: 3946
A17: Alameda1 | B17: =B9*2 -> 95900 | C17: =C9*2 -> 109600 | D17: 123300 | E17: 137000 | F17: 148000 | G17: 159000 | H17: 169900 | I17: 180900 | J17: =J9*2 -> 2396 | K17: =K9*2 -> 2568 | L17: 3082 | M17: 3562 | N17: 3974 | O17: 4384
A18: Alameda1.1 | B18: =B9*2*1.1 -> 105490 | C18: =C9*2*1.1 -> 120560 | D18: 135630 | E18: 150700 | F18: 162800 | G18: 174900 | H18: 186890 | I18: 198990 | J18: 2637 | K18: 2825 | L18: 3390 | M18: 3918 | N18: 4372 | O18: 4823
A19: Alameda1.2 | B19: =B9*2*1.2 -> 115080 | C19: =C9*2*1.2 -> 131520 | D19: 147960 | E19: 164400 | F19: 177600 | G19: 190800 | H19: 203880 | I19: 217080 | J19: 2877 | K19: 3082 | L19: 3699 | M19: 4275 | N19: 4770 | O19: 5262
A20: Alpine0.15 | B20: =B27*2*0.15 -> 8535 | C20: =C27*2*0.15 -> 9750 | D20: =D27*2*0.15 -> 10965 | E20: =E27*2*0.15 -> 12180 | F20: =F27*2*0.15 -> 13155 | G20: =G27*2*0.15 -> 14130 | H20: 15105 | I20: 16080 | J20: 213 | K20: 228 | L20: 274 | M20: 316 | N20: 353 | O20: 389
A21: Alpine0.2 | B21: =B27*2*0.2 -> 11380 | C21: =C27*2*0.2 -> 13000 | D21: 14620 | E21: 16240 | F21: 17540 | G21: 18840 | H21: 20140 | I21: 21440 | J21: 284 | K21: 304 | L21: 365 | M21: 422 | N21: 471 | O21: 519
A22: Alpine0.25 | B22: =B27*2*0.25 -> 14225 | C22: =C27*2*0.25 -> 16250 | D22: 18275 | E22: 20300 | F22: 21925 | G22: 23550 | H22: 25175 | I22: 26800 | J22: 355 | K22: 380 | L22: 456 | M22: 527 | N22: 588 | O22: 649
A23: Alpine0.3 | B23: =B27*2*0.3 -> 17070 | C23: =C27*2*0.3 -> 19500 | D23: 21930 | E23: 24360 | F23: 26310 | G23: 28260 | H23: 30210 | I23: 32160 | J23: 426 | K23: 457 | L23: 548 | M23: 633 | N23: 706 | O23: 779
A24: Alpine0.35 | B24: =B27*2*0.35 -> 19915 | C24: =C27*2*0.35 -> 22750 | D24: 25585 | E24: 28420 | F24: 30695 | G24: 32970 | H24: 35245 | I24: 37520 | J24: 497 | K24: 533 | L24: 639 | M24: 738 | N24: 824 | O24: 909
A25: Alpine0.4 | B25: =B27*2*0.4 -> 22760 | C25: =C27*2*0.4 -> 26000 | D25: 29240 | E25: 32480 | F25: 35080 | G25: 37680 | H25: 40280 | I25: 42880 | J25: 569 | K25: 609 | L25: 731 | M25: 844 | N25: 942 | O25: 1039
A26: Alpine0.45 | B26: =B27*2*0.45 -> 25605 | C26: =C27*2*0.45 -> 29250 | D26: 32895 | E26: 36540 | F26: 39465 | G26: 42390 | H26: 45315 | I26: 48240 | J26: 640 | K26: 685 | L26: 822 | M26: 950 | N26: 1059 | O26: 1169
A27: Alpine0.5 | B27: ='MTSP 50% Income Limits '!B3 -> 28450 | C27: ='MTSP 50% Income Limits '!C3 -> 32500 | D27: ='MTSP 50% Income Limits '!D3 -> 36550 | E27: ='MTSP 50% Income Limits '!E3 -> 40600 | F27: ='MTSP 50% Income Limits '!F3 -> 43850 | G27: ='MTSP 50% Income Limits '!G3 -> 47100 | H27: ='MTSP 50% Income Limits '!H3 -> 50350 | I27: ='MTSP 50% Income Limits '!I3 -> 53600 | J27: =TRUNC(B27/12*0.3) -> 711 | K27: =TRUNC((B27+C27)/2/12*0.3) -> 761 | L27: =TRUNC((D27)/12*0.3) -> 913 | M27: =TRUNC(((E27+F27)/2)/12*0.3) -> 1055 | N27: =TRUNC(G27/12*0.3) -> 1177 | O27: =TRUNC(((H27+I27)/2)/12*0.3) -> 1299
A28: Alpine0.55 | B28: =B27*2*0.55 -> 31295 | C28: =C27*2*0.55 -> 35750 | D28: 40205 | E28: 44660 | F28: 48235 | G28: 51810 | H28: 55385 | I28: 58960 | J28: =TRUNC(B28/12*0.3) -> 782 | K28: =TRUNC((B28+C28)/2/12*0.3) -> 838 | L28: =TRUNC((D28)/12*0.3) -> 1005 | M28: =TRUNC(((E28+F28)/2)/12*0.3) -> 1161 | N28: =TRUNC(G28/12*0.3) -> 1295 | O28: =TRUNC(((H28+I28)/2)/12*0.3) -> 1429
A29: Alpine0.6 | B29: =B27*2*0.6 -> 34140 | C29: =C27*2*0.6 -> 39000 | D29: 43860 | E29: 48720 | F29: 52620 | G29: 56520 | H29: 60420 | I29: 64320 | J29: 853 | K29: 914 | L29: 1096 | M29: 1266 | N29: 1413 | O29: 1559
A30: Alpine0.65 | B30: =B27*2*0.65 -> 36985 | C30: =C27*2*0.65 -> 42250 | D30: 47515 | E30: 52780 | F30: 57005 | G30: 61230 | H30: 65455 | I30: 69680 | J30: 924 | K30: 990 | L30: 1187 | M30: 1372 | N30: 1530 | O30: 1689
A31: Alpine0.7 | B31: =B27*2*0.7 -> 39830 | C31: =C27*2*0.7 -> 45500 | D31: 51170 | E31: 56840 | F31: 61390 | G31: 65940 | H31: 70490 | I31: 75040 | J31: 995 | K31: 1066 | L31: 1279 | M31: 1477 | N31: 1648 | O31: 1819
A32: Alpine0.75 | B32: =B27*2*0.75 -> 42675 | C32: =C27*2*0.75 -> 48750 | D32: 54825 | E32: 60900 | F32: 65775 | G32: 70650 | H32: 75525 | I32: 80400 | J32: 1066 | K32: 1142 | L32: 1370 | M32: 1583 | N32: 1766 | O32: 1949
A33: Alpine0.8 | B33: =B27*2*0.8 -> 45520 | C33: =C27*2*0.8 -> 52000 | D33: 58480 | E33: 64960 | F33: 70160 | G33: 75360 | H33: 80560 | I33: 85760 | J33: 1138 | K33: 1219 | L33: 1462 | M33: 1689 | N33: 1884 | O33: 2079
A34: Alpine0.9 | B34: =B27*2*0.9 -> 51210 | C34: =C27*2*0.9 -> 58500 | D34: 65790 | E34: 73080 | F34: 78930 | G34: 84780 | H34: 90630 | I34: 96480 | J34: 1280 | K34: 1371 | L34: 1644 | M34: 1900 | N34: 2119 | O34: 2338
A35: Alpine1 | B35: =B27*2 -> 56900 | C35: =C27*2 -> 65000 | D35: 73100 | E35: 81200 | F35: 87700 | G35: 94200 | H35: 100700 | I35: 107200 | J35: =J27*2 -> 1422 | K35: =K27*2 -> 1522 | L35: 1826 | M35: 2110 | N35: 2354 | O35: 2598
A36: Alpine1.1 | B36: =B27*2*1.1 -> 62590 | C36: =C27*2*1.1 -> 71500 | D36: 80410 | E36: 89320 | F36: 96470 | G36: 103620 | H36: 110770 | I36: 117920 | J36: =TRUNC(B36/12*0.3) -> 1564 | K36: =TRUNC((B36+C36)/2/12*0.3) -> 1676 | L36: =TRUNC((D36)/12*0.3) -> 2010 | M36: =TRUNC(((E36+F36)/2)/12*0.3) -> 2322 | N36: =TRUNC(G36/12*0.3) -> 2590 | O36: =TRUNC(((H36+I36)/2)/12*0.3) -> 2858
A37: Alpine1.2 | B37: =B27*2*1.2 -> 68280 | C37: =C27*2*1.2 -> 78000 | D37: 87720 | E37: 97440 | F37: 105240 | G37: 113040 | H37: 120840 | I37: 128640 | J37: 1707 | K37: 1828 | L37: 2193 | M37: 2533 | N37: 2826 | O37: 3118
A38: Amador0.15 | B38: =B45*2*0.15 -> 8190 | C38: =C45*2*0.15 -> 9360 | D38: =D45*2*0.15 -> 10530 | E38: =E45*2*0.15 -> 11685 | F38: =F45*2*0.15 -> 12630 | G38: =G45*2*0.15 -> 13560 | H38: 14490 | I38: 15435 | J38: 204 | K38: 219 | L38: 263 | M38: 303 | N38: 339 | O38: 374
A39: Amador0.2 | B39: =B45*2*0.2 -> 10920 | C39: =C45*2*0.2 -> 12480 | D39: 14040 | E39: 15580 | F39: 16840 | G39: 18080 | H39: 19320 | I39: 20580 | J39: 273 | K39: 292 | L39: 351 | M39: 405 | N39: 452 | O39: 498
A40: Amador0.25 | B40: =B45*2*0.25 -> 13650 | C40: =C45*2*0.25 -> 15600 | D40: 17550 | E40: 19475 | F40: 21050 | G40: 22600 | H40: 24150 | I40: 25725 | J40: 341 | K40: 365 | L40: 438 | M40: 506 | N40: 565 | O40: 623
A41: Amador0.3 | B41: =B45*2*0.3 -> 16380 | C41: =C45*2*0.3 -> 18720 | D41: 21060 | E41: 23370 | F41: 25260 | G41: 27120 | H41: 28980 | I41: 30870 | J41: 409 | K41: 438 | L41: 526 | M41: 607 | N41: 678 | O41: 748
A42: Amador0.35 | B42: =B45*2*0.35 -> 19110 | C42: =C45*2*0.35 -> 21840 | D42: 24570 | E42: 27265 | F42: 29470 | G42: 31640 | H42: 33810 | I42: 36015 | J42: 477 | K42: 511 | L42: 614 | M42: 709 | N42: 791 | O42: 872
A43: Amador0.4 | B43: =B45*2*0.4 -> 21840 | C43: =C45*2*0.4 -> 24960 | D43: 28080 | E43: 31160 | F43: 33680 | G43: 36160 | H43: 38640 | I43: 41160 | J43: 546 | K43: 585 | L43: 702 | M43: 810 | N43: 904 | O43: 997
A44: Amador0.45 | B44: =B45*2*0.45 -> 24570 | C44: =C45*2*0.45 -> 28080 | D44: 31590 | E44: 35055 | F44: 37890 | G44: 40680 | H44: 43470 | I44: 46305 | J44: 614 | K44: 658 | L44: 789 | M44: 911 | N44: 1017 | O44: 1122
A45: Amador0.5 | B45: ='MTSP 50% Income Limits '!B4 -> 27300 | C45: ='MTSP 50% Income Limits '!C4 -> 31200 | D45: ='MTSP 50% Income Limits '!D4 -> 35100 | E45: ='MTSP 50% Income Limits '!E4 -> 38950 | F45: ='MTSP 50% Income Limits '!F4 -> 42100 | G45: ='MTSP 50% Income Limits '!G4 -> 45200 | H45: ='MTSP 50% Income Limits '!H4 -> 48300 | I45: ='MTSP 50% Income Limits '!I4 -> 51450 | J45: =TRUNC(B45/12*0.3) -> 682 | K45: =TRUNC((B45+C45)/2/12*0.3) -> 731 | L45: =TRUNC((D45)/12*0.3) -> 877 | M45: =TRUNC(((E45+F45)/2)/12*0.3) -> 1013 | N45: =TRUNC(G45/12*0.3) -> 1130 | O45: =TRUNC(((H45+I45)/2)/12*0.3) -> 1246
A46: Amador0.55 | B46: =B45*2*0.55 -> 30030 | C46: =C45*2*0.55 -> 34320 | D46: 38610 | E46: 42845 | F46: 46310 | G46: 49720 | H46: 53130 | I46: 56595 | J46: =TRUNC(B46/12*0.3) -> 750 | K46: =TRUNC((B46+C46)/2/12*0.3) -> 804 | L46: =TRUNC((D46)/12*0.3) -> 965 | M46: =TRUNC(((E46+F46)/2)/12*0.3) -> 1114 | N46: =TRUNC(G46/12*0.3) -> 1243 | O46: =TRUNC(((H46+I46)/2)/12*0.3) -> 1371
A47: Amador0.6 | B47: =B45*2*0.6 -> 32760 | C47: =C45*2*0.6 -> 37440 | D47: 42120 | E47: 46740 | F47: 50520 | G47: 54240 | H47: 57960 | I47: 61740 | J47: 819 | K47: 877 | L47: 1053 | M47: 1215 | N47: 1356 | O47: 1496
A48: Amador0.65 | B48: =B45*2*0.65 -> 35490 | C48: =C45*2*0.65 -> 40560 | D48: 45630 | E48: 50635 | F48: 54730 | G48: 58760 | H48: 62790 | I48: 66885 | J48: 887 | K48: 950 | L48: 1140 | M48: 1317 | N48: 1469 | O48: 1620
A49: Amador0.7 | B49: =B45*2*0.7 -> 38220 | C49: =C45*2*0.7 -> 43680 | D49: 49140 | E49: 54530 | F49: 58940 | G49: 63280 | H49: 67620 | I49: 72030 | J49: 955 | K49: 1023 | L49: 1228 | M49: 1418 | N49: 1582 | O49: 1745
A50: Amador0.75 | B50: =B45*2*0.75 -> 40950 | C50: =C45*2*0.75 -> 46800 | D50: 52650 | E50: 58425 | F50: 63150 | G50: 67800 | H50: 72450 | I50: 77175 | J50: 1023 | K50: 1096 | L50: 1316 | M50: 1519 | N50: 1695 | O50: 1870
A51: Amador0.8 | B51: =B45*2*0.8 -> 43680 | C51: =C45*2*0.8 -> 49920 | D51: 56160 | E51: 62320 | F51: 67360 | G51: 72320 | H51: 77280 | I51: 82320 | J51: 1092 | K51: 1170 | L51: 1404 | M51: 1621 | N51: 1808 | O51: 1995
A52: Amador0.9 | B52: =B45*2*0.9 -> 49140 | C52: =C45*2*0.9 -> 56160 | D52: 63180 | E52: 70110 | F52: 75780 | G52: 81360 | H52: 86940 | I52: 92610 | J52: 1228 | K52: 1316 | L52: 1579 | M52: 1823 | N52: 2034 | O52: 2244
A53: Amador1 | B53: =B45*2 -> 54600 | C53: =C45*2 -> 62400 | D53: 70200 | E53: 77900 | F53: 84200 | G53: 90400 | H53: 96600 | I53: 102900 | J53: =J45*2 -> 1364 | K53: =K45*2 -> 1462 | L53: 1754 | M53: 2026 | N53: 2260 | O53: 2492
A54: Amador1.1 | B54: =B45*2*1.1 -> 60060 | C54: =C45*2*1.1 -> 68640 | D54: 77220 | E54: 85690 | F54: 92620 | G54: 99440 | H54: 106260 | I54: 113190 | J54: =TRUNC(B54/12*0.3) -> 1501 | K54: =TRUNC((B54+C54)/2/12*0.3) -> 1608 | L54: =TRUNC((D54)/12*0.3) -> 1930 | M54: =TRUNC(((E54+F54)/2)/12*0.3) -> 2228 | N54: =TRUNC(G54/12*0.3) -> 2486 | O54: =TRUNC(((H54+I54)/2)/12*0.3) -> 2743
A55: Amador1.2 | B55: =B45*2*1.2 -> 65520 | C55: =C45*2*1.2 -> 74880 | D55: 84240 | E55: 93480 | F55: 101040 | G55: 108480 | H55: 115920 | I55: 123480 | J55: 1638 | K55: 1755 | L55: 2106 | M55: 2431 | N55: 2712 | O55: 2992
A56: Butte0.15 | B56: =B63*2*0.15 -> 7320 | C56: =C63*2*0.15 -> 8370 | D56: =D63*2*0.15 -> 9420 | E56: =E63*2*0.15 -> 10455 | F56: =F63*2*0.15 -> 11295 | G56: =G63*2*0.15 -> 12135 | H56: 12975 | I56: 13815 | J56: 183 | K56: 196 | L56: 235 | M56: 271 | N56: 303 | O56: 334
A57: Butte0.2 | B57: =B63*2*0.2 -> 9760 | C57: =C63*2*0.2 -> 11160 | D57: 12560 | E57: 13940 | F57: 15060 | G57: 16180 | H57: 17300 | I57: 18420 | J57: 244 | K57: 261 | L57: 314 | M57: 362 | N57: 404 | O57: 446
A58: Butte0.25 | B58: =B63*2*0.25 -> 12200 | C58: =C63*2*0.25 -> 13950 | D58: 15700 | E58: 17425 | F58: 18825 | G58: 20225 | H58: 21625 | I58: 23025 | J58: 305 | K58: 326 | L58: 392 | M58: 453 | N58: 505 | O58: 558
A59: Butte0.3 | B59: =B63*2*0.3 -> 14640 | C59: =C63*2*0.3 -> 16740 | D59: 18840 | E59: 20910 | F59: 22590 | G59: 24270 | H59: 25950 | I59: 27630 | J59: 366 | K59: 392 | L59: 471 | M59: 543 | N59: 606 | O59: 669
A60: Butte0.35 | B60: =B63*2*0.35 -> 17080 | C60: =C63*2*0.35 -> 19530 | D60: 21980 | E60: 24395 | F60: 26355 | G60: 28315 | H60: 30275 | I60: 32235 | J60: 427 | K60: 457 | L60: 549 | M60: 634 | N60: 707 | O60: 781
A61: Butte0.4 | B61: =B63*2*0.4 -> 19520 | C61: =C63*2*0.4 -> 22320 | D61: 25120 | E61: 27880 | F61: 30120 | G61: 32360 | H61: 34600 | I61: 36840 | J61: 488 | K61: 523 | L61: 628 | M61: 725 | N61: 809 | O61: 893
A62: Butte0.45 | B62: =B63*2*0.45 -> 21960 | C62: =C63*2*0.45 -> 25110 | D62: 28260 | E62: 31365 | F62: 33885 | G62: 36405 | H62: 38925 | I62: 41445 | J62: 549 | K62: 588 | L62: 706 | M62: 815 | N62: 910 | O62: 1004
A63: Butte0.5 | B63: ='MTSP 50% Income Limits '!B5 -> 24400 | C63: ='MTSP 50% Income Limits '!C5 -> 27900 | D63: ='MTSP 50% Income Limits '!D5 -> 31400 | E63: ='MTSP 50% Income Limits '!E5 -> 34850 | F63: ='MTSP 50% Income Limits '!F5 -> 37650 | G63: ='MTSP 50% Income Limits '!G5 -> 40450 | H63: ='MTSP 50% Income Limits '!H5 -> 43250 | I63: ='MTSP 50% Income Limits '!I5 -> 46050 | J63: =TRUNC(B63/12*0.3) -> 610 | K63: =TRUNC((B63+C63)/2/12*0.3) -> 653 | L63: =TRUNC((D63)/12*0.3) -> 785 | M63: =TRUNC(((E63+F63)/2)/12*0.3) -> 906 | N63: =TRUNC(G63/12*0.3) -> 1011 | O63: =TRUNC(((H63+I63)/2)/12*0.3) -> 1116
A64: Butte0.55 | B64: =B63*2*0.55 -> 26840 | C64: =C63*2*0.55 -> 30690 | D64: 34540 | E64: 38335 | F64: 41415 | G64: 44495 | H64: 47575 | I64: 50655 | J64: =TRUNC(B64/12*0.3) -> 671 | K64: =TRUNC((B64+C64)/2/12*0.3) -> 719 | L64: =TRUNC((D64)/12*0.3) -> 863 | M64: =TRUNC(((E64+F64)/2)/12*0.3) -> 996 | N64: =TRUNC(G64/12*0.3) -> 1112 | O64: =TRUNC(((H64+I64)/2)/12*0.3) -> 1227
A65: Butte0.6 | B65: =B63*2*0.6 -> 29280 | C65: =C63*2*0.6 -> 33480 | D65: 37680 | E65: 41820 | F65: 45180 | G65: 48540 | H65: 51900 | I65: 55260 | J65: 732 | K65: 784 | L65: 942 | M65: 1087 | N65: 1213 | O65: 1339
A66: Butte0.65 | B66: =B63*2*0.65 -> 31720 | C66: =C63*2*0.65 -> 36270 | D66: 40820 | E66: 45305 | F66: 48945 | G66: 52585 | H66: 56225 | I66: 59865 | J66: 793 | K66: 849 | L66: 1020 | M66: 1178 | N66: 1314 | O66: 1451
A67: Butte0.7 | B67: =B63*2*0.7 -> 34160 | C67: =C63*2*0.7 -> 39060 | D67: 43960 | E67: 48790 | F67: 52710 | G67: 56630 | H67: 60550 | I67: 64470 | J67: 854 | K67: 915 | L67: 1099 | M67: 1268 | N67: 1415 | O67: 1562
A68: Butte0.75 | B68: =B63*2*0.75 -> 36600 | C68: =C63*2*0.75 -> 41850 | D68: 47100 | E68: 52275 | F68: 56475 | G68: 60675 | H68: 64875 | I68: 69075 | J68: 915 | K68: 980 | L68: 1177 | M68: 1359 | N68: 1516 | O68: 1674
A69: Butte0.8 | B69: =B63*2*0.8 -> 39040 | C69: =C63*2*0.8 -> 44640 | D69: 50240 | E69: 55760 | F69: 60240 | G69: 64720 | H69: 69200 | I69: 73680 | J69: 976 | K69: 1046 | L69: 1256 | M69: 1450 | N69: 1618 | O69: 1786
A70: Butte0.9 | B70: =B63*2*0.9 -> 43920 | C70: =C63*2*0.9 -> 50220 | D70: 56520 | E70: 62730 | F70: 67770 | G70: 72810 | H70: 77850 | I70: 82890 | J70: 1098 | K70: 1176 | L70: 1413 | M70: 1631 | N70: 1820 | O70: 2009
A71: Butte1 | B71: =B63*2 -> 48800 | C71: =C63*2 -> 55800 | D71: 62800 | E71: 69700 | F71: 75300 | G71: 80900 | H71: 86500 | I71: 92100 | J71: =J63*2 -> 1220 | K71: =K63*2 -> 1306 | L71: 1570 | M71: 1812 | N71: 2022 | O71: 2232
A72: Butte1.1 | B72: =B63*2*1.1 -> 53680 | C72: =C63*2*1.1 -> 61380 | D72: 69080 | E72: 76670 | F72: 82830 | G72: 88990 | H72: 95150 | I72: 101310 | J72: =TRUNC(B72/12*0.3) -> 1342 | K72: =TRUNC((B72+C72)/2/12*0.3) -> 1438 | L72: =TRUNC((D72)/12*0.3) -> 1727 | M72: =TRUNC(((E72+F72)/2)/12*0.3) -> 1993 | N72: =TRUNC(G72/12*0.3) -> 2224 | O72: =TRUNC(((H72+I72)/2)/12*0.3) -> 2455
A73: Butte1.2 | B73: =B63*2*1.2 -> 58560 | C73: =C63*2*1.2 -> 66960 | D73: 75360 | E73: 83640 | F73: 90360 | G73: 97080 | H73: 103800 | I73: 110520 | J73: 1464 | K73: 1569 | L73: 1884 | M73: 2175 | N73: 2427 | O73: 2679
A74: Calaveras0.15 | B74: =B81*2*0.15 -> 8580 | C74: =C81*2*0.15 -> 9810 | D74: =D81*2*0.15 -> 11040 | E74: =E81*2*0.15 -> 12255 | F74: =F81*2*0.15 -> 13245 | G74: =G81*2*0.15 -> 14220 | H74: 15210 | I74: 16185 | J74: 214 | K74: 229 | L74: 276 | M74: 318 | N74: 355 | O74: 392
A75: Calaveras0.2 | B75: =B81*2*0.2 -> 11440 | C75: =C81*2*0.2 -> 13080 | D75: 14720 | E75: 16340 | F75: 17660 | G75: 18960 | H75: 20280 | I75: 21580 | J75: 286 | K75: 306 | L75: 368 | M75: 425 | N75: 474 | O75: 523
A76: Calaveras0.25 | B76: =B81*2*0.25 -> 14300 | C76: =C81*2*0.25 -> 16350 | D76: 18400 | E76: 20425 | F76: 22075 | G76: 23700 | H76: 25350 | I76: 26975 | J76: 357 | K76: 383 | L76: 460 | M76: 531 | N76: 592 | O76: 654
A77: Calaveras0.3 | B77: =B81*2*0.3 -> 17160 | C77: =C81*2*0.3 -> 19620 | D77: 22080 | E77: 24510 | F77: 26490 | G77: 28440 | H77: 30420 | I77: 32370 | J77: 429 | K77: 459 | L77: 552 | M77: 637 | N77: 711 | O77: 784
A78: Calaveras0.35 | B78: =B81*2*0.35 -> 20020 | C78: =C81*2*0.35 -> 22890 | D78: 25760 | E78: 28595 | F78: 30905 | G78: 33180 | H78: 35490 | I78: 37765 | J78: 500 | K78: 536 | L78: 644 | M78: 743 | N78: 829 | O78: 915
A79: Calaveras0.4 | B79: =B81*2*0.4 -> 22880 | C79: =C81*2*0.4 -> 26160 | D79: 29440 | E79: 32680 | F79: 35320 | G79: 37920 | H79: 40560 | I79: 43160 | J79: 572 | K79: 613 | L79: 736 | M79: 850 | N79: 948 | O79: 1046
A80: Calaveras0.45 | B80: =B81*2*0.45 -> 25740 | C80: =C81*2*0.45 -> 29430 | D80: 33120 | E80: 36765 | F80: 39735 | G80: 42660 | H80: 45630 | I80: 48555 | J80: 643 | K80: 689 | L80: 828 | M80: 956 | N80: 1066 | O80: 1177
A81: Calaveras0.5 | B81: ='MTSP 50% Income Limits '!B6 -> 28600 | C81: ='MTSP 50% Income Limits '!C6 -> 32700 | D81: ='MTSP 50% Income Limits '!D6 -> 36800 | E81: ='MTSP 50% Income Limits '!E6 -> 40850 | F81: ='MTSP 50% Income Limits '!F6 -> 44150 | G81: ='MTSP 50% Income Limits '!G6 -> 47400 | H81: ='MTSP 50% Income Limits '!H6 -> 50700 | I81: ='MTSP 50% Income Limits '!I6 -> 53950 | J81: =TRUNC(B81/12*0.3) -> 715 | K81: =TRUNC((B81+C81)/2/12*0.3) -> 766 | L81: =TRUNC((D81)/12*0.3) -> 920 | M81: =TRUNC(((E81+F81)/2)/12*0.3) -> 1062 | N81: =TRUNC(G81/12*0.3) -> 1185 | O81: =TRUNC(((H81+I81)/2)/12*0.3) -> 1308
A82: Calaveras0.55 | B82: =B81*2*0.55 -> 31460 | C82: =C81*2*0.55 -> 35970 | D82: 40480 | E82: 44935 | F82: 48565 | G82: 52140 | H82: 55770 | I82: 59345 | J82: =TRUNC(B82/12*0.3) -> 786 | K82: =TRUNC((B82+C82)/2/12*0.3) -> 842 | L82: =TRUNC((D82)/12*0.3) -> 1012 | M82: =TRUNC(((E82+F82)/2)/12*0.3) -> 1168 | N82: =TRUNC(G82/12*0.3) -> 1303 | O82: =TRUNC(((H82+I82)/2)/12*0.3) -> 1438
A83: Calaveras0.6 | B83: =B81*2*0.6 -> 34320 | C83: =C81*2*0.6 -> 39240 | D83: 44160 | E83: 49020 | F83: 52980 | G83: 56880 | H83: 60840 | I83: 64740 | J83: 858 | K83: 919 | L83: 1104 | M83: 1275 | N83: 1422 | O83: 1569
A84: Calaveras0.65 | B84: =B81*2*0.65 -> 37180 | C84: =C81*2*0.65 -> 42510 | D84: 47840 | E84: 53105 | F84: 57395 | G84: 61620 | H84: 65910 | I84: 70135 | J84: 929 | K84: 996 | L84: 1196 | M84: 1381 | N84: 1540 | O84: 1700
A85: Calaveras0.7 | B85: =B81*2*0.7 -> 40040 | C85: =C81*2*0.7 -> 45780 | D85: 51520 | E85: 57190 | F85: 61810 | G85: 66360 | H85: 70980 | I85: 75530 | J85: 1001 | K85: 1072 | L85: 1288 | M85: 1487 | N85: 1659 | O85: 1831
A86: Calaveras0.75 | B86: =B81*2*0.75 -> 42900 | C86: =C81*2*0.75 -> 49050 | D86: 55200 | E86: 61275 | F86: 66225 | G86: 71100 | H86: 76050 | I86: 80925 | J86: 1072 | K86: 1149 | L86: 1380 | M86: 1593 | N86: 1777 | O86: 1962
A87: Calaveras0.8 | B87: =B81*2*0.8 -> 45760 | C87: =C81*2*0.8 -> 52320 | D87: 58880 | E87: 65360 | F87: 70640 | G87: 75840 | H87: 81120 | I87: 86320 | J87: 1144 | K87: 1226 | L87: 1472 | M87: 1700 | N87: 1896 | O87: 2093
A88: Calaveras0.9 | B88: =B81*2*0.9 -> 51480 | C88: =C81*2*0.9 -> 58860 | D88: 66240 | E88: 73530 | F88: 79470 | G88: 85320 | H88: 91260 | I88: 97110 | J88: 1287 | K88: 1379 | L88: 1656 | M88: 1912 | N88: 2133 | O88: 2354
A89: Calaveras1 | B89: =B81*2 -> 57200 | C89: =C81*2 -> 65400 | D89: 73600 | E89: 81700 | F89: 88300 | G89: 94800 | H89: 101400 | I89: 107900 | J89: =J81*2 -> 1430 | K89: =K81*2 -> 1532 | L89: 1840 | M89: 2124 | N89: 2370 | O89: 2616
A90: Calaveras1.1 | B90: =B81*2*1.1 -> 62920 | C90: =C81*2*1.1 -> 71940 | D90: 80960 | E90: 89870 | F90: 97130 | G90: 104280 | H90: 111540 | I90: 118690 | J90: =TRUNC(B90/12*0.3) -> 1573 | K90: =TRUNC((B90+C90)/2/12*0.3) -> 1685 | L90: =TRUNC((D90)/12*0.3) -> 2024 | M90: =TRUNC(((E90+F90)/2)/12*0.3) -> 2337 | N90: =TRUNC(G90/12*0.3) -> 2607 | O90: =TRUNC(((H90+I90)/2)/12*0.3) -> 2877
A91: Calaveras1.2 | B91: =B81*2*1.2 -> 68640 | C91: =C81*2*1.2 -> 78480 | D91: 88320 | E91: 98040 | F91: 105960 | G91: 113760 | H91: 121680 | I91: 129480 | J91: 1716 | K91: 1839 | L91: 2208 | M91: 2550 | N91: 2844 | O91: 3139
A92: Colusa0.15 | B92: =B99*2*0.15 -> 7320 | C92: =C99*2*0.15 -> 8370 | D92: =D99*2*0.15 -> 9420 | E92: =E99*2*0.15 -> 10455 | F92: =F99*2*0.15 -> 11295 | G92: =G99*2*0.15 -> 12135 | H92: 12975 | I92: 13815 | J92: 183 | K92: 196 | L92: 235 | M92: 271 | N92: 303 | O92: 334
A93: Colusa0.2 | B93: =B99*2*0.2 -> 9760 | C93: =C99*2*0.2 -> 11160 | D93: 12560 | E93: 13940 | F93: 15060 | G93: 16180 | H93: 17300 | I93: 18420 | J93: 244 | K93: 261 | L93: 314 | M93: 362 | N93: 404 | O93: 446
A94: Colusa0.25 | B94: =B99*2*0.25 -> 12200 | C94: =C99*2*0.25 -> 13950 | D94: 15700 | E94: 17425 | F94: 18825 | G94: 20225 | H94: 21625 | I94: 23025 | J94: 305 | K94: 326 | L94: 392 | M94: 453 | N94: 505 | O94: 558
A95: Colusa0.3 | B95: =B99*2*0.3 -> 14640 | C95: =C99*2*0.3 -> 16740 | D95: 18840 | E95: 20910 | F95: 22590 | G95: 24270 | H95: 25950 | I95: 27630 | J95: 366 | K95: 392 | L95: 471 | M95: 543 | N95: 606 | O95: 669
A96: Colusa0.35 | B96: =B99*2*0.35 -> 17080 | C96: =C99*2*0.35 -> 19530 | D96: 21980 | E96: 24395 | F96: 26355 | G96: 28315 | H96: 30275 | I96: 32235 | J96: 427 | K96: 457 | L96: 549 | M96: 634 | N96: 707 | O96: 781
A97: Colusa0.4 | B97: =B99*2*0.4 -> 19520 | C97: =C99*2*0.4 -> 22320 | D97: 25120 | E97: 27880 | F97: 30120 | G97: 32360 | H97: 34600 | I97: 36840 | J97: 488 | K97: 523 | L97: 628 | M97: 725 | N97: 809 | O97: 893
A98: Colusa0.45 | B98: =B99*2*0.45 -> 21960 | C98: =C99*2*0.45 -> 25110 | D98: 28260 | E98: 31365 | F98: 33885 | G98: 36405 | H98: 38925 | I98: 41445 | J98: 549 | K98: 588 | L98: 706 | M98: 815 | N98: 910 | O98: 1004
A99: Colusa0.5 | B99: ='MTSP 50% Income Limits '!B7 -> 24400 | C99: ='MTSP 50% Income Limits '!C7 -> 27900 | D99: ='MTSP 50% Income Limits '!D7 -> 31400 | E99: ='MTSP 50% Income Limits '!E7 -> 34850 | F99: ='MTSP 50% Income Limits '!F7 -> 37650 | G99: ='MTSP 50% Income Limits '!G7 -> 40450 | H99: ='MTSP 50% Income Limits '!H7 -> 43250 | I99: ='MTSP 50% Income Limits '!I7 -> 46050 | J99: =TRUNC(B99/12*0.3) -> 610 | K99: =TRUNC((B99+C99)/2/12*0.3) -> 653 | L99: =TRUNC((D99)/12*0.3) -> 785 | M99: =TRUNC(((E99+F99)/2)/12*0.3) -> 906 | N99: =TRUNC(G99/12*0.3) -> 1011 | O99: =TRUNC(((H99+I99)/2)/12*0.3) -> 1116
A100: Colusa0.55 | B100: =B99*2*0.55 -> 26840 | C100: =C99*2*0.55 -> 30690 | D100: 34540 | E100: 38335 | F100: 41415 | G100: 44495 | H100: 47575 | I100: 50655 | J100: =TRUNC(B100/12*0.3) -> 671 | K100: =TRUNC((B100+C100)/2/12*0.3) -> 719 | L100: =TRUNC((D100)/12*0.3) -> 863 | M100: =TRUNC(((E100+F100)/2)/12*0.3) -> 996 | N100: =TRUNC(G100/12*0.3) -> 1112 | O100: =TRUNC(((H100+I100)/2)/12*0.3) -> 1227
A101: Colusa0.6 | B101: =B99*2*0.6 -> 29280 | C101: =C99*2*0.6 -> 33480 | D101: 37680 | E101: 41820 | F101: 45180 | G101: 48540 | H101: 51900 | I101: 55260 | J101: 732 | K101: 784 | L101: 942 | M101: 1087 | N101: 1213 | O101: 1339
A102: Colusa0.65 | B102: =B99*2*0.65 -> 31720 | C102: =C99*2*0.65 -> 36270 | D102: 40820 | E102: 45305 | F102: 48945 | G102: 52585 | H102: 56225 | I102: 59865 | J102: 793 | K102: 849 | L102: 1020 | M102: 1178 | N102: 1314 | O102: 1451
A103: Colusa0.7 | B103: =B99*2*0.7 -> 34160 | C103: =C99*2*0.7 -> 39060 | D103: 43960 | E103: 48790 | F103: 52710 | G103: 56630 | H103: 60550 | I103: 64470 | J103: 854 | K103: 915 | L103: 1099 | M103: 1268 | N103: 1415 | O103: 1562
A104: Colusa0.75 | B104: =B99*2*0.75 -> 36600 | C104: =C99*2*0.75 -> 41850 | D104: 47100 | E104: 52275 | F104: 56475 | G104: 60675 | H104: 64875 | I104: 69075 | J104: 915 | K104: 980 | L104: 1177 | M104: 1359 | N104: 1516 | O104: 1674
A105: Colusa0.8 | B105: =B99*2*0.8 -> 39040 | C105: =C99*2*0.8 -> 44640 | D105: 50240 | E105: 55760 | F105: 60240 | G105: 64720 | H105: 69200 | I105: 73680 | J105: 976 | K105: 1046 | L105: 1256 | M105: 1450 | N105: 1618 | O105: 1786
A106: Colusa0.9 | B106: =B99*2*0.9 -> 43920 | C106: =C99*2*0.9 -> 50220 | D106: 56520 | E106: 62730 | F106: 67770 | G106: 72810 | H106: 77850 | I106: 82890 | J106: 1098 | K106: 1176 | L106: 1413 | M106: 1631 | N106: 1820 | O106: 2009
A107: Colusa1 | B107: =B99*2 -> 48800 | C107: =C99*2 -> 55800 | D107: 62800 | E107: 69700 | F107: 75300 | G107: 80900 | H107: 86500 | I107: 92100 | J107: =J99*2 -> 1220 | K107: =K99*2 -> 1306 | L107: 1570 | M107: 1812 | N107: 2022 | O107: 2232
A108: Colusa1.1 | B108: =B99*2*1.1 -> 53680 | C108: =C99*2*1.1 -> 61380 | D108: 69080 | E108: 76670 | F108: 82830 | G108: 88990 | H108: 95150 | I108: 101310 | J108: =TRUNC(B108/12*0.3) -> 1342 | K108: =TRUNC((B108+C108)/2/12*0.3) -> 1438 | L108: =TRUNC((D108)/12*0.3) -> 1727 | M108: =TRUNC(((E108+F108)/2)/12*0.3) -> 1993 | N108: =TRUNC(G108/12*0.3) -> 2224 | O108: =TRUNC(((H108+I108)/2)/12*0.3) -> 2455
A109: Colusa1.2 | B109: =B99*2*1.2 -> 58560 | C109: =C99*2*1.2 -> 66960 | D109: 75360 | E109: 83640 | F109: 90360 | G109: 97080 | H109: 103800 | I109: 110520 | J109: 1464 | K109: 1569 | L109: 1884 | M109: 2175 | N109: 2427 | O109: 2679
A110: Contra Costa0.15 | B110: =B117*2*0.15 -> 14385 | C110: =C117*2*0.15 -> 16440 | D110: =D117*2*0.15 -> 18495 | E110: =E117*2*0.15 -> 20550 | F110: =F117*2*0.15 -> 22200 | G110: =G117*2*0.15 -> 23850 | H110: 25485 | I110: 27135 | J110: 359 | K110: 385 | L110: 462 | M110: 534 | N110: 596 | O110: 657
A111: Contra Costa0.2 | B111: =B117*2*0.2 -> 19180 | C111: =C117*2*0.2 -> 21920 | D111: 24660 | E111: 27400 | F111: 29600 | G111: 31800 | H111: 33980 | I111: 36180 | J111: 479 | K111: 513 | L111: 616 | M111: 712 | N111: 795 | O111: 877
A112: Contra Costa0.25 | B112: =B117*2*0.25 -> 23975 | C112: =C117*2*0.25 -> 27400 | D112: 30825 | E112: 34250 | F112: 37000 | G112: 39750 | H112: 42475 | I112: 45225 | J112: 599 | K112: 642 | L112: 770 | M112: 890 | N112: 993 | O112: 1096
A113: Contra Costa0.3 | B113: =B117*2*0.3 -> 28770 | C113: =C117*2*0.3 -> 32880 | D113: 36990 | E113: 41100 | F113: 44400 | G113: 47700 | H113: 50970 | I113: 54270 | J113: 719 | K113: 770 | L113: 924 | M113: 1068 | N113: 1192 | O113: 1315
A114: Contra Costa0.35 | B114: =B117*2*0.35 -> 33565 | C114: =C117*2*0.35 -> 38360 | D114: 43155 | E114: 47950 | F114: 51800 | G114: 55650 | H114: 59465 | I114: 63315 | J114: 839 | K114: 899 | L114: 1078 | M114: 1246 | N114: 1391 | O114: 1534
A115: Contra Costa0.4 | B115: =B117*2*0.4 -> 38360 | C115: =C117*2*0.4 -> 43840 | D115: 49320 | E115: 54800 | F115: 59200 | G115: 63600 | H115: 67960 | I115: 72360 | J115: 959 | K115: 1027 | L115: 1233 | M115: 1425 | N115: 1590 | O115: 1754
A116: Contra Costa0.45 | B116: =B117*2*0.45 -> 43155 | C116: =C117*2*0.45 -> 49320 | D116: 55485 | E116: 61650 | F116: 66600 | G116: 71550 | H116: 76455 | I116: 81405 | J116: 1078 | K116: 1155 | L116: 1387 | M116: 1603 | N116: 1788 | O116: 1973
A117: Contra Costa0.5 | B117: ='MTSP 50% Income Limits '!B8 -> 47950 | C117: ='MTSP 50% Income Limits '!C8 -> 54800 | D117: ='MTSP 50% Income Limits '!D8 -> 61650 | E117: ='MTSP 50% Income Limits '!E8 -> 68500 | F117: ='MTSP 50% Income Limits '!F8 -> 74000 | G117: ='MTSP 50% Income Limits '!G8 -> 79500 | H117: ='MTSP 50% Income Limits '!H8 -> 84950 | I117: ='MTSP 50% Income Limits '!I8 -> 90450 | J117: =TRUNC(B117/12*0.3) -> 1198 | K117: =TRUNC((B117+C117)/2/12*0.3) -> 1284 | L117: =TRUNC((D117)/12*0.3) -> 1541 | M117: =TRUNC(((E117+F117)/2)/12*0.3) -> 1781 | N117: =TRUNC(G117/12*0.3) -> 1987 | O117: =TRUNC(((H117+I117)/2)/12*0.3) -> 2192
A118: Contra Costa0.55 | B118: =B117*2*0.55 -> 52745 | C118: =C117*2*0.55 -> 60280 | D118: 67815 | E118: 75350 | F118: 81400 | G118: 87450 | H118: 93445 | I118: 99495 | J118: =TRUNC(B118/12*0.3) -> 1318 | K118: =TRUNC((B118+C118)/2/12*0.3) -> 1412 | L118: =TRUNC((D118)/12*0.3) -> 1695 | M118: =TRUNC(((E118+F118)/2)/12*0.3) -> 1959 | N118: =TRUNC(G118/12*0.3) -> 2186 | O118: =TRUNC(((H118+I118)/2)/12*0.3) -> 2411
A119: Contra Costa0.6 | B119: =B117*2*0.6 -> 57540 | C119: =C117*2*0.6 -> 65760 | D119: 73980 | E119: 82200 | F119: 88800 | G119: 95400 | H119: 101940 | I119: 108540 | J119: 1438 | K119: 1541 | L119: 1849 | M119: 2137 | N119: 2385 | O119: 2631
A120: Contra Costa0.65 | B120: =B117*2*0.65 -> 62335 | C120: =C117*2*0.65 -> 71240 | D120: 80145 | E120: 89050 | F120: 96200 | G120: 103350 | H120: 110435 | I120: 117585 | J120: 1558 | K120: 1669 | L120: 2003 | M120: 2315 | N120: 2583 | O120: 2850
A121: Contra Costa0.7 | B121: =B117*2*0.7 -> 67130 | C121: =C117*2*0.7 -> 76720 | D121: 86310 | E121: 95900 | F121: 103600 | G121: 111300 | H121: 118930 | I121: 126630 | J121: 1678 | K121: 1798 | L121: 2157 | M121: 2493 | N121: 2782 | O121: 3069
A122: Contra Costa0.75 | B122: =B117*2*0.75 -> 71925 | C122: =C117*2*0.75 -> 82200 | D122: 92475 | E122: 102750 | F122: 111000 | G122: 119250 | H122: 127425 | I122: 135675 | J122: 1798 | K122: 1926 | L122: 2311 | M122: 2671 | N122: 2981 | O122: 3288
A123: Contra Costa0.8 | B123: =B117*2*0.8 -> 76720 | C123: =C117*2*0.8 -> 87680 | D123: 98640 | E123: 109600 | F123: 118400 | G123: 127200 | H123: 135920 | I123: 144720 | J123: 1918 | K123: 2055 | L123: 2466 | M123: 2850 | N123: 3180 | O123: 3508
A124: Contra Costa0.9 | B124: =B117*2*0.9 -> 86310 | C124: =C117*2*0.9 -> 98640 | D124: 110970 | E124: 123300 | F124: 133200 | G124: 143100 | H124: 152910 | I124: 162810 | J124: 2157 | K124: 2311 | L124: 2774 | M124: 3206 | N124: 3577 | O124: 3946
A125: Contra Costa1 | B125: =B117*2 -> 95900 | C125: =C117*2 -> 109600 | D125: 123300 | E125: 137000 | F125: 148000 | G125: 159000 | H125: 169900 | I125: 180900 | J125: =J117*2 -> 2396 | K125: =K117*2 -> 2568 | L125: 3082 | M125: 3562 | N125: 3974 | O125: 4384
A126: Contra Costa1.1 | B126: =B117*2*1.1 -> 105490 | C126: =C117*2*1.1 -> 120560 | D126: 135630 | E126: 150700 | F126: 162800 | G126: 174900 | H126: 186890 | I126: 198990 | J126: =TRUNC(B126/12*0.3) -> 2637 | K126: =TRUNC((B126+C126)/2/12*0.3) -> 2825 | L126: =TRUNC((D126)/12*0.3) -> 3390 | M126: =TRUNC(((E126+F126)/2)/12*0.3) -> 3918 | N126: =TRUNC(G126/12*0.3) -> 4372 | O126: =TRUNC(((H126+I126)/2)/12*0.3) -> 4823
A127: Contra Costa1.2 | B127: =B117*2*1.2 -> 115080 | C127: =C117*2*1.2 -> 131520 | D127: 147960 | E127: 164400 | F127: 177600 | G127: 190800 | H127: 203880 | I127: 217080 | J127: 2877 | K127: 3082 | L127: 3699 | M127: 4275 | N127: 4770 | O127: 5262
A128: Del Norte0.15 | B128: =B135*2*0.15 -> 7320 | C128: =C135*2*0.15 -> 8370 | D128: =D135*2*0.15 -> 9420 | E128: =E135*2*0.15 -> 10455 | F128: =F135*2*0.15 -> 11295 | G128: =G135*2*0.15 -> 12135 | H128: 12975 | I128: 13815 | J128: 183 | K128: 196 | L128: 235 | M128: 271 | N128: 303 | O128: 334
A129: Del Norte0.2 | B129: =B135*2*0.2 -> 9760 | C129: =C135*2*0.2 -> 11160 | D129: 12560 | E129: 13940 | F129: 15060 | G129: 16180 | H129: 17300 | I129: 18420 | J129: 244 | K129: 261 | L129: 314 | M129: 362 | N129: 404 | O129: 446
A130: Del Norte0.25 | B130: =B135*2*0.25 -> 12200 | C130: =C135*2*0.25 -> 13950 | D130: 15700 | E130: 17425 | F130: 18825 | G130: 20225 | H130: 21625 | I130: 23025 | J130: 305 | K130: 326 | L130: 392 | M130: 453 | N130: 505 | O130: 558
A131: Del Norte0.3 | B131: =B135*2*0.3 -> 14640 | C131: =C135*2*0.3 -> 16740 | D131: 18840 | E131: 20910 | F131: 22590 | G131: 24270 | H131: 25950 | I131: 27630 | J131: 366 | K131: 392 | L131: 471 | M131: 543 | N131: 606 | O131: 669
A132: Del Norte0.35 | B132: =B135*2*0.35 -> 17080 | C132: =C135*2*0.35 -> 19530 | D132: 21980 | E132: 24395 | F132: 26355 | G132: 28315 | H132: 30275 | I132: 32235 | J132: 427 | K132: 457 | L132: 549 | M132: 634 | N132: 707 | O132: 781
A133: Del Norte0.4 | B133: =B135*2*0.4 -> 19520 | C133: =C135*2*0.4 -> 22320 | D133: 25120 | E133: 27880 | F133: 30120 | G133: 32360 | H133: 34600 | I133: 36840 | J133: 488 | K133: 523 | L133: 628 | M133: 725 | N133: 809 | O133: 893
A134: Del Norte0.45 | B134: =B135*2*0.45 -> 21960 | C134: =C135*2*0.45 -> 25110 | D134: 28260 | E134: 31365 | F134: 33885 | G134: 36405 | H134: 38925 | I134: 41445 | J134: 549 | K134: 588 | L134: 706 | M134: 815 | N134: 910 | O134: 1004
A135: Del Norte0.5 | B135: ='MTSP 50% Income Limits '!B9 -> 24400 | C135: ='MTSP 50% Income Limits '!C9 -> 27900 | D135: ='MTSP 50% Income Limits '!D9 -> 31400 | E135: ='MTSP 50% Income Limits '!E9 -> 34850 | F135: ='MTSP 50% Income Limits '!F9 -> 37650 | G135: ='MTSP 50% Income Limits '!G9 -> 40450 | H135: ='MTSP 50% Income Limits '!H9 -> 43250 | I135: ='MTSP 50% Income Limits '!I9 -> 46050 | J135: =TRUNC(B135/12*0.3) -> 610 | K135: =TRUNC((B135+C135)/2/12*0.3) -> 653 | L135: =TRUNC((D135)/12*0.3) -> 785 | M135: =TRUNC(((E135+F135)/2)/12*0.3) -> 906 | N135: =TRUNC(G135/12*0.3) -> 1011 | O135: =TRUNC(((H135+I135)/2)/12*0.3) -> 1116
A136: Del Norte0.55 | B136: =B135*2*0.55 -> 26840 | C136: =C135*2*0.55 -> 30690 | D136: 34540 | E136: 38335 | F136: 41415 | G136: 44495 | H136: 47575 | I136: 50655 | J136: =TRUNC(B136/12*0.3) -> 671 | K136: =TRUNC((B136+C136)/2/12*0.3) -> 719 | L136: =TRUNC((D136)/12*0.3) -> 863 | M136: =TRUNC(((E136+F136)/2)/12*0.3) -> 996 | N136: =TRUNC(G136/12*0.3) -> 1112 | O136: =TRUNC(((H136+I136)/2)/12*0.3) -> 1227
A137: Del Norte0.6 | B137: =B135*2*0.6 -> 29280 | C137: =C135*2*0.6 -> 33480 | D137: 37680 | E137: 41820 | F137: 45180 | G137: 48540 | H137: 51900 | I137: 55260 | J137: 732 | K137: 784 | L137: 942 | M137: 1087 | N137: 1213 | O137: 1339
A138: Del Norte0.65 | B138: =B135*2*0.65 -> 31720 | C138: =C135*2*0.65 -> 36270 | D138: 40820 | E138: 45305 | F138: 48945 | G138: 52585 | H138: 56225 | I138: 59865 | J138: 793 | K138: 849 | L138: 1020 | M138: 1178 | N138: 1314 | O138: 1451
A139: Del Norte0.7 | B139: =B135*2*0.7 -> 34160 | C139: =C135*2*0.7 -> 39060 | D139: 43960 | E139: 48790 | F139: 52710 | G139: 56630 | H139: 60550 | I139: 64470 | J139: 854 | K139: 915 | L139: 1099 | M139: 1268 | N139: 1415 | O139: 1562
A140: Del Norte0.75 | B140: =B135*2*0.75 -> 36600 | C140: =C135*2*0.75 -> 41850 | D140: 47100 | E140: 52275 | F140: 56475 | G140: 60675 | H140: 64875 | I140: 69075 | J140: 915 | K140: 980 | L140: 1177 | M140: 1359 | N140: 1516 | O140: 1674
A141: Del Norte0.8 | B141: =B135*2*0.8 -> 39040 | C141: =C135*2*0.8 -> 44640 | D141: 50240 | E141: 55760 | F141: 60240 | G141: 64720 | H141: 69200 | I141: 73680 | J141: 976 | K141: 1046 | L141: 1256 | M141: 1450 | N141: 1618 | O141: 1786
A142: Del Norte0.9 | B142: =B135*2*0.9 -> 43920 | C142: =C135*2*0.9 -> 50220 | D142: 56520 | E142: 62730 | F142: 67770 | G142: 72810 | H142: 77850 | I142: 82890 | J142: 1098 | K142: 1176 | L142: 1413 | M142: 1631 | N142: 1820 | O142: 2009
A143: Del Norte1 | B143: =B135*2 -> 48800 | C143: =C135*2 -> 55800 | D143: 62800 | E143: 69700 | F143: 75300 | G143: 80900 | H143: 86500 | I143: 92100 | J143: =J135*2 -> 1220 | K143: =K135*2 -> 1306 | L143: 1570 | M143: 1812 | N143: 2022 | O143: 2232
A144: Del Norte1.1 | B144: =B135*2*1.1 -> 53680 | C144: =C135*2*1.1 -> 61380 | D144: 69080 | E144: 76670 | F144: 82830 | G144: 88990 | H144: 95150 | I144: 101310 | J144: =TRUNC(B144/12*0.3) -> 1342 | K144: =TRUNC((B144+C144)/2/12*0.3) -> 1438 | L144: =TRUNC((D144)/12*0.3) -> 1727 | M144: =TRUNC(((E144+F144)/2)/12*0.3) -> 1993 | N144: =TRUNC(G144/12*0.3) -> 2224 | O144: =TRUNC(((H144+I144)/2)/12*0.3) -> 2455
A145: Del Norte1.2 | B145: =B135*2*1.2 -> 58560 | C145: =C135*2*1.2 -> 66960 | D145: 75360 | E145: 83640 | F145: 90360 | G145: 97080 | H145: 103800 | I145: 110520 | J145: 1464 | K145: 1569 | L145: 1884 | M145: 2175 | N145: 2427 | O145: 2679
A146: El Dorado0.15 | B146: =B153*2*0.15 -> 9525 | C146: =C153*2*0.15 -> 10875 | D146: =D153*2*0.15 -> 12240 | E146: =E153*2*0.15 -> 13590 | F146: =F153*2*0.15 -> 14685 | G146: =G153*2*0.15 -> 15765 | H146: 16860 | I146: 17940 | J146: 238 | K146: 255 | L146: 306 | M146: 353 | N146: 394 | O146: 435
A147: El Dorado0.2 | B147: =B153*2*0.2 -> 12700 | C147: =C153*2*0.2 -> 14500 | D147: 16320 | E147: 18120 | F147: 19580 | G147: 21020 | H147: 22480 | I147: 23920 | J147: 317 | K147: 340 | L147: 408 | M147: 471 | N147: 525 | O147: 580
A148: El Dorado0.25 | B148: =B153*2*0.25 -> 15875 | C148: =C153*2*0.25 -> 18125 | D148: 20400 | E148: 22650 | F148: 24475 | G148: 26275 | H148: 28100 | I148: 29900 | J148: 396 | K148: 425 | L148: 510 | M148: 589 | N148: 656 | O148: 725
A149: El Dorado0.3 | B149: =B153*2*0.3 -> 19050 | C149: =C153*2*0.3 -> 21750 | D149: 24480 | E149: 27180 | F149: 29370 | G149: 31530 | H149: 33720 | I149: 35880 | J149: 476 | K149: 510 | L149: 612 | M149: 706 | N149: 788 | O149: 870
A150: El Dorado0.35 | B150: =B153*2*0.35 -> 22225 | C150: =C153*2*0.35 -> 25375 | D150: 28560 | E150: 31710 | F150: 34265 | G150: 36785 | H150: 39340 | I150: 41860 | J150: 555 | K150: 595 | L150: 714 | M150: 824 | N150: 919 | O150: 1015
A151: El Dorado0.4 | B151: =B153*2*0.4 -> 25400 | C151: =C153*2*0.4 -> 29000 | D151: 32640 | E151: 36240 | F151: 39160 | G151: 42040 | H151: 44960 | I151: 47840 | J151: 635 | K151: 680 | L151: 816 | M151: 942 | N151: 1051 | O151: 1160
A152: El Dorado0.45 | B152: =B153*2*0.45 -> 28575 | C152: =C153*2*0.45 -> 32625 | D152: 36720 | E152: 40770 | F152: 44055 | G152: 47295 | H152: 50580 | I152: 53820 | J152: 714 | K152: 765 | L152: 918 | M152: 1060 | N152: 1182 | O152: 1305
A153: El Dorado0.5 | B153: ='MTSP 50% Income Limits '!B10 -> 31750 | C153: ='MTSP 50% Income Limits '!C10 -> 36250 | D153: ='MTSP 50% Income Limits '!D10 -> 40800 | E153: ='MTSP 50% Income Limits '!E10 -> 45300 | F153: ='MTSP 50% Income Limits '!F10 -> 48950 | G153: ='MTSP 50% Income Limits '!G10 -> 52550 | H153: ='MTSP 50% Income Limits '!H10 -> 56200 | I153: ='MTSP 50% Income Limits '!I10 -> 59800 | J153: =TRUNC(B153/12*0.3) -> 793 | K153: =TRUNC((B153+C153)/2/12*0.3) -> 850 | L153: =TRUNC((D153)/12*0.3) -> 1020 | M153: =TRUNC(((E153+F153)/2)/12*0.3) -> 1178 | N153: =TRUNC(G153/12*0.3) -> 1313 | O153: =TRUNC(((H153+I153)/2)/12*0.3) -> 1450
A154: El Dorado0.55 | B154: =B153*2*0.55 -> 34925 | C154: =C153*2*0.55 -> 39875 | D154: 44880 | E154: 49830 | F154: 53845 | G154: 57805 | H154: 61820 | I154: 65780 | J154: =TRUNC(B154/12*0.3) -> 873 | K154: =TRUNC((B154+C154)/2/12*0.3) -> 935 | L154: =TRUNC((D154)/12*0.3) -> 1122 | M154: =TRUNC(((E154+F154)/2)/12*0.3) -> 1295 | N154: =TRUNC(G154/12*0.3) -> 1445 | O154: =TRUNC(((H154+I154)/2)/12*0.3) -> 1595
A155: El Dorado0.6 | B155: =B153*2*0.6 -> 38100 | C155: =C153*2*0.6 -> 43500 | D155: 48960 | E155: 54360 | F155: 58740 | G155: 63060 | H155: 67440 | I155: 71760 | J155: 952 | K155: 1020 | L155: 1224 | M155: 1413 | N155: 1576 | O155: 1740
A156: El Dorado0.65 | B156: =B153*2*0.65 -> 41275 | C156: =C153*2*0.65 -> 47125 | D156: 53040 | E156: 58890 | F156: 63635 | G156: 68315 | H156: 73060 | I156: 77740 | J156: 1031 | K156: 1105 | L156: 1326 | M156: 1531 | N156: 1707 | O156: 1885
A157: El Dorado0.7 | B157: =B153*2*0.7 -> 44450 | C157: =C153*2*0.7 -> 50750 | D157: 57120 | E157: 63420 | F157: 68530 | G157: 73570 | H157: 78680 | I157: 83720 | J157: 1111 | K157: 1190 | L157: 1428 | M157: 1649 | N157: 1839 | O157: 2030
A158: El Dorado0.75 | B158: =B153*2*0.75 -> 47625 | C158: =C153*2*0.75 -> 54375 | D158: 61200 | E158: 67950 | F158: 73425 | G158: 78825 | H158: 84300 | I158: 89700 | J158: 1190 | K158: 1275 | L158: 1530 | M158: 1767 | N158: 1970 | O158: 2175
A159: El Dorado0.8 | B159: =B153*2*0.8 -> 50800 | C159: =C153*2*0.8 -> 58000 | D159: 65280 | E159: 72480 | F159: 78320 | G159: 84080 | H159: 89920 | I159: 95680 | J159: 1270 | K159: 1360 | L159: 1632 | M159: 1885 | N159: 2102 | O159: 2320
A160: El Dorado0.9 | B160: =B153*2*0.9 -> 57150 | C160: =C153*2*0.9 -> 65250 | D160: 73440 | E160: 81540 | F160: 88110 | G160: 94590 | H160: 101160 | I160: 107640 | J160: 1428 | K160: 1530 | L160: 1836 | M160: 2120 | N160: 2364 | O160: 2610
A161: El Dorado1 | B161: =B153*2 -> 63500 | C161: =C153*2 -> 72500 | D161: 81600 | E161: 90600 | F161: 97900 | G161: 105100 | H161: 112400 | I161: 119600 | J161: =J153*2 -> 1586 | K161: =K153*2 -> 1700 | L161: 2040 | M161: 2356 | N161: 2626 | O161: 2900
A162: El Dorado1.1 | B162: =B153*2*1.1 -> 69850 | C162: =C153*2*1.1 -> 79750 | D162: 89760 | E162: 99660 | F162: 107690 | G162: 115610 | H162: 123640 | I162: 131560 | J162: =TRUNC(B162/12*0.3) -> 1746 | K162: =TRUNC((B162+C162)/2/12*0.3) -> 1870 | L162: =TRUNC((D162)/12*0.3) -> 2244 | M162: =TRUNC(((E162+F162)/2)/12*0.3) -> 2591 | N162: =TRUNC(G162/12*0.3) -> 2890 | O162: =TRUNC(((H162+I162)/2)/12*0.3) -> 3190
A163: El Dorado1.2 | B163: =B153*2*1.2 -> 76200 | C163: =C153*2*1.2 -> 87000 | D163: 97920 | E163: 108720 | F163: 117480 | G163: 126120 | H163: 134880 | I163: 143520 | J163: 1905 | K163: 2040 | L163: 2448 | M163: 2827 | N163: 3153 | O163: 3480
A164: Fresno0.15 | B164: =B171*2*0.15 -> 7320 | C164: =C171*2*0.15 -> 8370 | D164: =D171*2*0.15 -> 9420 | E164: =E171*2*0.15 -> 10455 | F164: =F171*2*0.15 -> 11295 | G164: =G171*2*0.15 -> 12135 | H164: 12975 | I164: 13815 | J164: 183 | K164: 196 | L164: 235 | M164: 271 | N164: 303 | O164: 334
A165: Fresno0.2 | B165: =B171*2*0.2 -> 9760 | C165: =C171*2*0.2 -> 11160 | D165: 12560 | E165: 13940 | F165: 15060 | G165: 16180 | H165: 17300 | I165: 18420 | J165: 244 | K165: 261 | L165: 314 | M165: 362 | N165: 404 | O165: 446
A166: Fresno0.25 | B166: =B171*2*0.25 -> 12200 | C166: =C171*2*0.25 -> 13950 | D166: 15700 | E166: 17425 | F166: 18825 | G166: 20225 | H166: 21625 | I166: 23025 | J166: 305 | K166: 326 | L166: 392 | M166: 453 | N166: 505 | O166: 558
A167: Fresno0.3 | B167: =B171*2*0.3 -> 14640 | C167: =C171*2*0.3 -> 16740 | D167: 18840 | E167: 20910 | F167: 22590 | G167: 24270 | H167: 25950 | I167: 27630 | J167: 366 | K167: 392 | L167: 471 | M167: 543 | N167: 606 | O167: 669
A168: Fresno0.35 | B168: =B171*2*0.35 -> 17080 | C168: =C171*2*0.35 -> 19530 | D168: 21980 | E168: 24395 | F168: 26355 | G168: 28315 | H168: 30275 | I168: 32235 | J168: 427 | K168: 457 | L168: 549 | M168: 634 | N168: 707 | O168: 781
A169: Fresno0.4 | B169: =B171*2*0.4 -> 19520 | C169: =C171*2*0.4 -> 22320 | D169: 25120 | E169: 27880 | F169: 30120 | G169: 32360 | H169: 34600 | I169: 36840 | J169: 488 | K169: 523 | L169: 628 | M169: 725 | N169: 809 | O169: 893
A170: Fresno0.45 | B170: =B171*2*0.45 -> 21960 | C170: =C171*2*0.45 -> 25110 | D170: 28260 | E170: 31365 | F170: 33885 | G170: 36405 | H170: 38925 | I170: 41445 | J170: 549 | K170: 588 | L170: 706 | M170: 815 | N170: 910 | O170: 1004
A171: Fresno0.5 | B171: ='MTSP 50% Income Limits '!B11 -> 24400 | C171: ='MTSP 50% Income Limits '!C11 -> 27900 | D171: ='MTSP 50% Income Limits '!D11 -> 31400 | E171: ='MTSP 50% Income Limits '!E11 -> 34850 | F171: ='MTSP 50% Income Limits '!F11 -> 37650 | G171: ='MTSP 50% Income Limits '!G11 -> 40450 | H171: ='MTSP 50% Income Limits '!H11 -> 43250 | I171: ='MTSP 50% Income Limits '!I11 -> 46050 | J171: =TRUNC(B171/12*0.3) -> 610 | K171: =TRUNC((B171+C171)/2/12*0.3) -> 653 | L171: =TRUNC((D171)/12*0.3) -> 785 | M171: =TRUNC(((E171+F171)/2)/12*0.3) -> 906 | N171: =TRUNC(G171/12*0.3) -> 1011 | O171: =TRUNC(((H171+I171)/2)/12*0.3) -> 1116
A172: Fresno0.55 | B172: =B171*2*0.55 -> 26840 | C172: =C171*2*0.55 -> 30690 | D172: 34540 | E172: 38335 | F172: 41415 | G172: 44495 | H172: 47575 | I172: 50655 | J172: =TRUNC(B172/12*0.3) -> 671 | K172: =TRUNC((B172+C172)/2/12*0.3) -> 719 | L172: =TRUNC((D172)/12*0.3) -> 863 | M172: =TRUNC(((E172+F172)/2)/12*0.3) -> 996 | N172: =TRUNC(G172/12*0.3) -> 1112 | O172: =TRUNC(((H172+I172)/2)/12*0.3) -> 1227
A173: Fresno0.6 | B173: =B171*2*0.6 -> 29280 | C173: =C171*2*0.6 -> 33480 | D173: 37680 | E173: 41820 | F173: 45180 | G173: 48540 | H173: 51900 | I173: 55260 | J173: 732 | K173: 784 | L173: 942 | M173: 1087 | N173: 1213 | O173: 1339
A174: Fresno0.65 | B174: =B171*2*0.65 -> 31720 | C174: =C171*2*0.65 -> 36270 | D174: 40820 | E174: 45305 | F174: 48945 | G174: 52585 | H174: 56225 | I174: 59865 | J174: 793 | K174: 849 | L174: 1020 | M174: 1178 | N174: 1314 | O174: 1451
A175: Fresno0.7 | B175: =B171*2*0.7 -> 34160 | C175: =C171*2*0.7 -> 39060 | D175: 43960 | E175: 48790 | F175: 52710 | G175: 56630 | H175: 60550 | I175: 64470 | J175: 854 | K175: 915 | L175: 1099 | M175: 1268 | N175: 1415 | O175: 1562
A176: Fresno0.75 | B176: =B171*2*0.75 -> 36600 | C176: =C171*2*0.75 -> 41850 | D176: 47100 | E176: 52275 | F176: 56475 | G176: 60675 | H176: 64875 | I176: 69075 | J176: 915 | K176: 980 | L176: 1177 | M176: 1359 | N176: 1516 | O176: 1674
A177: Fresno0.8 | B177: =B171*2*0.8 -> 39040 | C177: =C171*2*0.8 -> 44640 | D177: 50240 | E177: 55760 | F177: 60240 | G177: 64720 | H177: 69200 | I177: 73680 | J177: 976 | K177: 1046 | L177: 1256 | M177: 1450 | N177: 1618 | O177: 1786
A178: Fresno0.9 | B178: =B171*2*0.9 -> 43920 | C178: =C171*2*0.9 -> 50220 | D178: 56520 | E178: 62730 | F178: 67770 | G178: 72810 | H178: 77850 | I178: 82890 | J178: 1098 | K178: 1176 | L178: 1413 | M178: 1631 | N178: 1820 | O178: 2009
A179: Fresno1 | B179: =B171*2 -> 48800 | C179: =C171*2 -> 55800 | D179: 62800 | E179: 69700 | F179: 75300 | G179: 80900 | H179: 86500 | I179: 92100 | J179: =J171*2 -> 1220 | K179: =K171*2 -> 1306 | L179: 1570 | M179: 1812 | N179: 2022 | O179: 2232
A180: Fresno1.1 | B180: =B171*2*1.1 -> 53680 | C180: =C171*2*1.1 -> 61380 | D180: 69080 | E180: 76670 | F180: 82830 | G180: 88990 | H180: 95150 | I180: 101310 | J180: =TRUNC(B180/12*0.3) -> 1342 | K180: =TRUNC((B180+C180)/2/12*0.3) -> 1438 | L180: =TRUNC((D180)/12*0.3) -> 1727 | M180: =TRUNC(((E180+F180)/2)/12*0.3) -> 1993 | N180: =TRUNC(G180/12*0.3) -> 2224 | O180: =TRUNC(((H180+I180)/2)/12*0.3) -> 2455
A181: Fresno1.2 | B181: =B171*2*1.2 -> 58560 | C181: =C171*2*1.2 -> 66960 | D181: 75360 | E181: 83640 | F181: 90360 | G181: 97080 | H181: 103800 | I181: 110520 | J181: 1464 | K181: 1569 | L181: 1884 | M181: 2175 | N181: 2427 | O181: 2679
A182: Glenn0.15 | B182: =B189*2*0.15 -> 7320 | C182: =C189*2*0.15 -> 8370 | D182: =D189*2*0.15 -> 9420 | E182: =E189*2*0.15 -> 10455 | F182: =F189*2*0.15 -> 11295 | G182: =G189*2*0.15 -> 12135 | H182: 12975 | I182: 13815 | J182: 183 | K182: 196 | L182: 235 | M182: 271 | N182: 303 | O182: 334
A183: Glenn0.2 | B183: =B189*2*0.2 -> 9760 | C183: =C189*2*0.2 -> 11160 | D183: 12560 | E183: 13940 | F183: 15060 | G183: 16180 | H183: 17300 | I183: 18420 | J183: 244 | K183: 261 | L183: 314 | M183: 362 | N183: 404 | O183: 446
A184: Glenn0.25 | B184: =B189*2*0.25 -> 12200 | C184: =C189*2*0.25 -> 13950 | D184: 15700 | E184: 17425 | F184: 18825 | G184: 20225 | H184: 21625 | I184: 23025 | J184: 305 | K184: 326 | L184: 392 | M184: 453 | N184: 505 | O184: 558
A185: Glenn0.3 | B185: =B189*2*0.3 -> 14640 | C185: =C189*2*0.3 -> 16740 | D185: 18840 | E185: 20910 | F185: 22590 | G185: 24270 | H185: 25950 | I185: 27630 | J185: 366 | K185: 392 | L185: 471 | M185: 543 | N185: 606 | O185: 669
A186: Glenn0.35 | B186: =B189*2*0.35 -> 17080 | C186: =C189*2*0.35 -> 19530 | D186: 21980 | E186: 24395 | F186: 26355 | G186: 28315 | H186: 30275 | I186: 32235 | J186: 427 | K186: 457 | L186: 549 | M186: 634 | N186: 707 | O186: 781
A187: Glenn0.4 | B187: =B189*2*0.4 -> 19520 | C187: =C189*2*0.4 -> 22320 | D187: 25120 | E187: 27880 | F187: 30120 | G187: 32360 | H187: 34600 | I187: 36840 | J187: 488 | K187: 523 | L187: 628 | M187: 725 | N187: 809 | O187: 893
A188: Glenn0.45 | B188: =B189*2*0.45 -> 21960 | C188: =C189*2*0.45 -> 25110 | D188: 28260 | E188: 31365 | F188: 33885 | G188: 36405 | H188: 38925 | I188: 41445 | J188: 549 | K188: 588 | L188: 706 | M188: 815 | N188: 910 | O188: 1004
A189: Glenn0.5 | B189: ='MTSP 50% Income Limits '!B12 -> 24400 | C189: ='MTSP 50% Income Limits '!C12 -> 27900 | D189: ='MTSP 50% Income Limits '!D12 -> 31400 | E189: ='MTSP 50% Income Limits '!E12 -> 34850 | F189: ='MTSP 50% Income Limits '!F12 -> 37650 | G189: ='MTSP 50% Income Limits '!G12 -> 40450 | H189: ='MTSP 50% Income Limits '!H12 -> 43250 | I189: ='MTSP 50% Income Limits '!I12 -> 46050 | J189: =TRUNC(B189/12*0.3) -> 610 | K189: =TRUNC((B189+C189)/2/12*0.3) -> 653 | L189: =TRUNC((D189)/12*0.3) -> 785 | M189: =TRUNC(((E189+F189)/2)/12*0.3) -> 906 | N189: =TRUNC(G189/12*0.3) -> 1011 | O189: =TRUNC(((H189+I189)/2)/12*0.3) -> 1116
A190: Glenn0.55 | B190: =B189*2*0.55 -> 26840 | C190: =C189*2*0.55 -> 30690 | D190: 34540 | E190: 38335 | F190: 41415 | G190: 44495 | H190: 47575 | I190: 50655 | J190: =TRUNC(B190/12*0.3) -> 671 | K190: =TRUNC((B190+C190)/2/12*0.3) -> 719 | L190: =TRUNC((D190)/12*0.3) -> 863 | M190: =TRUNC(((E190+F190)/2)/12*0.3) -> 996 | N190: =TRUNC(G190/12*0.3) -> 1112 | O190: =TRUNC(((H190+I190)/2)/12*0.3) -> 1227
A191: Glenn0.6 | B191: =B189*2*0.6 -> 29280 | C191: =C189*2*0.6 -> 33480 | D191: 37680 | E191: 41820 | F191: 45180 | G191: 48540 | H191: 51900 | I191: 55260 | J191: 732 | K191: 784 | L191: 942 | M191: 1087 | N191: 1213 | O191: 1339
A192: Glenn0.65 | B192: =B189*2*0.65 -> 31720 | C192: =C189*2*0.65 -> 36270 | D192: 40820 | E192: 45305 | F192: 48945 | G192: 52585 | H192: 56225 | I192: 59865 | J192: 793 | K192: 849 | L192: 1020 | M192: 1178 | N192: 1314 | O192: 1451
A193: Glenn0.7 | B193: =B189*2*0.7 -> 34160 | C193: =C189*2*0.7 -> 39060 | D193: 43960 | E193: 48790 | F193: 52710 | G193: 56630 | H193: 60550 | I193: 64470 | J193: 854 | K193: 915 | L193: 1099 | M193: 1268 | N193: 1415 | O193: 1562
A194: Glenn0.75 | B194: =B189*2*0.75 -> 36600 | C194: =C189*2*0.75 -> 41850 | D194: 47100 | E194: 52275 | F194: 56475 | G194: 60675 | H194: 64875 | I194: 69075 | J194: 915 | K194: 980 | L194: 1177 | M194: 1359 | N194: 1516 | O194: 1674
A195: Glenn0.8 | B195: =B189*2*0.8 -> 39040 | C195: =C189*2*0.8 -> 44640 | D195: 50240 | E195: 55760 | F195: 60240 | G195: 64720 | H195: 69200 | I195: 73680 | J195: 976 | K195: 1046 | L195: 1256 | M195: 1450 | N195: 1618 | O195: 1786
A196: Glenn0.9 | B196: =B189*2*0.9 -> 43920 | C196: =C189*2*0.9 -> 50220 | D196: 56520 | E196: 62730 | F196: 67770 | G196: 72810 | H196: 77850 | I196: 82890 | J196: 1098 | K196: 1176 | L196: 1413 | M196: 1631 | N196: 1820 | O196: 2009
A197: Glenn1 | B197: =B189*2 -> 48800 | C197: =C189*2 -> 55800 | D197: 62800 | E197: 69700 | F197: 75300 | G197: 80900 | H197: 86500 | I197: 92100 | J197: =J189*2 -> 1220 | K197: =K189*2 -> 1306 | L197: 1570 | M197: 1812 | N197: 2022 | O197: 2232
A198: Glenn1.1 | B198: =B189*2*1.1 -> 53680 | C198: =C189*2*1.1 -> 61380 | D198: 69080 | E198: 76670 | F198: 82830 | G198: 88990 | H198: 95150 | I198: 101310 | J198: =TRUNC(B198/12*0.3) -> 1342 | K198: =TRUNC((B198+C198)/2/12*0.3) -> 1438 | L198: =TRUNC((D198)/12*0.3) -> 1727 | M198: =TRUNC(((E198+F198)/2)/12*0.3) -> 1993 | N198: =TRUNC(G198/12*0.3) -> 2224 | O198: =TRUNC(((H198+I198)/2)/12*0.3) -> 2455
A199: Glenn1.2 | B199: =B189*2*1.2 -> 58560 | C199: =C189*2*1.2 -> 66960 | D199: 75360 | E199: 83640 | F199: 90360 | G199: 97080 | H199: 103800 | I199: 110520 | J199: 1464 | K199: 1569 | L199: 1884 | M199: 2175 | N199: 2427 | O199: 2679
A200: Humboldt0.15 | B200: =B207*2*0.15 -> 7320 | C200: =C207*2*0.15 -> 8370 | D200: =D207*2*0.15 -> 9420 | E200: =E207*2*0.15 -> 10455 | F200: =F207*2*0.15 -> 11295 | G200: =G207*2*0.15 -> 12135 | H200: 12975 | I200: 13815 | J200: 183 | K200: 196 | L200: 235 | M200: 271 | N200: 303 | O200: 334
... 845 more rows

Sheet Drop Down (hidden)
A1: Contacts | B1: Contacts | C1: Site & Units | D1: Alameda | E1: Bay Area | F1: Rents | G1: Dev Sources | H1: Dev Sources | I1: Dev Sources | J1: Target Population
A2: FORM OF ENTITY | B2: Partner or Member Role | C2: Site Control | D2: Alpine | E2: Balance of State | F2: Income Limit | G2: Required Payment | H2: Repayment Terms Type | I2: Interest Rate Type | J2: At-Risk of Homelessness | K2: City
A3: Yet to be formed L.P. | B3: Managing General Partner of Owner | C3: Fee Title | D3: Amador | E3: Balance of State | F3: None | G3: Interest Only | H3: Fully Amortized | I3: Fixed for Term | J3: Chronic Homeless | K3: County
A4: Yet to be formed LLC | B4: General Partner of Owner | C4: Purchase Option | D4: Butte | E4: Balance of State | F4: 0.15 | G4: Deferred | H4: Amortized with Call | I4: Fixed with Reset | J4: Homeless | K4: Council of Governement
A5: Limited Partnership | B5: Administrative General Partner of Owner | C5: Lease | D5: Calaveras | E5: Balance of State | F5: 0.2 | G5: None | H5: Residual Receipts | I5: Fixed, then Variable | J5: Homeless Youth or Youth at Risk of Homelessness | K5: Metropolitan Planning Organization
A6: Limited Liability Company | B6: Managing Member | C6: Lease Option | D6: Colusa | E6: Balance of State | F6: 0.25 | G6: Other | H6: Deferred | I6: Variable | K6: Regional Transportation Planning Agency
A7: Non-profit Corporation | B7: Other | C7: DDA | D7: Contra Costa | E7: Bay Area | F7: 0.3 | H7: Interest Only | I7: Other | K7: Public Housing Authority (PHA)
A8: Non-profit Public Benefit Corporation | C8: Eminent Domain | D8: Del Norte | E8: Balance of State | F8: 0.35 | H8: Fixed to Float | K8: Other local public entity
A9: For-profit Corporation | C9: Other -specify in Applicant Notes | D9: El Dorado | E9: Sacramento Area | F9: 0.4 | H9: Partial Int. Only | K9: Tribal Entity
A10: Tribal Government | D10: Fresno | E10: San Joaquin Valley | F10: 0.45 | K10: Nonprofit Corporation
A11: Public Agency | D11: Glenn | E11: Balance of State | F11: 0.5 | K11: For-profit Corporation
A12: Joint Powers Authority | D12: Humboldt | E12: Balance of State | F12: 0.55
A13: Individual(s) | D13: Imperial | E13: Southern California | F13: 0.6
A14: Other | D14: Inyo | E14: Balance of State | F14: 0.65
D15: Kern | E15: San Joaquin Valley | F15: 0.7
D16: Kings | E16: San Joaquin Valley | F16: 0.75
D17: Lake | E17: Balance of State | F17: 0.8
D18: Lassen | E18: Balance of State | F18: 0.9
D19: Los Angeles | E19: Los Angeles County | F19: 1
D20: Madera | E20: San Joaquin Valley | F20: 1.1
D21: Marin | E21: Bay Area | F21: 1.2
D22: Mariposa | E22: Balance of State
D23: Mendocino | E23: Balance of State
D24: Merced | E24: San Joaquin Valley
D25: Modoc | E25: Balance of State
D26: Mono | E26: Balance of State
D27: Monterey | E27: Central Coast
D28: Napa | E28: Bay Area
D29: Nevada | E29: Balance of State
D30: Orange | E30: Southern California
D31: Placer | E31: Sacramento Area
D32: Plumas | E32: Balance of State
D33: Riverside | E33: Southern California
D34: Sacramento | E34: Sacramento Area
D35: San Benito | E35: Central Coast
D36: San Bernardino | E36: Southern California
D37: San Diego | E37: San Diego County
D38: San Francisco | E38: Bay Area
D39: San Joaquin | E39: San Joaquin Valley
D40: San Luis Obispo | E40: Central Coast
D41: San Mateo | E41: Bay Area
D42: Santa Barbara | E42: Central Coast
D43: Santa Clara | E43: Bay Area
D44: Santa Cruz | E44: Central Coast
D45: Shasta | E45: Balance of State
D46: Sierra | E46: Balance of State
D47: Siskiyou | E47: Balance of State
D48: Solano | E48: Bay Area
D49: Sonoma | E49: Bay Area
D50: Stanislaus | E50: San Joaquin Valley
D51: Sutter | E51: Sacramento Area
D52: Tehama | E52: Balance of State
D53: Trinity | E53: Balance of State
D54: Tulare | E54: San Joaquin Valley
D55: Tuolumne | E55: Balance of State
D56: Ventura | E56: Southern California
D57: Yolo | E57: Sacramento Area
D58: Yuba | E58: Sacramento Area

Sheet Dev Sources
A1: Sources of Funds | M1: =CoverPage!B11 -> 2022-02-01
A2: Funding Committed by Application Due Date? | C2: Source Name | F2: Source Type | G2: Lien No. | H2: Funding Amount | I2: Interest Rate | K2: Repayment Terms | M2: Required Debt Service Amount
I3: Type | J3: Rate | K3: Type | L3: Due in (yrs)
A4: 1 | B4: Yes | C4: Homekey Capital Award from 'Overview' worksheet | E4: =Overview!AI18+Overview!AI20+Overview!AI21-'Cash Flow'!D73 -> 0 | F4: State-HCD
A5: 2
A6: 3
A7: 4
A8: 5
A9: 6
A10: 7
A11: 8
A12: 9
A13: 10
H14: =SUM(H4:H13) -> 0 | M14: =SUM(M4:M13) -> 0
A15: File Name: | C15: EFC1, EFC2, EFCI3, etc. | E15: Documentation for the executed funding commitments (see below) | K15: Uploaded to HCD?
A16: "Article VII((xii) "Enforceable Funding Commitment” means a letter or other document, in form and substance satisfactory to the Department, which evidences an enforceable commitment of funds or a reservation of funds by a Project funding source, and which contains the following: a. The name of the Applicant or Grantee; b. The Project name; c. The Project site address, assessor’s parcel number, or legal description; and d. The amount, interest rate (if any), and terms of the funding source. The Enforceable Funding Commitment may be conditioned on certain standard underwriting criteria, such as appraisals, but may not be generally conditional. Examples of unacceptable general conditions include phrases such as “subject to senior management approval,” or a statement that omits the word “commitment,” but instead indicates the lender’s “willingness to process an application” or indicates that financing is subject to loan committee approval of the Project. Contingencies in commitment documents based upon the receipt of tax-exempt bonds or low-income housing tax credits will not disqualify a source from being counted as committed.
A17: Applicant comments: Include a description of balloon payments and unusual or extraordinary circumstances.

Sheet Dev Budget
A1: =CoverPage!B11 -> 2022-02-01 | B1: Sources/Uses of Funds
A2: USES OF FUNDS | B2: Homekey Award | C2: ='Dev Sources'!C5 -> 0 | D2: ='Dev Sources'!C6 -> 0 | E2: ='Dev Sources'!C7 -> 0 | F2: ='Dev Sources'!C8 -> 0 | G2: ='Dev Sources'!C9 -> 0 | H2: ='Dev Sources'!C10 -> 0 | I2: ='Dev Sources'!C11 -> 0 | J2: ='Dev Sources'!C12 -> 0 | K2: ='Dev Sources'!C13 -> 0 | L2: Total Sources/Costs
A4: Project Development Costs
A5: LAND COST/ACQUISITION
A6: Land Cost or Value | L6: =SUM(B6:K6) -> 0
A7: Demolition | L7: =SUM(B7:K7) -> 0
A8: Legal | L8: =SUM(B8:K8) -> 0
A9: Land Lease Rent Prepayment | L9: =SUM(B9:K9) -> 0
A10: Total Land Cost or Value | B10: =SUM(B6:B9) -> 0 | C10: 0 | D10: 0 | E10: 0 | F10: 0 | G10: 0 | H10: 0 | I10: 0 | J10: 0 | K10: 0 | L10: 0
A11: Existing Improvements Cost or Value | L11: =SUM(B11:K11) -> 0
A12: Off-Site Improvements | L12: =SUM(B12:K12) -> 0
A13: Total Acquisition Cost | B13: =SUM(B11:B12) -> 0 | C13: 0 | D13: 0 | E13: 0 | F13: 0 | G13: 0 | H13: 0 | I13: 0 | J13: 0 | K13: 0 | L13: 0
A14: Total Land Cost / Acquisition Cost | B14: =SUM(B10+B13) -> 0 | C14: =SUM(C10+C13) -> 0 | D14: 0 | E14: 0 | F14: 0 | G14: 0 | H14: 0 | I14: 0 | J14: 0 | K14: 0 | L14: 0
A15: Predevelopment Interest/Holding Cost | L15: =SUM(B15:K15) -> 0
A16: Assumed, Accrued Interest on Existing Debt (Rehab/Acq) | L16: =SUM(B16:K16) -> 0
A17: Excess Purchase Price Over Appraisal | L17: =SUM(B17:K17) -> 0
A18: REHABILITATION
A19: Site Work | L19: =SUM(B19:K19) -> 0
A20: Structures | L20: 0
A21: General Requirements | L21: 0
A22: Contractor Overhead | L22: 0
A23: Contractor Profit | L23: 0
A24: Prevailing Wages | L24: 0
A25: General Liability Insurance | L25: 0
A26: Urban Greening | L26: 0
A27: Other Rehabilitation: (Specify) | L27: 0
A28: Other Rehabilitation: (Specify) | L28: 0
A29: Other Rehabilitation: (Specify) | L29: 0
A30: Total Rehabilitation Costs | B30: =SUM(B19:B29) -> 0 | C30: =SUM(C19:C29) -> 0 | D30: 0 | E30: 0 | F30: 0 | G30: 0 | H30: 0 | I30: 0 | J30: 0 | K30: 0 | L30: 0
A31: Total Relocation Expenses | L31: =SUM(B31:K31) -> 0
A32: NEW CONSTRUCTION
A33: Site Work | L33: =SUM(B33:K33) -> 0
A34: Structures | L34: 0
A35: General Requirements | L35: 0
A36: Contractor Overhead | L36: 0
A37: Contractor Profit | L37: 0
A38: Prevailing Wages | L38: 0
A39: General Liability Insurance | L39: 0
A40: Urban Greening | L40: 0
A41: Other New Construction: (Specify) | L41: =SUM(B41:K41) -> 0
A42: Other New Construction: (Specify) | L42: =SUM(B42:K42) -> 0
A43: Other New Construction: (Specify) | L43: 0
A44: Other New Construction: (Specify) | L44: 0
A45: Other New Construction: (Specify) | L45: 0
A46: Other New Construction: (Specify) | L46: 0
A47: Total New Construction Costs | B47: =SUM(B33:B46) -> 0 | C47: =SUM(C33:C46) -> 0 | D47: =SUM(D33:D46) -> 0 | E47: 0 | F47: 0 | G47: 0 | H47: 0 | I47: 0 | J47: 0 | K47: 0 | L47: 0
A48: ARCHITECTURAL FEES
A49: Design | L49: =SUM(B49:K49) -> 0
A50: Supervision | L50: =SUM(B50:K50) -> 0
A51: Total Architectural Costs | B51: =SUM(B48:B50) -> 0 | C51: =SUM(C48:C50) -> 0 | D51: =SUM(D48:D50) -> 0 | E51: 0 | F51: 0 | G51: 0 | H51: 0 | I51: 0 | J51: 0 | K51: 0 | L51: 0
A52: Total Survey & Engineering | L52: =SUM(B52:K52) -> 0
A53: CONSTRUCTION INTEREST & FEES
A54: Construction Loan Interest | L54: =SUM(B54:K54) -> 0
A55: Origination Fee | L55: 0
A56: Credit Enhancement/Application Fee | L56: 0
A57: Bond Premium | L57: 0
A58: Cost of Issuance | L58: 0
A59: Title & Recording | L59: 0
A60: Taxes | L60: 0
A61: Insurance | L61: 0
A62: Employment Reporting | L62: 0
A63: Other Construction Int. & Fees: (Specify) | L63: 0
A64: Other Construction Int. & Fees: (Specify) | L64: 0
A65: Other Construction Int. & Fees: (Specify) | L65: 0
A66: Other Construction Int. & Fees: (Specify) | L66: 0
A67: Total Construction Interest & Fees | B67: =SUM(B54:B66) -> 0 | C67: =SUM(C54:C66) -> 0 | D67: =SUM(D54:D66) -> 0 | E67: 0 | F67: 0 | G67: 0 | H67: 0 | I67: 0 | J67: 0 | K67: 0 | L67: 0
A68: PERMANENT FINANCING
A69: Loan Origination Fee | L69: =SUM(B69:K69) -> 0
A70: Credit Enhancement/Application Fee | L70: 0
A71: Title & Recording | L71: 0
A72: Taxes | L72: 0
A73: Insurance | L73: 0
A74: Other Perm. Financing Costs: (Specify) | L74: 0
A75: Other Perm. Financing Costs: (Specify) | L75: 0
A76: Other Perm. Financing Costs: (Specify) | L76: 0
A77: Other Perm. Financing Costs: (Specify) | L77: 0
A78: Total Permanent Financing Costs | B78: =SUM(B69:B77) -> 0 | C78: 0 | D78: 0 | E78: 0 | F78: 0 | G78: 0 | H78: 0 | I78: 0 | J78: 0 | K78: 0 | L78: 0
A79: Subtotals Forward | B79: =SUM(B10+B13+B15+B16+B17+B30+B31+B47+B51+B52+B67+B78) -> 0 | C79: =SUM(C10+C13+C15+C16+C17+C30+C31+C47+C51+C52+C67+C78) -> 0 | D79: 0 | E79: 0 | F79: 0 | G79: 0 | H79: 0 | I79: 0 | J79: 0 | K79: 0 | L79: 0
A80: LEGAL FEES
A81: Legal Paid by Applicant | L81: =SUM(B81:K81) -> 0
A82: Other Attorney Costs: (Specify) | L82: =SUM(B82:K82) -> 0
A83: Other Attorney Costs: (Specify) | L83: =SUM(B83:K83) -> 0
A84: Other Attorney Costs: (Specify) | L84: =SUM(B84:K84) -> 0
A85: Total Attorney Costs | B85: =SUM(B80:B84) -> 0 | C85: =SUM(C80:C84) -> 0 | D85: =SUM(D80:D84) -> 0 | E85: 0 | F85: 0 | G85: 0 | H85: 0 | I85: 0 | J85: 0 | K85: 0 | L85: 0
A86: RESERVES
A87: Operating Reserve | L87: =SUM(B87:K87) -> 0
A88: Replacement Reserve | L88: 0
A89: Transition Reserve | L89: 0
A90: Rent Reserve | L90: 0
A91: Other Reserve Costs: (Specify) | L91: 0
A92: Other Reserve Costs: (Specify) | L92: 0
A93: Other Reserve Costs: (Specify) | L93: 0
A94: Total Reserve Costs | B94: =SUM(B87:B93) -> 0 | C94: 0 | D94: 0 | E94: 0 | F94: 0 | G94: 0 | H94: 0 | I94: 0 | J94: 0 | K94: 0 | L94: 0
A95: CONTINGENCY COSTS
A96: Construction Hard Cost Contingency | L96: =SUM(B96:K96) -> 0
A97: Soft Cost Contingency | L97: =SUM(B97:K97) -> 0
A98: Total Contingency Costs | B98: =SUM(B96:B97) -> 0 | C98: 0 | D98: 0 | E98: 0 | F98: 0 | G98: 0 | H98: 0 | I98: 0 | J98: 0 | K98: 0 | L98: 0
A99: OTHER PROJECT COSTS
A100: TCAC App/Allocation/Monitoring Fees | L100: =SUM(B100:K100) -> 0
A101: Environmental Audit | L101: 0
A102: Local Development Impact Fees | L102: 0
A103: Permit Processing Fees | L103: 0
A104: Capital Fees | L104: 0
A105: Marketing | L105: 0
A106: Furnishings | L106: 0
A107: Market Study | L107: 0
A108: Accounting/Reimbursable | L108: 0
A109: Appraisal Costs | L109: 0
A110: Other Costs: (Specify) | L110: 0
A111: Other Costs: (Specify) | L111: 0
A112: Other Costs: (Specify) | L112: 0
A113: Other Costs: (Specify) | L113: 0
A114: Other Costs: (Specify) | L114: 0
A115: Other Costs: (Specify) | L115: 0
A116: Total Other Costs | B116: =SUM(B100:B115) -> 0 | C116: =SUM(C100:C115) -> 0 | D116: =SUM(D100:D115) -> 0 | E116: 0 | F116: 0 | G116: 0 | H116: 0 | I116: 0 | J116: 0 | K116: 0 | L116: 0
A117: SUBTOTAL PROJECT COST | B117: =SUM(B79+B85+B94+B98+B116) -> 0 | C117: =SUM(C79+C85+C94+C98+C116) -> 0 | D117: =SUM(D79+D85+D94+D98+D116) -> 0 | E117: 0 | F117: 0 | G117: 0 | H117: 0 | I117: 0 | J117: 0 | K117: 0 | L117: 0
A118: DEVELOPER COSTS
A119: Developer Overhead/Profit | L119: =SUM(B119:K119) -> 0
A120: Consultant/Processing Agent | L120: 0
A121: Project Administration | L121: 0
A122: Broker Fees Paid to a Related Party | L122: 0
A123: Construction Oversight by Developer | L123: 0
A124: Other Developer Costs: (Specify) | L124: 0
A125: Total Developer Costs | B125: =SUM(B119:B124) -> 0 | C125: 0 | D125: 0 | E125: 0 | F125: 0 | G125: 0 | H125: 0 | I125: 0 | J125: 0 | K125: 0 | L125: 0
A126: Total Project Costs | B126: =SUM(B117+B125) -> 0 | C126: =SUM(C117+C125) -> 0 | D126: 0 | E126: 0 | F126: 0 | G126: 0 | H126: 0 | I126: 0 | J126: 0 | K126: 0 | L126: 0

Sheet Operating
A1: =Overview!E29 -> 0
A2: =CoverPage!B11 -> 2022-02-01 | C2: Year 1 Annual Income and Expenses
A4: Employee Information | F4: Comments
A5: No. | B5: FTE | C5: Employee Job Title | D5: Salary/Wages | E5: Value of Free Rent
C6: On-Site Manager(s) | D6: 0 | E6: 0
C7: On-Site Assistant Manager(s) | D7: 0 | E7: 0
C8: Supportive Services Staff Supervisor(s) | D8: 0
C9: Supportive Services Coordinator, On-Site | D9: 0
C10: Other Supportive Services Staff (inc. Case Manager) | D10: 0
C11: On-Site Maintenance Employee(s) | D11: 0 | E11: 0
C12: On-Site Leasing Agent/Administrative Employee(s) | D12: 0 | E12: 0
C13: On-Site Security Employee(s) | D13: 0 | E13: 0
D14: 0 | E14: 0
D15: 0 | E15: 0
C16: Total Salaries and Value of Free Rent Units | D16: =SUM(D6:D15) -> 0 | E16: =SUM(E6:E15) -> 0
B17: 6711 | C17: Payroll Taxes | D17: 0 | E17: Show free rent as an
B18: 6722 | C18: Workers Compensation | D18: 0 | E18: expense? | H18: Count free rent as an
B19: 6723 | C19: Employee Benefits | D19: 0 | E19: Yes | H19: expense?
C20: Employee(s) Payroll Taxes, Workers Comp. & Benefits | D20: =SUM(D17:D19) -> 0 | H20: =IF(E19="Yes",1,0) -> 1
C21: Total Employee(s) Expenses | D21: =D20+D16 -> 0
A24: Employee Units
A25: Income Limit | C25: Job Title(s) of Employee(s) Living On-Site | D25: Unit Type (No. of bdrms.) | E25: Square Footage | G25: Income Limit | H25: Job Title(s) of Employee(s) Living On-Site
D26: 0 | E26: 0 | G26: 0.6 | H26: On-Site Manager(s)
D27: 0 | E27: 0 | G27: 0.55 | H27: On-Site Assistant Manager(s)
D28: 0 | E28: 0 | G28: 0.5 | H28: On-Site Maintenance Employee(s)
D29: Total Square Footage | E29: =SUM(E26:E28) -> 0 | G29: None | H29: On-Site Leasing Agent/Administrative Employee(s)
A30: Year 1 Annual Operating Budget | G30: Other | H30: On-Site Security Employee(s)
A31: Acct. No. | C31: Revenue - Income | D31: Residential | E31: Commercial | F31: Comments | H31: Services Coordinator
A32: 5120/5140 | C32: Rent Revenue - Gross Potential | E32: 0
C33: Restricted Unit Rents | D33: ='Cash Flow'!D5 -> 0
C34: Unrestricted Unit Rents | D34: ='Cash Flow'!D6 -> 0
A35: 5121 | C35: Tenant Assistance Payments
C36: ='Award, Match, and Revenue'!M3 -> Subsidy Program #1 Name | D36: ='Award, Match, and Revenue'!N26 -> 0
C37: ='Award, Match, and Revenue'!O3 -> Subsidy Program #2 Name | D37: ='Award, Match, and Revenue'!P26 -> 0
C38: Operating Subsidy: (specify) | D38: 0
C39: Operating Subsidy: (specify) | D39: 0 | E39: 0
A40: 5910 | C40: Laundry and Vending Revenue | D40: 0
A41: 5170 | C41: Garage and Parking Spaces | D41: 0 | E41: 0
A42: 5990 | C42: Interim Housing Revenue | D42: 0 | E42: 0
C43: Gross Potential Income (GPI) | D43: =SUM(D32:D42) -> 0 | E43: =SUM(E32:E42) -> 0
C45: Vacancy Rate: Restricted Units | D45: 0.05
C46: Vacancy Rate: Unrestricted Units | D46: 0.05
C47: Vacancy Rate: Tenant Assistance Payments | D47: 0.05
C48: ="Vacancy Rate: " & C39 -> Vacancy Rate: Operating Subsidy: (specify) | D48: 0.05
C49: Vacancy Rate: Laundry & Vending & Other Income | D49: 0.05
C50: Vacancy Rate: Commercial Income | E50: 0.5
A51: 5220/5240 | C51: Vacancy Loss(es) | D51: =(D33*D45)+(D34*D46)+((D36+D37)*D47)+(D39*D48)+((D40+D41+D42)*D49) -> 0 | E51: =+E43*E50 -> 0
C52: Effective Gross Income (EGI) | D52: =+D43-D51 -> 0 | E52: =+E43-E51 -> 0
A53: Acct. No. | C53: Expenses | D53: Residential | E53: Commercial | F53: Comments
C55: Administrative Expenses: 6200/6300
A56: 6203 | C56: Conventions and Meetings | D56: 0 | E56: 0
A57: 6210 | C57: Advertising and Marketing | D57: 0 | E57: 0
A58: 6250 | C58: Other Renting Expenses | D58: 0 | E58: 0
A59: 6310 | C59: Office/Administrative Salaries -- from above | D59: =D12 -> 0 | E59: 0
A60: 6311 | C60: Office Expenses | D60: 0 | E60: 0
A61: 6312 | C61: Office or Model Apartment Rent | D61: 0 | E61: 0
A62: 6320 | C62: Management Fee | D62: 0 | E62: 0
A63: 6330 | C63: Site/Resident Manager(s) Salaries -- from above | D63: =D6+D7 -> 0 | E63: 0
A64: 6331 | C64: Administrative Free Rent Unit -- from above | D64: =IF(H20=1,E6+E7+E12,0) -> 0 | E64: 0
A65: 6340 | C65: Legal Expense -- Project | D65: 0 | E65: 0
A66: 6350 | C66: Audit Expense | D66: 0 | E66: 0
A67: 6351 | C67: Bookkeeping Fees/Accounting Services | D67: 0 | E67: 0
A68: 6390 | C68: Miscellaneous Administrative Expenses | D68: 0 | E68: 0
A69: 6263T | C69: Total Administrative Expenses | D69: =SUM(D56:D68) -> 0 | E69: =SUM(E56:E68) -> 0
A70: Acct. No. | C70: Expenses | D70: Residential | E70: Commercial | F70: Comments
C71: Utilities Expenses: 6400
A72: 6450 | C72: Electricity | D72: 0 | E72: 0
A73: 6451 | C73: Water | D73: 0 | E73: 0
A74: 6452 | C74: Gas | D74: 0 | E74: 0
A75: 6453 | C75: Sewer | D75: 0 | E75: 0
C76: Other Utilities: (specify) | D76: 0 | E76: 0
A77: 6400T | C77: Total Utilities Expenses | D77: =SUM(D72:D76) -> 0 | E77: =SUM(E72:E76) -> 0
C78: Operating and Maintenance Expenses: 6500 | F78: Comments
A79: 6510 | C79: Payroll -- from above | D79: =D11+D13+D14+D15 -> 0 | E79: 0
A80: 6515 | C80: Supplies | D80: 0 | E80: 0
A81: 6520 | C81: Contracts | D81: 0 | E81: 0
A82: 6521 | C82: Operating & Maintenance Free Rent Unit -- from above | D82: =IF(H20=1,E11+E14+E15,0) -> 0 | E82: 0
A83: 6525 | C83: Garbage and Trash Removal | D83: 0 | E83: 0
A84: 6530 | C84: Security Contract | D84: 0 | E84: 0
A85: 6531 | C85: Security Free Rent Unit -- from above | D85: =IF(H20=1,E13,0) -> 0 | E85: 0
A86: 6546 | C86: Heating/Cooling Repairs and Maintenance | D86: 0 | E86: 0
A87: 6548 | C87: Snow Removal | D87: 0 | E87: 0
A88: 6570 | C88: Vehicle & Maintenance Equipment Operation/Reports | D88: 0 | E88: 0
A89: 6590 | C89: Miscellaneous Operating and Maintenance Expenses | D89: 0 | E89: 0
A90: 6500T | C90: Total Operating & Maintenance Expenses | D90: =SUM(D79:D89) -> 0 | E90: =SUM(E79:E89) -> 0
C91: Taxes and Insurance: 6700 | F91: Comments
A92: 6710 | C92: Real Estate Taxes | D92: 0 | E92: 0
A93: 6711 | C93: Payroll Taxes (Project's Share) -- from above | D93: =D17 -> 0 | E93: 0
A94: 6720 | C94: Property and Liability Insurance (Hazard) | D94: 0 | E94: 0
A95: 6729 | C95: Other Insurance (e.g. Earthquake) | D95: 0 | E95: 0
A96: 6721 | C96: Fidelity Bond Insurance | D96: 0 | E96: 0
A97: 6722 | C97: Worker's Compensation -- from above | D97: =D18 -> 0 | E97: 0
A98: 6723 | C98: Health Insurance/Other Employee Benefits--from above | D98: =D19 -> 0 | E98: 0
A99: 6790 | C99: Miscellaneous Taxes, Licenses, Permits & Insurance | D99: 0 | E99: 0
A100: 6700T | C100: Total Taxes and Insurance | D100: =SUM(D92:D99) -> 0 | E100: =SUM(E92:E99) -> 0
C101: Supportive Services Costs: 6900 | F101: Comments
A102: 6990 | C102: Staff Supervisor(s) Salaries - from above | D102: =D8 -> 0 | E102: 0
A103: 6990 | C103: Services Coordinator Salaries, On-Site - from above | D103: =D9 -> 0 | E103: 0
A104: 6990 | C104: Other Supportive Services Staff Salaries - from above | D104: =D10 -> 0 | E104: 0
A105: 6990 | C105: Supportive Services Admin Overhead | D105: 0 | E105: 0
A106: 6990 | C106: Other Supportive Services Costs: (specify) | D106: 0 | E106: 0
A107: 6990 | C107: Other Supportive Services Costs: (specify) | D107: 0 | E107: 0
A108: 6990 | C108: Other Supportive Services Costs: (specify) | D108: 0 | E108: 0
A109: 6990 | C109: Other Supportive Services Costs: (specify) | D109: 0 | E109: 0
A110: 6990 | C110: Other Supportive Services Costs: (specify) | D110: 0 | E110: 0
A111: 6900T | C111: Total Supportive Services Costs | D111: =SUM(D102:D110) -> 0 | E111: =SUM(E102:E110) -> 0
C113: Total Operating Expenses | D113: =D69+D77+D90+D100+D111 -> 0 | E113: =E69+E77+E90+E100+E111 -> 0 | F113: Comments
C114: Funded Reserves: 7200 | D114: Residential | E114: Commercial
A115: 7210 | C115: Required Replacement Reserve Deposits | D115: 0 | E115: 0
A116: 7220 | C116: Other Reserves: (specify) | D116: 0 | E116: 0
A117: 7230 | C117: Other Reserves: (specify) | D117: 0 | E117: 0
A118: 7240 | C118: Other Reserves: (specify) | D118: 0 | E118: 0
C119: Total Reserves | D119: =SUM(D115:D118) -> 0 | E119: =SUM(E115:E118) -> 0
C120: Ground Lease | D120: Residential | E120: Commercial
C121: Ground Lease | D121: 0 | E121: 0
C122: Total Ground Lease | D122: =SUM(D121:D121) -> 0 | E122: =SUM(E121:E121) -> 0
C123: Net Operating Income | D123: =D52-D113-D119-D122 -> 0 | E123: =E52-E113-E119-E122 -> 0
C125: Financial Expenses: 6800 | F125: Comments
A126: 6820 | C126: 1st Mortgage Debt Service | D126: 0 | E126: 0
A127: 6830 | C127: 2nd Mortgage Debt Service | D127: 0 | E127: 0
A128: 6840 | C128: 3rd Mortgage Debt Service | D128: 0 | E128: 0
A129: 6890 | C129: Misc. Financial Expenses: (specify) | D129: 0 | E129: 0
A130: 6890 | C130: Misc. Financial Expenses: (specify) | D130: 0 | E130: 0
A131: 6890 | C131: Misc. Financial Expenses: (specify) | D131: 0 | E131: 0
A132: 6890 | C132: Misc. Financial Expenses: (specify) | D132: 0 | E132: 0
A133: 6800T | C133: Total Financial Expenses | D133: =SUM(D126:D132) -> 0 | E133: =SUM(E126:E132) -> 0
C134: Cash Flow | D134: =+D123-D133 -> 0 | E134: =+E123-E133 -> 0
A136: 7190 | C136: Asset Management/Similar Fees | D136: 0 | E136: 0

Sheet Cash Flow
A2: Cash Flow Analysis | R2: =CoverPage!B11 -> 2022-02-01
A3: Income from Restricted Units will be based on Proposed Rents? | I3: Proposed Rents | K3: =IF(I3<>"Proposed Rents",1,0) -> 0
A4: Income From Housing Units | C4: Inflation | D4: Year 1 | E4: Year 2 | F4: Year 3 | G4: Year 4 | H4: Year 5 | I4: Year 6 | J4: Year 7 | K4: Year 8 | L4: Year 9 | M4: Year 10 | N4: Year 11 | O4: Year 12 | P4: Year 13 | Q4: Year 14 | R4: Year 15
A5: Restricted Unit Rents | C5: 0.025 | D5: =IF(K3=1,'Award, Match, and Revenue'!I26,'Award, Match, and Revenue'!J26) -> 0 | E5: =D5*(1+$C$5) -> 0 | F5: 0 | G5: 0 | H5: 0 | I5: 0 | J5: 0 | K5: 0 | L5: 0 | M5: 0 | N5: 0 | O5: 0 | P5: 0 | Q5: 0 | R5: =Q5*(1+$C$5) -> 0
A6: Unrestricted Unit Rents | C6: 0.025 | D6: ='Award, Match, and Revenue'!K26 -> 0 | E6: =D6*(1+$C$6) -> 0 | F6: 0 | G6: 0 | H6: 0 | I6: 0 | J6: 0 | K6: 0 | L6: 0 | M6: 0 | N6: 0 | O6: 0 | P6: 0 | Q6: 0 | R6: =Q6*(1+$C$6) -> 0
A7: Tenant Assistance Payments
A8: =Operating!C36 -> Subsidy Program #1 Name | C8: 0.025 | D8: =Operating!D36 -> 0 | E8: =D8*(1+$C$8) -> 0 | F8: =E8*(1+$C$8) -> 0 | G8: =F8*(1+$C$8) -> 0 | H8: 0 | I8: 0 | J8: 0 | K8: 0 | L8: 0 | M8: 0 | N8: 0 | O8: 0 | P8: 0 | Q8: 0 | R8: =Q8*(1+$C$8) -> 0
A9: =Operating!C37 -> Subsidy Program #2 Name | C9: 0.025 | D9: =Operating!D37 -> 0 | E9: =D9*(1+$C$9) -> 0 | F9: =E9*(1+$C$9) -> 0 | G9: =F9*(1+$C$9) -> 0 | H9: 0 | I9: 0 | J9: 0 | K9: 0 | L9: 0 | M9: 0 | N9: 0 | O9: 0 | P9: 0 | Q9: 0 | R9: =Q9*(1+$C$9) -> 0
A10: =Operating!C38 -> Operating Subsidy: (specify) | D10: =Operating!D38 -> 0 | E10: 0 | F10: 0 | G10: 0 | H10: 0 | I10: 0 | J10: 0 | K10: 0 | L10: 0 | M10: 0 | N10: 0 | O10: 0 | P10: 0 | Q10: 0 | R10: 0
A11: =Operating!C39 -> Operating Subsidy: (specify) | D11: =Operating!D39 -> 0 | E11: 0 | F11: 0 | G11: 0 | H11: 0 | I11: 0 | J11: 0 | K11: 0 | L11: 0 | M11: 0 | N11: 0 | O11: 0 | P11: 0 | Q11: 0 | R11: 0
A12: Gross Potential Income - Housing | D12: =SUM(D5:D11) -> 0 | E12: 0 | F12: 0 | G12: 0 | H12: 0 | I12: 0 | J12: 0 | K12: 0 | L12: 0 | M12: 0 | N12: 0 | O12: 0 | P12: 0 | Q12: 0 | R12: 0
A14: Other Income
A15: Laundry & Vending | C15: 0.025 | D15: =Operating!D40 -> 0 | E15: =D15*(1+$C$15) -> 0 | F15: 0 | G15: 0 | H15: 0 | I15: 0 | J15: 0 | K15: 0 | L15: 0 | M15: 0 | N15: 0 | O15: 0 | P15: 0 | Q15: 0 | R15: =Q15*(1+$C$15) -> 0
A16: Other Income | C16: 0.025 | D16: =Operating!D41+Operating!D42 -> 0 | E16: =D16*(1+$C$16) -> 0 | F16: 0 | G16: 0 | H16: 0 | I16: 0 | J16: 0 | K16: 0 | L16: 0 | M16: 0 | N16: 0 | O16: 0 | P16: 0 | Q16: 0 | R16: =Q16*(1+$C$16) -> 0
A17: Commercial Income | C17: 0.025 | D17: =Operating!E43 -> 0 | E17: =D17*(1+$C$17) -> 0 | F17: 0 | G17: 0 | H17: 0 | I17: 0 | J17: 0 | K17: 0 | L17: 0 | M17: 0 | N17: 0 | O17: 0 | P17: 0 | Q17: 0 | R17: =Q17*(1+$C$17) -> 0
A18: Gross Potential Income - Other | D18: =SUM(D15:D17) -> 0 | E18: 0 | F18: 0 | G18: 0 | H18: 0 | I18: 0 | J18: 0 | K18: 0 | L18: 0 | M18: 0 | N18: 0 | O18: 0 | P18: 0 | Q18: 0 | R18: 0
A20: Gross Potential Income - Total | D20: =D12+D18 -> 0 | E20: 0 | F20: 0 | G20: 0 | H20: 0 | I20: 0 | J20: 0 | K20: 0 | L20: 0 | M20: 0 | N20: 0 | O20: 0 | P20: 0 | Q20: 0 | R20: 0
A22: Vacancy Assumptions
A23: Restricted Units | C23: =Operating!D45 -> 0.05 | D23: =$C23*D5 -> 0 | E23: =$C23*E5 -> 0 | F23: 0 | G23: 0 | H23: 0 | I23: 0 | J23: 0 | K23: 0 | L23: 0 | M23: 0 | N23: 0 | O23: 0 | P23: 0 | Q23: 0 | R23: 0
A24: Unrestricted Units | C24: =Operating!D46 -> 0.05 | D24: =$C24*D6 -> 0 | E24: 0 | F24: 0 | G24: 0 | H24: 0 | I24: 0 | J24: 0 | K24: 0 | L24: 0 | M24: 0 | N24: 0 | O24: 0 | P24: 0 | Q24: 0 | R24: 0
A25: Tenant Assistance Payments | C25: =Operating!D47 -> 0.05 | D25: =$C25*(D8+D9) -> 0 | E25: =$C25*(E8+E9) -> 0 | F25: 0 | G25: 0 | H25: 0 | I25: 0 | J25: 0 | K25: 0 | L25: 0 | M25: 0 | N25: 0 | O25: 0 | P25: 0 | Q25: 0 | R25: 0
A26: =Operating!C39 -> Operating Subsidy: (specify) | C26: =Operating!D48 -> 0.05 | D26: =$C26*D11 -> 0 | E26: =$C26*E11 -> 0 | F26: 0 | G26: 0 | H26: 0 | I26: 0 | J26: 0 | K26: 0 | L26: 0 | M26: 0 | N26: 0 | O26: 0 | P26: 0 | Q26: 0 | R26: 0
A27: Laundry/Vending/Other Income | C27: =Operating!D49 -> 0.05 | D27: =$C27*(D15+D16) -> 0 | E27: =$C27*(E15+E16) -> 0 | F27: 0 | G27: 0 | H27: 0 | I27: 0 | J27: 0 | K27: 0 | L27: 0 | M27: 0 | N27: 0 | O27: 0 | P27: 0 | Q27: 0 | R27: 0
A28: Commercial Income | C28: =Operating!E50 -> 0.5 | D28: =$C28*D17 -> 0 | E28: =$C28*E17 -> 0 | F28: 0 | G28: 0 | H28: 0 | I28: 0 | J28: 0 | K28: 0 | L28: 0 | M28: 0 | N28: 0 | O28: 0 | P28: 0 | Q28: 0 | R28: 0
A29: Total Vacancy Loss | D29: =SUM(D23:D28) -> 0 | E29: =SUM(E23:E28) -> 0 | F29: 0 | G29: 0 | H29: 0 | I29: 0 | J29: 0 | K29: 0 | L29: 0 | M29: 0 | N29: 0 | O29: 0 | P29: 0 | Q29: 0 | R29: 0
A31: Effective Gross Income | D31: =D20-D29 -> 0 | E31: 0 | F31: 0 | G31: 0 | H31: 0 | I31: 0 | J31: 0 | K31: 0 | L31: 0 | M31: 0 | N31: 0 | O31: 0 | P31: 0 | Q31: 0 | R31: 0
A33: Operating Expenses & Reserve Deposits
A34: Residential Exp. (w/o Real Estate Taxes & Sup. Services) | C34: 0.035 | D34: =Operating!D113-Operating!D100-Operating!D111 -> 0 | E34: =(1+$C$34)*D34 -> 0 | F34: 0 | G34: 0 | H34: 0 | I34: 0 | J34: 0 | K34: 0 | L34: 0 | M34: 0 | N34: 0 | O34: 0 | P34: 0 | Q34: 0 | R34: =(1+$C$34)*Q34 -> 0
A35: Real Estate Taxes | C35: 0.02 | D35: =Operating!D100 -> 0 | E35: =(1+$C$35)*D35 -> 0 | F35: =(1+$C$35)*E35 -> 0 | G35: 0 | H35: 0 | I35: 0 | J35: 0 | K35: 0 | L35: 0 | M35: 0 | N35: 0 | O35: 0 | P35: 0 | Q35: 0 | R35: =(1+$C$35)*Q35 -> 0
A36: Supportive Services Costs | C36: 0.025 | D36: =Operating!D111 -> 0 | E36: =(1+$C$36)*D36 -> 0 | F36: =(1+$C$36)*E36 -> 0 | G36: =(1+$C$36)*F36 -> 0 | H36: 0 | I36: 0 | J36: 0 | K36: 0 | L36: 0 | M36: 0 | N36: 0 | O36: 0 | P36: 0 | Q36: 0 | R36: 0
A37: Replacement Reserve | C37: 0 | D37: =Operating!D115+Operating!E115 -> 0 | E37: =(1+$C$37)*D37 -> 0 | F37: 0 | G37: 0 | H37: 0 | I37: 0 | J37: 0 | K37: 0 | L37: 0 | M37: 0 | N37: 0 | O37: 0 | P37: 0 | Q37: 0 | R37: =(1+$C$37)*Q37 -> 0
A38: Other Reserves | C38: 0 | D38: =Operating!D116+Operating!D117+Operating!D118+Operating!E116+Operating!E117+Operating!E118 -> 0 | E38: =(1+$C$38)*D38 -> 0 | F38: =(1+$C$38)*E38 -> 0 | G38: 0 | H38: 0 | I38: 0 | J38: 0 | K38: 0 | L38: 0 | M38: 0 | N38: 0 | O38: 0 | P38: 0 | Q38: 0 | R38: =(1+$C$38)*Q38 -> 0
A39: Ground Lease | C39: 0.02 | D39: =Operating!D121+Operating!E121 -> 0 | E39: =(1+$C$39)*D39 -> 0 | F39: =(1+$C$39)*E39 -> 0 | G39: 0 | H39: 0 | I39: 0 | J39: 0 | K39: 0 | L39: 0 | M39: 0 | N39: 0 | O39: 0 | P39: 0 | Q39: 0 | R39: =(1+$C$39)*Q39 -> 0
A40: Commercial Expenses | C40: 0.035 | D40: =Operating!E113 -> 0 | E40: =(1+$C$40)*D40 -> 0 | F40: 0 | G40: 0 | H40: 0 | I40: 0 | J40: 0 | K40: 0 | L40: 0 | M40: 0 | N40: 0 | O40: 0 | P40: 0 | Q40: 0 | R40: =(1+$C$40)*Q40 -> 0
A41: Total Expenses & Reserves | D41: =SUM(D34:D40) -> 0 | E41: 0 | F41: 0 | G41: 0 | H41: 0 | I41: 0 | J41: 0 | K41: 0 | L41: 0 | M41: 0 | N41: 0 | O41: 0 | P41: 0 | Q41: 0 | R41: 0
A43: Net Operating Income | D43: =D31-D41 -> 0 | E43: 0 | F43: 0 | G43: 0 | H43: 0 | I43: 0 | J43: 0 | K43: 0 | L43: 0 | M43: 0 | N43: 0 | O43: 0 | P43: 0 | Q43: 0 | R43: 0
A45: Debt Service
A46: 1st Mortgage | D46: =Operating!D126+Operating!E126 -> 0 | E46: =$D$46 -> 0 | F46: 0 | G46: 0 | H46: 0 | I46: 0 | J46: 0 | K46: 0 | L46: 0 | M46: 0 | N46: 0 | O46: 0 | P46: 0 | Q46: 0 | R46: 0
A47: Bridge Loan (repaid from Investor equity) | D47: 0 | E47: 0 | F47: 0 | G47: 0 | H47: 0
A48: 2nd Mortgage | D48: =Operating!D127+Operating!E127 -> 0 | E48: =$D$48 -> 0 | F48: 0 | G48: 0 | H48: 0 | I48: 0 | J48: 0 | K48: 0 | L48: 0 | M48: 0 | N48: 0 | O48: 0 | P48: 0 | Q48: 0 | R48: 0
A49: 3rd Mortgage Debt Service | D49: =Operating!D128+Operating!E128 -> 0 | E49: =$D$49 -> 0 | F49: 0 | G49: 0 | H49: 0 | I49: 0 | J49: 0 | K49: 0 | L49: 0 | M49: 0 | N49: 0 | O49: 0 | P49: 0 | Q49: 0 | R49: 0
A50: =Operating!C129 -> Misc. Financial Expenses: (specify) | C50: 0.03 | D50: =Operating!D129+Operating!E129 -> 0 | E50: =(1+$C$50)*D50 -> 0 | F50: =(1+$C$50)*E50 -> 0 | G50: 0 | H50: 0 | I50: 0 | J50: 0 | K50: 0 | L50: 0 | M50: 0 | N50: 0 | O50: 0 | P50: 0 | Q50: 0 | R50: 0
A51: =Operating!C130 -> Misc. Financial Expenses: (specify) | D51: =Operating!D130+Operating!E130 -> 0 | E51: =$D$51 -> 0 | F51: =$D$51 -> 0 | G51: 0 | H51: 0 | I51: 0 | J51: 0 | K51: 0 | L51: 0 | M51: 0 | N51: 0 | O51: 0 | P51: 0 | Q51: 0 | R51: 0
A52: =Operating!C131 -> Misc. Financial Expenses: (specify) | D52: =Operating!D131+Operating!E131 -> 0 | E52: =$D$52 -> 0 | F52: =$D$52 -> 0 | G52: 0 | H52: 0 | I52: 0 | J52: 0 | K52: 0 | L52: 0 | M52: 0 | N52: 0 | O52: 0 | P52: 0 | Q52: 0 | R52: 0
A53: =Operating!C132 -> Misc. Financial Expenses: (specify) | D53: =Operating!D132+Operating!E132 -> 0 | E53: =$D$53 -> 0 | F53: =$D$53 -> 0 | G53: 0 | H53: 0 | I53: 0 | J53: 0 | K53: 0 | L53: 0 | M53: 0 | N53: 0 | O53: 0 | P53: 0 | Q53: 0 | R53: 0
A54: Total Required Debt Service | D54: =SUM(D46:D53)-D47 -> 0 | E54: =SUM(E46:E53)-E47 -> 0 | F54: 0 | G54: 0 | H54: 0 | I54: 0 | J54: 0 | K54: 0 | L54: 0 | M54: 0 | N54: 0 | O54: 0 | P54: 0 | Q54: 0 | R54: 0
A57: Cash Flow after all debt service | D57: =D43-D54 -> 0 | E57: 0 | F57: 0 | G57: 0 | H57: 0 | I57: 0 | J57: 0 | K57: 0 | L57: 0 | M57: 0 | N57: 0 | O57: 0 | P57: 0 | Q57: 0 | R57: 0
A59: Debt Service Coverage Ratio (DSCR) | D59: =IF(D54<=0,0,((D43/D54))) -> 0 | E59: =IF(E54<=0,0,((E43/E54))) -> 0 | F59: 0 | G59: 0 | H59: 0 | I59: 0 | J59: 0 | K59: 0 | L59: 0 | M59: 0 | N59: 0 | O59: 0 | P59: 0 | Q59: 0 | R59: 0
A60: Use of Cash Flow After Debt Service - HCD Projects
A61: Asset Mgmt./ Similar Fees | D61: =IF(D57>=D62,D62,MAX(0,D57)) -> 0 | E61: 0 | F61: 0 | G61: 0 | H61: 0 | I61: 0 | J61: 0 | K61: 0 | L61: 0 | M61: 0 | N61: 0 | O61: 0 | P61: 0 | Q61: 0 | R61: 0
A62: Max Asset Mgmt/Similar Fees | C62: 0.035 | D62: =Operating!D136 -> 0 | E62: =(1+$C$62)*D62 -> 0 | F62: =(1+$C$62)*E62 -> 0 | G62: 0 | H62: 0 | I62: 0 | J62: 0 | K62: 0 | L62: 0 | M62: 0 | N62: 0 | O62: 0 | P62: 0 | Q62: 0 | R62: =(1+$C$62)*Q62 -> 0
A63: Target NOI to get to 1.1 DSCR | D63: =D54*1.1 -> 0
A64: Subsidy needed to get to 1.1 DSCR | D64: =-D63+D43 -> 0
A66: Reserves & Debt (not payable by HK Op Subsidy)
A67: Reserve Expenses | D67: =D37+D38 -> 0 | E67: =E37+E38 -> 0 | F67: 0 | G67: 0 | H67: 0 | I67: 0 | J67: 0 | K67: 0 | L67: 0 | M67: 0 | N67: 0 | O67: 0 | P67: 0 | Q67: 0 | R67: 0
A68: Required Debt Service | D68: =D54 -> 0 | E68: =E54 -> 0 | F68: 0 | G68: 0 | H68: 0 | I68: 0 | J68: 0 | K68: 0 | L68: 0 | M68: 0 | N68: 0 | O68: 0 | P68: 0 | Q68: 0 | R68: 0
A69: Total Reserve Expenses and Debt | D69: =D67+D68 -> 0 | E69: =E67+E68 -> 0 | F69: 0 | G69: 0 | H69: 0 | I69: 0 | J69: 0 | K69: 0 | L69: 0 | M69: 0 | N69: 0 | O69: 0 | P69: 0 | Q69: 0 | R69: 0
A70: Reserve Exp. and Debt paid by Bonus | D70: =D75 -> 0 | E70: =E75 -> 0 | F70: 0 | G70: 0 | H70: 0 | I70: 0 | J70: 0 | K70: 0 | L70: 0 | M70: 0 | N70: 0 | O70: 0 | P70: 0 | Q70: 0 | R70: 0
A71: Reserve Exp. and Debt unpaid | D71: =D69-D70 -> 0 | E71: =E69-E70 -> 0 | F71: 0 | G71: 0 | H71: 0 | I71: 0 | J71: 0 | K71: 0 | L71: 0 | M71: 0 | N71: 0 | O71: 0 | P71: 0 | Q71: 0 | R71: 0
A73: Homekey App Submittal Bonus award | D73: 0
A74: Cash Flow after all debt service | D74: =D57 -> 0 | E74: 0 | F74: 0 | G74: 0 | H74: 0 | I74: 0 | J74: 0 | K74: 0 | L74: 0 | M74: 0 | N74: 0 | O74: 0 | P74: 0 | Q74: 0 | R74: 0
A75: HK Bonus Draw* for Reserves & Debt | D75: =IF(D74>=0,0,MIN(D73,D69,-D74)) -> 0 | E75: =IF(E74>=0,0,MIN(D73-D75,E69,-E74)) -> 0 | F75: =IF(F74>=0,0,MIN(D73-D75-E75,F69,-F74)) -> 0 | G75: =IF(G74>=0,0,MIN(D73-D75-E75-F75,G69,-G74)) -> 0 | H75: =IF(H74>=0,0,MIN(D73-D75-E75-F75-G75,H69,-H74)) -> 0
A76: Cash Flow after HK Bonus draws | D76: =D74+D75 -> 0 | E76: =E74+E75 -> 0 | F76: 0 | G76: 0 | H76: 0 | I76: 0 | J76: 0 | K76: 0 | L76: 0 | M76: 0 | N76: 0 | O76: 0 | P76: 0 | Q76: 0 | R76: 0
A77: *HK Bonus balance after draws | D77: =MAX(0,(D73-D75-E75-F75-G75-H75)) -> 0
A79: Homekey Operating Subsidy amount | D79: ='Award, Match, and Revenue'!P48 -> 0
A80: Cash Flow after HK above Bonus draw | D80: =D76 -> 0 | E80: =E76 -> 0 | F80: 0 | G80: 0 | H80: 0 | I80: 0 | J80: 0 | K80: 0 | L80: 0 | M80: 0 | N80: 0 | O80: 0 | P80: 0 | Q80: 0 | R80: 0
A81: Homekey Bonus Draw* | D81: =IF(D80>=0,0,MIN(-D80,D77)) -> 0 | E81: =IF(E80>=0,0,MIN(-E80,D82)) -> 0 | F81: =IF(F80>=0,0,MIN(-F80,E82)) -> 0 | G81: 0 | H81: 0
A82: *HK Bonus balance after draws | D82: =D77-D81 -> 0 | E82: =D82-E81 -> 0 | F82: =E82-F81 -> 0 | G82: 0 | H82: 0
A83: Cash Flow after Operating Subsidy draw | D83: =D80+D81 -> 0 | E83: =E80+E81 -> 0 | F83: 0 | G83: 0 | H83: 0 | I83: 0 | J83: 0 | K83: 0 | L83: 0 | M83: 0 | N83: 0 | O83: 0 | P83: 0 | Q83: 0 | R83: 0
A84: Homekey Operating Subsidy Draw* | D84: =IF(D43+D67>=0,0,-MAX(D43+D67,-D79)) -> 0 | E84: =IF(E43+E67>=0,0,-MAX(E43+E67,-D88)) -> 0 | F84: =IF(F43+F67>=0,0,-MAX(F43+F67,-E88)) -> 0 | G84: 0 | H84: 0
A85: Cash Flow after HK Op Subsidy draw | D85: =D83+D84 -> 0 | E85: =E83+E84 -> 0 | F85: 0 | G85: 0 | H85: 0 | I85: 0 | J85: 0 | K85: 0 | L85: 0 | M85: 0 | N85: 0 | O85: 0 | P85: 0 | Q85: 0 | R85: 0
A86: NOI after all draws | D86: =D43+D75+D81+D84 -> 0 | E86: =E43+E75+E81+E84 -> 0 | F86: 0 | G86: 0 | H86: 0 | I86: 0 | J86: 0 | K86: 0 | L86: 0 | M86: 0 | N86: 0 | O86: 0 | P86: 0 | Q86: 0 | R86: 0
A87: DSCR with Homekey draws | D87: =IF(D54<=0,0,(D86/D54)) -> 0 | E87: =IF(E54<=0,0,(E86/E54)) -> 0 | F87: 0 | G87: 0 | H87: 0 | I87: 0 | J87: 0 | K87: 0 | L87: 0 | M87: 0 | N87: 0 | O87: 0 | P87: 0 | Q87: 0 | R87: 0
A88: *HK Op Subsidy balance after draws | D88: =D79-D84 -> 0 | E88: =D88-E84 -> 0 | F88: =E88-F84 -> 0 | G88: =F88-G84 -> 0 | H88: =G88-H84 -> 0

Sheet Application Scoring Criteria
A1: §304 Application Scoring Criteria (207 Points Max) | AJ1: =CoverPage!B11 -> 2022-02-01
A2: Applications meeting the minimum program requirements outlined in Article III will require a minimum score of 120 points to be eligible for funding. Scores will be based on the following criteria: | Z2: Total Self Score not including Racial Equity and Community Engagement §304(3) | AK2: =MIN(270,AK3+AK37+AK67+AK72+AK93) -> 0
A3: 1. Ability to expend funds timely and demonstration of operating leverage - max 40 points | AK3: =SUM(AK4,AK28) -> 0
A4: a. Identification of the site suitable for development and evidence of site control, or a plan and timeline for obtaining site control along with other supporting evidence - 20 max points based on average score of all sites | AK4: =IFERROR(SUM(AK6:AL27)/COUNT(AK6:AL27),0) -> 0
A5: Type of Site Control | AN5: a. Fee title | AO5: 20
A6: =IF(Threshold!Q19="","",Threshold!Q19) ->  | AK6: =IF(A6="","",VLOOKUP(A6,$AN$5:$AO$12,2,FALSE)) ->  | AN6: b. Leasehold interest on the property with provisions that enable the lessee to make improvements on and encumber the property | AO6: 20
A7: =IF(Threshold!Q20="","",Threshold!Q20) ->  | AK7: =IF(A7="","",VLOOKUP(A7,$AN$5:$AO$12,2,FALSE)) ->  | AN7: c. Leasehold estate held by a Tribal Entity in federal tribal trust lands property, or a valid sublease thereof approved by the Bureau of Indian Affairs | AO7: 20
A8: =IF(Threshold!Q21="","",Threshold!Q21) ->  | AK8: =IF(A8="","",VLOOKUP(A8,$AN$5:$AO$12,2,FALSE)) ->  | AN8: d. Executed disposition and development agreement | AO8: 20
A9: =IF(Threshold!Q22="","",Threshold!Q22) ->  | AN9: e. A sales contract, or other enforceable agreement for the acquisition of the property | AO9: 20
A10: =IF(Threshold!Q23="","",Threshold!Q23) ->  | AN10: f. Executed letter of intent that represents to HCD, the Applicant will acquire a sufficient legal interest in the property to accomplish the purpose of the award | AO10: 15
A11: =IF(Threshold!Q24="","",Threshold!Q24) ->  | AN11: g. Other (describe in row 44 of Threshold worksheet) | AO11: 15
A12: =IF(Threshold!Q25="","",Threshold!Q25) ->  | AN12: None | AO12: 0
A13: =IF(Threshold!Q26="","",Threshold!Q26) -> 
A14: =IF(Threshold!Q27="","",Threshold!Q27) -> 
A15: =IF(Threshold!Q28="","",Threshold!Q28) -> 
A16: =IF(Threshold!Q29="","",Threshold!Q29) -> 
A17: =IF(Threshold!Q30="","",Threshold!Q30) -> 
A18: =IF(Threshold!Q31="","",Threshold!Q31) -> 
A19: =IF(Threshold!Q32="","",Threshold!Q32) -> 
A20: =IF(Threshold!Q33="","",Threshold!Q33) -> 
A21: =IF(Threshold!Q34="","",Threshold!Q34) -> 
A22: =IF(Threshold!Q35="","",Threshold!Q35) -> 
A23: =IF(Threshold!Q36="","",Threshold!Q36) -> 
A24: =IF(Threshold!Q37="","",Threshold!Q37) -> 
A25: =IF(Threshold!Q38="","",Threshold!Q38) -> 
A26: =IF(Threshold!Q39="","",Threshold!Q39) -> 
A27: =IF(Threshold!Q40="","",Threshold!Q40) ->  | AK27: =IF(A27="","",VLOOKUP(A27,$AN$5:$AO$12,2,FALSE)) -> 
A28: b. Commitment of non-Homekey rental or operating subsidies used to maintain the ongoing affordability of the Project - max 20 points, 1 point for each 5% increment of Assisted Units with committed funding. Project or Grantee based commitments for operating assistance, or rental subsidies. | R28: Assisted Units with committed funding | U28: =MIN('Award, Match, and Revenue'!U25,SUMIF(Y29:Z32,"Yes",AK29:AL32)) -> 0 | W28: Total Units | Y28: ='Award, Match, and Revenue'!U25 -> 0 | AA28: % increment of Assisted Units with committed funding | AE28: =MIN(1,IFERROR(U28/Y28,0)) -> 0 | AG28: Increments of 5% | AJ28: =ROUNDDOWN(AE28/0.05,0) -> 0 | AK28: =MIN(20,AJ28*1) -> 0
A29: Rental Subsidy: 'Award, Match, Revenue' cell M3 | F29: ='Award, Match, and Revenue'!M3 -> Subsidy Program #1 Name | T29: Funds Committed | AA29: Assisted Units receiving Rental Subsidy
A30: Rental Subsidy 'Award, Match, Revenue' cell O3 | F30: ='Award, Match, and Revenue'!O3 -> Subsidy Program #2 Name | T30: Funds Committed | AA30: Assisted Units receiving Rental Subsidy
A31: Operating Subsidy 'Operating' cell C38 | F31: =Operating!C38 -> Operating Subsidy: (specify) | T31: Funds Committed | AA31: Assisted Units receiving Operating Subsidy
A32: Operating Subsidy 'Operating' cell C39 | F32: =Operating!C39 -> Operating Subsidy: (specify) | T32: Funds Committed | AA32: Assisted Units receiving Operating Subsidy
A33: File Name | D33: =F29 -> Subsidy Program #1 Name | L33: Provide committment of this non-Homekey rental subsidy that will be used to maintain the ongoing affordability of the Project. | AF33: Uploaded to HCD?
A34: File Name | D34: =F30 -> Subsidy Program #2 Name | L34: Provide committment of this non-Homekey rental subsidy that will be used to maintain the ongoing affordability of the Project. | AF34: Uploaded to HCD?
A35: File Name | D35: =F31 -> Operating Subsidy: (specify) | L35: Provide committment of this non-Homekey operating subsidy that will be used to maintain the ongoing affordability of the Project. | AF35: Uploaded to HCD?
A36: File Name | D36: =F32 -> Operating Subsidy: (specify) | L36: Provide committment of this non-Homekey operating subsidy that will be used to maintain the ongoing affordability of the Project. | AF36: Uploaded to HCD?
A37: 2. Experience - max 55 points | AK37: =AK38+AK50+AK65 -> 0
A38: a. Development, ownership, or operation experience - max 25 points | AK38: =MAX(AK39,AK42)+AK46 -> 0
A39: a1. Does Applicant have the following experience: Development, ownership, or operation of one project similar in scope and size to the proposed project (describe below) - 10 points | AK39: =IF(AH39="Yes",10,0) -> 0
A40: Project name and address | Q40: Who provides the experience | V40: Experience type | Z40: Housing type | AC40: Population served | AJ40: Latest date developed, owned, or operated
A42: a2. If a1 above is Yes, 10 points already earned. Does Applicant have the following experience? Development, ownership, or operation of at least two affordable rental housing or interim projects in the last ten years, with at least one of those projects containing at least one unit housing a tenant who qualifies as a member of the Target Population (provide details below)? - 10 points | AH42: =IF(AO44+AO45=10,"Yes","No") -> No | AK42: =IF(AK39=10,0,IF(AH42="Yes",10,0)) -> 0
A43: Project name and address | Q43: Who provides the experience | V43: Experience type | Z43: Housing type | AC43: Qualifying unit population served | AJ43: Latest date developed, owned, or operated | AM43: 2021-09-09 | AN43: =AM43-(365*10) -> 2011-09-12
AM44: =IF(AND(A44<>"",AC44<>""),1,0) -> 0 | AN44: =IF(AND(A44<>"",AJ44>AN43),1,0) -> 0 | AO44: =IF(AM44+AN44>1,5,0) -> 0
AM45: =IF(AND(A45<>"",AC45<>""),1,0) -> 0 | AN45: =IF(AND(A45<>"",AJ45>AN43),1,0) -> 0 | AO45: =IF(AM45+AN45>1,5,0) -> 0
A46: a3. 5 additional points awarded for each additional project (development, ownership, or operation of affordable rental housing or interim projects in the last ten years serving at least one member of the Target Population) - max 15 points | AK46: =SUM(AO47:AO49) -> 0
AM47: =IF(AND(A47<>"",AC47<>""),1,0) -> 0 | AN47: =IF(AND(A47<>"",AJ47>AN43),1,0) -> 0 | AO47: =IF(AM47+AN47>1,5,0) -> 0
AM48: =IF(AND(A48<>"",AC48<>""),1,0) -> 0 | AN48: =IF(AND(A48<>"",AJ48>AN43),1,0) -> 0 | AO48: =IF(AM48+AN48>1,5,0) -> 0
AM49: 0 | AN49: =IF(AND(A49<>"",AJ49>AN43),1,0) -> 0 | AO49: 0
A50: b. Experience helping persons address barriers to housing stability and providing other support services; 1 point awarded for each year of service experience - max 15 points | AF50: Years | AH50: =SUM(AN52:AN63)/12 -> 0 | AK50: =MIN(15,ROUNDDOWN(AH50,0)) -> 0
A51: Project Name and address | P51: Who provides the experience | U51: Experience Provider | AA51: Housing type | AD51: Population Served | AK51: # of months serving
AM52: =IF(AND(A52<>"",U52<>"",AA52<>"",AD52<>""),1,0) -> 0 | AN52: =IF(AM52=1,AK52,0) -> 0
AM53: 0 | AN53: 0
AM54: 0 | AN54: 0
AM55: 0 | AN55: 0
AM56: 0 | AN56: 0
AM57: 0 | AN57: 0
AM58: 0 | AN58: 0
AM59: 0 | AN59: 0
AM60: 0 | AN60: 0
AM61: 0 | AN61: 0
AM62: 0 | AN62: 0
AM63: 0 | AN63: 0
A64: Explanation:
A65: c. Commitment letter(s) or MOU(s) documenting how the complete development and management team (which may include Applicant, Developer, Property Manager, and Lead Service Provider) are connected and will work together on the Project - 15 points | AK65: =IF(AK66="Yes",15,0) -> 0
A66: File Name: | D66: Commitment letter(s) or MOU(s) | L66: Provide commitment letter(s) or MOU(s) documentation | AE66: On USB? | AF66: Uploaded to HCD?
A67: 3. Racial equity and community engagement - max 20 points "For HCD use only" | AK67: =AK68+AK70 -> 0
A68: a. Racial Disparities Analysis - 10 points (HCD will score Racial Disparities Analysis based on the submitted Continuum of Care Outcomes)
A69: File Name: | D69: Racial Disparities Analysis | L69: Provide the Continuum of Care Outcomes by Race and Ethnicity | AE69: On USB? | AF69: Uploaded to HCD?
A70: b. Community Engagement - 10 points (HCD will score Community Engagement based on the submitted narrative)
A71: File Name: | D71: Community Engagement | L71: Provide a detailed narrative of how the Applicant has engaged or will engage with the target community, including people currently experiencing homelessness and people with lived experience of homelessness, to inform the design of the project. Provide documentation of this engagement, including meeting notes, community planning documents, MOU of partnership with community organizations, etc. | AE71: On USB? | AF71: Uploaded to HCD?
A72: 4. Community impact and site selection - max 92 points | AK72: =SUM(AK73,AK74,AK75,AK76,AK79,AK80,AK83) -> 0
A73: a. Project serves specific sub-populations from Award, Match, and Revenue cells R26, S36, T26 - 20 points | N73: Chronic Homelessness | R73: ='Award, Match, and Revenue'!R26 -> 0 | U73: Homelessness | Y73: ='Award, Match, and Revenue'!S26 -> 0 | AB73: Homeless Youth or Youth at Risk of Homelessness | AH73: ='Award, Match, and Revenue'!T26 -> 0 | AK73: =IF(OR(R73>=0.25,Y73>=0.5,AH73>=0.25),20,0) -> 0
A74: b. Assisted Units include units for large family housing types - 10 points | H74: Percentage of Assisted units that are three bedrooms or larger from 'Award, Match, and Revenue' worksheet cells U43 + U44 + U45 | S74: ='Award, Match, and Revenue'!U43+'Award, Match, and Revenue'!U44+'Award, Match, and Revenue'!U45 -> 0 | V74: Percentage of Assisted units that are two bedrooms or larger from 'Award, Match, and Revenue' worksheet cells U42 + U43 + U44 + U45 | AH74: ='Award, Match, and Revenue'!U42+'Award, Match, and Revenue'!U43+'Award, Match, and Revenue'!U44+'Award, Match, and Revenue'!U45 -> 0 | AK74: =IF(AND(S74>=0.25,AH74>=0.5),10,0) -> 0
A75: c. Commitment to 55 year deed restriction to serve Target Population, waiving potential accommodation by HCD to increase income limits as described in §303(ii) - max 20 points | Q75: Total Assisted units Applicant elects to waive the right to increase income levels persuant to §303(ii). | AB75: Percentage of Assisted units elected to waive increase of income limits | AH75: =IFERROR(Z75/'Award, Match, and Revenue'!U25,0) -> 0 | AK75: =IF(O75<>"Yes",0,IF(AH75=1,20,IF(AH75>=0.75,15,IF(AH75>=0.5,10,IF(AH75>=0.25,5,0))))) -> 0
A76: d. Extent Project commits to being accessible to persons with disabilities - max 10 points | R76: Total units from 'Award, Match, and Revenue' worksheet cell E25 | AH76: ='Award, Match, and Revenue'!U25 -> 0 | AK76: =IF(AH76<0,0,AK77+AK78) -> 0
A77: # of units exceeding state and federal accessibility requirements set forth in §505, specifically units with features accessible to persons with mobility disabilities - 5 points | W77: % of units exceeding state and federal accessibility requirements as set forth in §505 | AH77: =IFERROR(U77/$AH$76,0) -> 0 | AK77: =IF(AND('Award, Match, and Revenue'!E25>=0,AH77>=0.15),5,0) -> 0
A78: # of units with features accessible to persons with hearing or vision disabilities as defined in 24 CFR Part 8.22 and the parallel ADAAG 2010 and CBC Ch. 11B provisions - 5 points | W78: % of units accessible to persons with hearing or vision disabilities | AH78: =IFERROR(U78/$AH$76,0) -> 0 | AK78: =IF(AND('Award, Match, and Revenue'!E25>=0,AH78>=0.1),5,0) -> 0
A79: e. The Project requires no rehabilitation/construction, or the rehabilitation/construction and full occupancy can be completed within eight months of award - max 10 points | AK79: =IF(AH79="Yes",10,0) -> 0
A80: f. Capital match vs. minimum match required per Assisted unit; and average total cost per Assisted unit vs. minimum baseline per door | AK80: =MAX(AK81,AK82) -> 0
A81: f1. Capital match exceeds the minimum match required per Assisted Unit, 1 pt for every $10,000 over the required match - max 10 points | H81: Maximum match for Assisted units from 'Award, Match, and Revenue' worksheet cell AI25/U25 | M81: =IFERROR('Award, Match, and Revenue'!N33/'Award, Match, and Revenue'!U25,0) -> 0 | P81: Minimum match required for Assisted units from 'Award, Match, and Revenue' worksheet cell AI25 | U81: =IFERROR('Award, Match, and Revenue'!O33/'Award, Match, and Revenue'!U25,0) -> 0 | X81: Excess match (per unit) | AA81: =IFERROR(IF(M81>=100000,((SUM('Dev Sources'!H5:H13)-'Award, Match, and Revenue'!P33))/'Award, Match, and Revenue'!U25,('Award, Match, and Revenue'!P33-'Award, Match, and Revenue'!N33)/'Award, Match, and Revenue'!U25),"$0") -> $0 | AD81: Increments of $10,000 over baseline amount | AH81: =MAX(0,MIN(10,ROUNDDOWN(AA81/10000,0))) -> 0 | AK81: =MIN(10,AH81) -> 0
A82: f2. Where average total cost per Assisted Unit is below the minimum baseline per door, 1 pt for every $10,000 under baseline amount - max 10 pts | H82: Average baseline per Assisted Unit from 'Award, Match, and Revenue' worksheet cells X25 / U25 | M82: =IFERROR('Award, Match, and Revenue'!X25/'Award, Match, and Revenue'!U25,0) -> 0 | P82: Average cost per Assisted unit from 'Award, Match, and Revenue' worksheet cells O32 / U25 | U82: =IFERROR('Award, Match, and Revenue'!O32/'Award, Match, and Revenue'!U25,0) -> 0 | X82: Requested below minimum baseline (per unit) | AA82: =MAX(0,M82-U82) -> 0 | AD82: Increments of $10,000 under baseline amount | AH82: =MAX(0,MIN(10,ROUNDDOWN(AA82/10000,0))) -> 0 | AK82: =MIN(10,AH82) -> 0
A83: g. Site Selection - max 12 points | AK83: =SUM(AK85:AL90) -> 0
A84: File Name: | D84: Amenities Site Map | L84: Map indicating the proposed housing location(s) and scoring related amenities below. | AF84: Uploaded to HCD?
A85: Project site is located within 1/2 mile of a bus rapid transit station, light rail station, commuter rail station, ferry terminal, bus station, or public bus stop OR the project includes an alternative transportation service for residents (e.g., van or dial-a-ride service), if costs of obtaining and maintaining the van and its service are included in the budget and the operating schedule is either on demand by tenants or a regular schedule is provided - 4 points | AK85: =IF(AI85="Yes",4,0) -> 0
A86: i. Project site is located within 1/2 mile of a full-scale grocery store/supermarket where staples, fresh meat, and fresh produce are sold 1 mile for projects in rural areas? - 2 points | AK86: =IF(AI86="Yes",2,0) -> 0
A87: ii. Project site is located within 1/2 mile (1 mile for projects in rural areas) of a qualifying medical clinic with a physician, physician’s assistant, or nurse practitioner on-site for a minimum of 40 hours each week, or hospital (not a private doctor's office)? A qualifying medical clinic must accept Medi-Cal/Medicare payments, or Health Care for the Homeless, or have an equally comprehensive subsidy program for low-income patients. - 1 point | AK87: =IF(AI87="Yes",1,0) -> 0
A88: iii. Project site is located within 1/2 mile of a book-lending public library (1 mile for projects in rural areas)? - 1 point | AK88: =IF(AI88="Yes",1,0) -> 0
A89: iv. Project site is located within 1/2 mile of a pharmacy (1 mile for projects in rural areas). May be included in a grocery store or health facility? - 2 points | AK89: =IF(AI89="Yes",2,0) -> 0
A90: v. For Projects with units serving Homeless Youth: Project site is within one mile of at least two of the following: community colleges, universities, trade schools, apprenticeship programs, employment programs, childcare centers for parenting youth, and/or community centers for youth (e.g., LGBTQ+ centers, drop-in youth centers)? - 2 points | AK90: =IF(AI90="Yes",2,0) -> 0
A91: 5. Negative Points - max minus 20 points
A92: a. For any Project resulting in the permanent displacement of residents (not businesses or farm operations), as outlined below:
A93: The Project permanently displaces existing residents: | H93: Total existing units | M93: ='Award, Match, and Revenue'!B25 -> 0 | O93: Total household units that will be displaced | X93: Percentage of household units that will be displaced | AH93: =IFERROR(V93/M93,0) -> 0 | AK93: =IF(AH93<0.05,0,MAX(-20,-AH93*100)) -> 0
A94: Note: In the event of program oversubscription, where Applicants have the same score and the same date and time stamp, HCD may consider additional criteria as a tiebreaker, including but not limited to the cost-effectiveness, community impact, affirmatively furthering fair housing, innovative housing types, tenant stability and proximity to transit, services and amenities.

Sheet App Support
A1: Application Development Team (ADT) Support Form | AJ1: =CoverPage!B11 -> 2022-02-01
A2: Complete the "yellow" cells in the form below for application related issues and email a copy to: appsupport@hcd.ca.gov
A3: Name: | AC3: Contact Phone: | AO3: CoverPage
A4: Issue # | C4: Program Name & Round | F4: Tab | J4: Cell # | R4: Update/Comment | AD4: Urgency | AG4: ADT Status | AJ4: Status Date | AO4: Overview
A5: 1 | C5: Homekey | AO5: Threshold
A6: 2 | C6: Homekey | AO6: Certification & Legal
A7: 3 | C7: Homekey | AO7: Applicant Documents
A8: 4 | C8: Homekey | AO8: Supportive Services Plan
A9: 5 | C9: Homekey | AO9: Local & Env Verification
A10: 6 | C10: Homekey | AO10: Award, Match, and Revenue
A11: 7 | C11: Homekey | AO11: Dev Sources
A12: 8 | C12: Homekey | AO12: Dev Budget
A13: 9 | C13: Homekey | AO13: Operating
A14: 10 | C14: Homekey | AO14: Cash Flow
A15: 11 | C15: Homekey | AO15: Application Scoring Criteria
A16: 12 | C16: Homekey | AO16: App Support
A17: 13 | C17: Homekey | AO17: Document Checklist
A18: 14 | C18: Homekey
A19: 15 | C19: Homekey
A20: 16 | C20: Homekey
A21: 17 | C21: Homekey
A22: 18 | C22: Homekey
A23: 19 | C23: Homekey
A24: 20 | C24: Homekey
A25: 21 | C25: Homekey
A26: 22 | C26: Homekey
A27: 23 | C27: Homekey
A28: 24 | C28: Homekey
A29: 25 | C29: Homekey
A30: 26 | C30: Homekey
A31: 27 | C31: Homekey
A32: 28 | C32: Homekey
A33: 29 | C33: Homekey
A34: 30 | C34: Homekey

Sheet Upload Checklists
A1: Homekey Application Upload Document Checklist | AK1: =CoverPage!B11 -> 2022-02-01
A2: Document upload requirements and compliance information in column AK is auto-populated from document submittal replies in the worksheets noted below. Failure to submit a complete application including the required documentation may result in the need for you to amend and resubmit your application resulting in your application's HCD review to be repositioned to the date of resubmittal.
A3: Overview worksheet
A4: File Name | D4: App1 Cert & Legal | L4: See Certifications & Legal worksheet. | AF4: Uploaded to HCD? | AK4: =IF(Overview!AK53="","",Overview!AK53) -> 
A5: File Name | D5: App1 Resolution | L5: Signature required; see Applicant Documents worksheet. | AF5: Uploaded to HCD? | AK5: =IF(Overview!AK54="","",Overview!AK54) -> 
A6: File Name | D6: App1 TIN Form | L6: See Applicant Documents worksheet. | AF6: Uploaded to HCD? | AK6: =IF(Overview!AK55="","",Overview!AK55) -> 
A7: File Name | D7: Co-App1 Cert & Legal | L7: See Certifications & Legal worksheet. | AF7: Uploaded to HCD? | AK7: =IF(Overview!AK62="","",Overview!AK62) -> 
A8: File Name | D8: Co-App1 Resolution | L8: Signature required; see Applicant Documents worksheet. | AF8: Uploaded to HCD? | AK8: =IF(Overview!AK63="","",Overview!AK63) -> 
A9: File Name | D9: Co-App1 OrgDoc1, OrgDoc1, etc… | L9: See Applicant Documents worksheet. | AF9: Uploaded to HCD? | AK9: =IF(Overview!AK64="","",Overview!AK64) -> 
A10: File Name | D10: Co-App1 OrgChart | L10: See Applicant Documents worksheet. | AF10: Uploaded to HCD? | AK10: =IF(Overview!AK65="","",Overview!AK65) -> 
A11: File Name | D11: Co-App1 Signature Block | L11: See Applicant Documents worksheet. | AF11: Uploaded to HCD? | AK11: =IF(Overview!AK66="","",Overview!AK66) -> 
A12: File Name | D12: Co-App1 Payee Data Record | L12: See Applicant Documents worksheet. | AF12: Uploaded to HCD? | AK12: =IF(Overview!AK67="","",Overview!AK67) -> 
A13: File Name | D13: Co-App1 TIN Form | L13: See Applicant Documents worksheet. | AF13: Uploaded to HCD? | AK13: =IF(Overview!AK68="","",Overview!AK68) -> 
A14: File Name | D14: Co-App1 Cert of Good Standing | L14: Dated 30 days or less from the Application due date. | AF14: Uploaded to HCD? | AK14: =IF(Overview!AK69="","",Overview!AK69) -> 
A15: File Name | D15: Co-App1 Tax-Exempt Status | L15: Evidence of tax-exempt status from IRS and Franchise Tax Board, if applicable | AF15: Uploaded to HCD? | AK15: =IF(Overview!AK70="","",Overview!AK70) -> 
A16: File Name | D16: Co-App2 Cert & Legal | L16: See Certifications & Legal worksheet. | AF16: Uploaded to HCD? | AK16: =IF(Overview!AK77="","",Overview!AK77) -> 
A17: File Name | D17: Co-App2 Resolution | L17: Signature required; see Applicant Documents worksheet. | AF17: Uploaded to HCD? | AK17: =IF(Overview!AK78="","",Overview!AK78) -> 
A18: File Name | D18: Co-App2 OrgDoc2, OrgDoc2, etc… | L18: See Applicant Documents worksheet. | AF18: Uploaded to HCD? | AK18: =IF(Overview!AK79="","",Overview!AK79) -> 
A19: File Name | D19: Co-App2 OrgChart | L19: See Applicant Documents worksheet. | AF19: Uploaded to HCD? | AK19: =IF(Overview!AK80="","",Overview!AK80) -> 
A20: File Name | D20: Co-App2 Signature Block | L20: See Applicant Documents worksheet. | AF20: Uploaded to HCD? | AK20: =IF(Overview!AK81="","",Overview!AK81) -> 
A21: File Name | D21: Co-App2 Payee Data Record | L21: See Applicant Documents worksheet. | AF21: Uploaded to HCD? | AK21: =IF(Overview!AK82="","",Overview!AK82) -> 
A22: File Name | D22: Co-App2 TIN Form | L22: See Applicant Documents worksheet. | AF22: Uploaded to HCD? | AK22: =IF(Overview!AK83="","",Overview!AK83) -> 
A23: File Name | D23: Co-App2 Cert of Good Standing | L23: Dated 30 days or less from the Application due date. | AF23: Uploaded to HCD? | AK23: =IF(Overview!AK84="","",Overview!AK84) -> 
A24: File Name | D24: Co-App2 Tax-Exempt Status | L24: Evidence of tax-exempt status from IRS and Franchise Tax Board for Non-profit Corp. | AF24: Uploaded to HCD? | AK24: =IF(Overview!AK85="","",Overview!AK85) -> 
A25: File Name: | D25: Rehab Description | L25: Narrative description of current condition of structure(s) and overall scope of work. | AF25: Uploaded to HCD? | AK25: =IF(Overview!AK120="","",Overview!AK120) -> 
A26: File Name: | D26: PNA | L26: Physical Needs Assessment prepared by a qualified independent third party contractor. | AF26: Uploaded to HCD? | AK26: =IF(Overview!AK121="","",Overview!AK121) -> 
A27: File Name: | D27: Market Study | L27: Provide a recent market study within the past year which conforms to Tax Credit Allocation Committee (TCAC) guidelines, and/or a rent roll, and/or other supporting documentation per §205 of the NOFA. | AF27: Uploaded to HCD? | AK27: =IF(Overview!AK123="","",Overview!AK123) -> 
A28: File Name: | D28: Market Study | L28: Provide a recent market study within the past year which conforms to TCAC guidelines, and/or a rent roll, and/or other supporting documentation per §205 of the NOFA. | AF28: Uploaded to HCD? | AK28: =IF(Overview!AK127="","",Overview!AK127) -> 
A29: File Name: | D29: Non-Perm Structure | L29: Detailed narrative of how the use will meet all Homekey Program requirements, including the requirements for use and affordability restrictions set forth at §208 of the NOFA | AF29: Uploaded to HCD? | AK29: =IF(Overview!AK139="","",Overview!AK139) -> 
A30: Threshold worksheet
A31: File Name | D31: Env. Report 1 | L31: Phase I (prepared or updated no earlier than 12 months prior to the application due date). | AF31: Uploaded to HCD? | AK31: =IF(Threshold!AK9="","",Threshold!AK9) -> 
A32: File Name | D32: Env. Report 2 | L32: Phase II (prepared or updated no earlier than 12 months prior to the application due date). | AF32: Uploaded to HCD? | AK32: =IF(Threshold!AK10="","",Threshold!AK10) -> 
A33: File Name | D33: CEQA | L33: Copy of CEQA Determination Documents | AF33: Uploaded to HCD? | AK33: =IF(Threshold!AK11="","",Threshold!AK11) -> 
A34: File Name | D34: NEPA | L34: Copy of Authority of Use Grant Funds (NHTF Verification from Responsible Entity) | AF34: Uploaded to HCD? | AK34: =IF(Threshold!AK12="","",Threshold!AK12) -> 
A35: File Name | D35: Local Approvals | L35: 'Local & Env Verification' worksheet(s) completed and signed by local authority or Responsible Entity, if different from jurisdiction. | AF35: Uploaded to HCD? | AK35: =IF(Threshold!AK13="","",Threshold!AK13) -> 
A36: File Name | D36: Racial Demographics | L36: Racial Demographic Data Worksheet, which reports CoC outcomes by race and ethnicity. The worksheet on the Homekey webpage | AF36: Uploaded to HCD? | AK36: =IF(Threshold!AK16="","",Threshold!AK16) -> 
A37: File Name: | D37: Use Change | L37: Provide a commitment and plan to facilitate or expedite the use change processes | AF37: Uploaded to HCD? | AK37: =IF(Threshold!AK42="","",Threshold!AK42) -> 
A38: File Name: | D38: Site Control1, Site Control2, etc | L38: Provide documentation of the type of site control for each site above | AF38: Uploaded to HCD? | AK38: =IF(Threshold!AK45="","",Threshold!AK45) -> 
A39: File Name: | D39: Prelim1, Prelim2, etc | K39: Provide a current preliminary report | L39: Provide current preliminary title report for each site above | AE39: On USB? | AF39: Uploaded to HCD? | AK39: =IF(Threshold!AK46="","",Threshold!AK46) -> 
A40: File Name: | D40: Liability Insurance | K40: Provide a current preliminary report | L40: Proof of General Liability Insurance that meets the requirements in §800(i) | AE40: On USB? | AF40: Uploaded to HCD? | AK40: =IF(Threshold!AK47="","",Threshold!AK47) -> 
A41: File Name: | D41: Automobile Insurance | K41: Provide a current preliminary report | L41: Proof of Automobile Liability Insurance that meets the requirements in §800(ii) | AE41: On USB? | AF41: Uploaded to HCD? | AK41: =IF(Threshold!AK48="","",Threshold!AK48) -> 
A42: File Name: | D42: Property-Hazard Insurance | K42: Provide a current preliminary report | L42: Proof of Property Insurance that meets the requirements in §800(v) | AE42: On USB? | AF42: Uploaded to HCD? | AK42: =IF(Threshold!AK49="","",Threshold!AK49) -> 
A43: File Name: | D43: Development Plan | L43: Provide a development plan | AF43: Uploaded to HCD? | AK43: =IF(Threshold!AK53="","",Threshold!AK53) -> 
A44: File Name: | D44: Relocation Narrative | L44: Relocation Assistance Narrative for relocation or no relocation | AF44: Uploaded to HCD? | AK44: =IF(Threshold!AK58="","",Threshold!AK58) -> 
A45: File Name: | D45: Housing First Perm | L45: Provide experience administering a Housing First program of harm reduction and low barriers to entry | AF45: Uploaded to HCD? | AK45: =IF(Threshold!AK86="","",Threshold!AK86) -> 
A46: File Name: | D46: One-for-one Replacement | L46: iii(a) and (b) If the acquired housing or site will be redeveloped/repositioned per the locality's overall goal to address the needs of the Target Population and the community (unless the target site is going to be demolished before any occupancy by the Target Population), provide a letter of commitment to ensure one-for-one replacement of units. | AF46: Uploaded to HCD? | AK46: =IF(Threshold!AK104="","",Threshold!AK104) -> 
A47: File Name: | D47: Housing Site Map | L47: Map indicating the original target housing location and all proposed housing location(s). | AF47: Uploaded to HCD? | AK47: =IF(Threshold!AK106="","",Threshold!AK106) -> 
A48: File Name: | D48: Outside Neighborhood | L48: If replacement housing is proposed outside the target neighborhood, include a justification explaining why it is necessary to locate this replacement housing outside the target neighborhood (i.e., offsite) and how doing so supports and enables the Target Population to maintain housing. | AF48: Uploaded to HCD? | AK48: =IF(Threshold!AK107="","",Threshold!AK107) -> 
A49: File Name: | D49: Interim Hsg Exp | L49: Provide experience in linking Interim Housing program participants to Permanent Housing to ensure long-term housing stability | AF49: Uploaded to HCD? | AK49: =IF(Threshold!AK122="","",Threshold!AK122) -> 
A50: File Name: | D50: Housing First Interim | L50: Provide experience administering a Housing First program that includes principles of harm reduction and low barriers to entry | AF50: Uploaded to HCD? | AK50: =IF(Threshold!AK124="","",Threshold!AK124) -> 
A51: File Name: | D51: Relocation Plan | L51: Relocation Assistance Narrative for relocation or no relocation | AE51: Uploaded to HCD? | AJ51: =IF(Threshold!AJ149="","",Threshold!AJ149) -> 
A52: File Name: | D52: Access & Non-Discrimination | L52: Provide a non-discrimination policy | AF52: Uploaded to HCD? | AK52: =IF(Threshold!AK152="","",Threshold!AK152) -> 
A53: File Name: | D53: Prevailing Wage | L53: Provide a prevailing wage certification | AF53: Uploaded to HCD? | AK53: =IF(Threshold!AK155="","",Threshold!AK155) -> 
A54: Certification & Legal worksheet
A55: File Name: | D55: Cert & Legal Explanation | L55: Letter of explanation for any "Yes" answers or red shaded items above. | AF55: Uploaded to HCD? | AK55: =IF('Certification & Legal'!AK36="","",'Certification & Legal'!AK36) -> 
A56: Supportive Services Plan worksheet
A57: File Name: | D57: Property Management Plan | L57: Submit Property Management Plan and Tenant Selection Policies | AE57: Uploaded to HCD? | AJ57: =IF('Supportive Services Plan'!AJ162="","",'Supportive Services Plan'!AJ162) -> 
A58: Award, Match, and Revenue worksheet
A59: File Name: | D59: Utility Allowance | L59: 1Local housing authority document showing current utility allowance chart, with relevant components circled. | AF59: Uploaded to HCD? | AK59: =IF('Award, Match, and Revenue'!N27="","",'Award, Match, and Revenue'!N27) -> 
A60: File Name: | D60: Appraisal | L60: If land costs will be included in the Development Budget, attach an appraisal dated within 60 days of the application submittal date. | AF60: Uploaded to HCD? | AK60: =IF('Award, Match, and Revenue'!N30="","",'Award, Match, and Revenue'!N30) -> 
A61: File Name: | D61: Op Subsidy Confirmation | L61: A letter template and a list of potential Homekey complementary funding can be found on the Homekey webpage. | AF61: Uploaded to HCD? | AK61: =IF('Award, Match, and Revenue'!N47="","",'Award, Match, and Revenue'!N47) -> 
A62: Dev Sources worksheet
A63: File Name: | D63: EFC1, EFC2, EFCI3, etc. | L63: Documentation for the executed funding commitments (see below) | AF63: Uploaded to HCD? | AK63: =IF('Dev Sources'!M15="","",'Dev Sources'!M15) -> 
A64: Application Scoring Criteria worksheet
A65: File Name | D65: ='Application Scoring Criteria'!D33 -> Subsidy Program #1 Name | L65: Provide committment of this non-Homekey rental subsidy that will be used to maintain the ongoing affordability of the Project. | AF65: Uploaded to HCD? | AK65: =IF('Application Scoring Criteria'!AK33="","",'Application Scoring Criteria'!AK33) -> 
A66: File Name | D66: ='Application Scoring Criteria'!D34 -> Subsidy Program #2 Name | L66: Provide committment of this non-Homekey rental subsidy that will be used to maintain the ongoing affordability of the Project. | AF66: Uploaded to HCD? | AK66: =IF('Application Scoring Criteria'!AK34="","",'Application Scoring Criteria'!AK34) -> 
A67: File Name | D67: ='Application Scoring Criteria'!D35 -> Operating Subsidy: (specify) | L67: Provide committment of this non-Homekey operating subsidy that will be used to maintain the ongoing affordability of the Project. | AF67: Uploaded to HCD? | AK67: =IF('Application Scoring Criteria'!AK35="","",'Application Scoring Criteria'!AK35) -> 
A68: File Name | D68: ='Application Scoring Criteria'!D36 -> Operating Subsidy: (specify) | L68: Provide committment of this non-Homekey operating subsidy that will be used to maintain the ongoing affordability of the Project. | AF68: Uploaded to HCD? | AK68: =IF('Application Scoring Criteria'!AK36="","",'Application Scoring Criteria'!AK36) -> 
A69: File Name: | D69: Commitment letter(s) or MOU(s) | L69: Provide commitment letter(s) or MOU(s) documentation | AE69: On USB? | AF69: Uploaded to HCD? | AK69: =IF('Application Scoring Criteria'!AK66="","",'Application Scoring Criteria'!AK66) -> 
A70: File Name: | D70: Racial Disparities Analysis | L70: Provide the Continuum of Care Outcomes by Race and Ethnicity | AE70: On USB? | AF70: Uploaded to HCD? | AK70: =IF('Application Scoring Criteria'!AK69="","",'Application Scoring Criteria'!AK69) -> 
A71: File Name: | D71: Community Engagement | L71: Provide a detailed narrative of how the Applicant has engaged or will engage with the target community, including people currently experiencing homelessness and people with lived experience of homelessness, to inform the design of the project. Provide documentation of this engagement, including meeting notes, community planning documents, MOU of partnership with community organizations, etc. | AE71: On USB? | AF71: Uploaded to HCD? | AK71: =IF('Application Scoring Criteria'!AK71="","",'Application Scoring Criteria'!AK71) -> 
A72: File Name: | D72: Amenities Site Map | L72: Map indicating the proposed housing location(s) and scoring related amenities below. | AF72: Uploaded to HCD? | AK72: =IF('Application Scoring Criteria'!AK84="","",'Application Scoring Criteria'!AK84) -> 
